{"text_format":"1","workbook":"xlsx","n_sheets":2,"sheets":["INPUT","Scherkopfberater"],"not_rendered":{"charts":0,"images":0,"macros":1,"external_links":0,"defined_names":3,"comments":0,"pivot_tables":0},"unopened":[],"bounds":{"document_bytes":16777216,"sheet_cells":100000,"rows_first":2000,"rows_last":500,"rows_between":2000,"halvings":0,"cell_chars":16384,"cell_head_chars":4096},"cells_cut":0,"cells_raw":0,"read":"whole","date_system":"1900"}

{"sheet":"INPUT","index":0,"n_rows":929,"n_cols":28,"rows_kept":929,"cut":false,"hidden":true,"merged":[]}
["ID","Hunderasse","System",null,"ID","Körperbereich","Kurz Vorschlag 1","Kurz Vorschlag 2","Mittel Vorschlag 1","Mittel Vorschlag 2","Lang Vorschlag 1","Lang Vorschlag 2",null,null,null,null,null,null,null,null,null,null,null,null,"Rasse 1","Affenpinscher","Affenpinscher",{"$f":"LEFT(AA1,1)","v":"A"}]
["DE001","Affenpinscher","Favorita",null,{"$f":"\"Opt\"&LEFT(F2,1)","v":"Opt8"},"8. Afterbereich","GT710 - 1,8 mm ","GT742 - 2,0 mm","GT710 - 1,8 mm ","GT742 - 2,0 mm","GT710 - 1,8 mm ","GT742 - 2,0 mm",null,null,null,null,null,null,null,null,null,null,null,null,"Bereich","Opt1","Airedale Terrier","A"]
["DE002","Affenpinscher","Favorita",null,{"$f":"\"Opt\"&LEFT(F3,1)","v":"Opt7"},"7. Pfoten","GH712 - 1,0 mm ","GT772 - 0,7 mm ","GH712 - 1,0 mm ","GT772 - 0,7 mm ","GH712 - 1,0 mm ","GT772 - 0,7 mm ",null,null,null,null,null,null,null,null,null,null,null,null,"gewählte Zeile",4,"Akita","A"]
["DE003","Affenpinscher","Favorita",null,"Opt1","1. Körper normale Fellstruktur","GT758 - 5,0 mm ",null,"GT770 - 7,0 mm ",null,"GT779 - 9,0 mm ",null,null,null,null,null,null,null,null,null,null,null,null,null,"System","Favorita","Alaskan Malamute","A"]
["DE004","Affenpinscher","Favorita",null,"Opt2","2. Körper sauberes Fell","GT758 - 5,0 mm ",null,"GT770 - 7,0 mm ",null,"GT779 - 9,0 mm ",null,null,null,null,null,null,null,null,null,null,null,null,null,null,null,"Amerikanisch Cocker Spaniel","A"]
["DE005","Affenpinscher","Favorita",null,"Opt3","3. Körper verfilztes Fell","GT754 - 3,0 mm ",null,"GT758 - 5,0 mm ",null,"GT770 - 7,0 mm ",null,null,null,null,null,null,null,null,null,null,null,null,null,null,null,"Australien Shepherd","A"]
["DE006","Affenpinscher","Favorita",null,"Opt6","6. Läufe","Schere VH016C - 190 mm ","Schere VH017C - 200 mm ","Schere VH016C - 190 mm ","Schere VH017C - 200 mm ","Schere VH016C - 190 mm ","Schere VH017C - 200 mm ",null,null,null,null,null,null,null,null,null,null,null,null,null,null,"Basset","B"]
["DE007","Affenpinscher","Favorita",null,"Opt4","4. Kopf","Schere VH016C - 190 mm ","Schere VH017C - 200 mm ","Schere VH016C - 190 mm ","Schere VH017C - 200 mm ","Schere VH016C - 190 mm ","Schere VH017C - 200 mm ",null,null,null,null,null,null,null,null,null,null,null,null,null,null,"Beagle","B"]
["DE008","Affenpinscher","Favorita",null,"Opt5","5. Ohren","Schere VH016C - 190 mm ","Schere VH017C - 200 mm ","Schere VH016C - 190 mm ","Schere VH017C - 200 mm ","Schere VH016C - 190 mm ","Schere VH017C - 200 mm ",null,null,null,null,null,null,null,null,null,null,null,null,null,null,"Bearded Collie","B"]
["DE009","Airedale Terrier","Favorita",null,"Opt8","8. Afterbereich","GT742 - 2,0 mm",null,"GT742 - 2,0 mm",null,"GT742 - 2,0 mm",null,null,null,null,null,null,null,null,null,null,null,null,null,null,null,"Bedlington Terrier","B"]
["DE010","Airedale Terrier","Favorita",null,"Opt7","7. Pfoten","GH712 - 1,0 mm ","GT772 - 0,7 mm ","GH712 - 1,0 mm ","GT772 - 0,7 mm ","GH712 - 1,0 mm ","GT772 - 0,7 mm ",null,null,null,null,null,null,null,null,null,null,null,null,null,null,"Bichon Frise","B"]
["DE011","Airedale Terrier","Favorita",null,"Opt1","1. Körper normale Fellstruktur","Trimmmesser",null,"Trimmmesser",null,"Trimmmesser",null,null,null,null,null,null,null,null,null,null,null,null,null,null,null,"Bobtail","B"]
["DE012","Airedale Terrier","Favorita",null,"Opt2","2. Körper sauberes Fell","GT754 - 3,0 mm ",null,"GT758 - 5,0 mm ",null,"GT770 - 7,0 mm ",null,null,null,null,null,null,null,null,null,null,null,null,null,null,null,"Border Collie","B"]
["DE013","Airedale Terrier","Favorita",null,"Opt3","3. Körper verfilztes Fell","GT748 - 3,0 mm",null,"GT748 - 3,0 mm",null,"GT748 - 3,0 mm",null,null,null,null,null,null,null,null,null,null,null,null,null,null,null,"Bouvier des Flanders","B"]
["DE014","Airedale Terrier","Favorita",null,"Opt6","6. Läufe","Schere VH016C - 190 mm ",null,"Schere VH016C - 190 mm ",null,"Schere VH016C - 190 mm ",null,null,null,null,null,null,null,null,null,null,null,null,null,null,null,"Briard","B"]
["DE015","Airedale Terrier","Favorita",null,"Opt4","4. Kopf","GT754 - 3,0 mm ",null,"GT754 - 3,0 mm ",null,"GT754 - 3,0 mm ",null,null,null,null,null,null,null,null,null,null,null,null,null,null,null,"Cairn Terrier","C"]
["DE016","Airedale Terrier","Favorita",null,"Opt5","5. Ohren","GT742 - 2,0 mm",null,"GT742 - 2,0 mm",null,"GT742 - 2,0 mm",null,null,null,null,null,null,null,null,null,null,null,null,null,null,null,"Chihuahua","C"]
["DE017","Akita","Favorita",null,"Opt8","8. Afterbereich","GT710 - 1,8 mm ","GT742 - 2,0 mm","GT710 - 1,8 mm ","GT742 - 2,0 mm","GT710 - 1,8 mm ","GT742 - 2,0 mm",null,null,null,null,null,null,null,null,null,null,null,null,null,null,"Chow Chow","C"]
["DE018","Akita","Favorita",null,"Opt7","7. Pfoten","GH712 - 1,0 mm ","GT772 - 0,7 mm ","GH712 - 1,0 mm ","GT772 - 0,7 mm ","GH712 - 1,0 mm ","GT772 - 0,7 mm ",null,null,null,null,null,null,null,null,null,null,null,null,null,null,"Cocker Spaniel","C"]
["DE019","Akita","Favorita",null,"Opt1","1. Körper normale Fellstruktur","GT758 - 5,0 mm ",null,"GT770 - 7,0 mm ",null,"GT779 - 9,0 mm ",null,null,null,null,null,null,null,null,null,null,null,null,null,null,null,"Dandie Dinmont Terrier","D"]
["DE020","Akita","Favorita",null,"Opt2","2. Körper sauberes Fell","GT758 - 5,0 mm ",null,"GT770 - 7,0 mm ",null,"GT779 - 9,0 mm ",null,null,null,null,null,null,null,null,null,null,null,null,null,null,null,"Doodle","D"]
["DE021","Akita","Favorita",null,"Opt3","3. Körper verfilztes Fell","GT754 - 3,0 mm ",null,"GT758 - 5,0 mm ",null,"GT770 - 7,0 mm ",null,null,null,null,null,null,null,null,null,null,null,null,null,null,null,"Englisch Cocker Spaniel","E"]
["DE022","Akita","Favorita",null,"Opt6","6. Läufe","Schere VH016C - 190 mm ","Schere VH017C - 200 mm ","Schere VH016C - 190 mm ","Schere VH017C - 200 mm ","Schere VH016C - 190 mm ","Schere VH017C - 200 mm ",null,null,null,null,null,null,null,null,null,null,null,null,null,null,"Englisch Setter","E"]
["DE023","Akita","Favorita",null,"Opt4","4. Kopf","Schere VH016C - 190 mm ","Schere VH017C - 200 mm ","Schere VH016C - 190 mm ","Schere VH017C - 200 mm ","Schere VH016C - 190 mm ","Schere VH017C - 200 mm ",null,null,null,null,null,null,null,null,null,null,null,null,null,null,"Englisch Springer Spaniel","E"]
["DE024","Akita","Favorita",null,"Opt5","5. Ohren","Schere VH016C - 190 mm ","Schere VH017C - 200 mm ","Schere VH016C - 190 mm ","Schere VH017C - 200 mm ","Schere VH016C - 190 mm ","Schere VH017C - 200 mm ",null,null,null,null,null,null,null,null,null,null,null,null,null,null,"Fox Terrier","F"]
["DE025","Alaskan Malamute","Favorita",null,"Opt8","8. Afterbereich","GT710 - 1,8 mm ","GT742 - 2,0 mm","GT710 - 1,8 mm ","GT742 - 2,0 mm","GT710 - 1,8 mm ","GT742 - 2,0 mm",null,null,null,null,null,null,null,null,null,null,null,null,null,null,"Golden Retriever","G"]
["DE026","Alaskan Malamute","Favorita",null,"Opt7","7. Pfoten","GH712 - 1,0 mm ","GT772 - 0,7 mm ","GH712 - 1,0 mm ","GT772 - 0,7 mm ","GH712 - 1,0 mm ","GT772 - 0,7 mm ",null,null,null,null,null,null,null,null,null,null,null,null,null,null,"Gordon Setter","G"]
["DE027","Alaskan Malamute","Favorita",null,"Opt1","1. Körper normale Fellstruktur","GT758 - 5,0 mm ",null,"GT770 - 7,0 mm ",null,"GT779 - 9,0 mm ",null,null,null,null,null,null,null,null,null,null,null,null,null,null,null,"Großspitz","G"]
["DE028","Alaskan Malamute","Favorita",null,"Opt2","2. Körper sauberes Fell","GT758 - 5,0 mm ",null,"GT770 - 7,0 mm ",null,"GT779 - 9,0 mm ",null,null,null,null,null,null,null,null,null,null,null,null,null,null,null,"Havaneser","H"]
["DE029","Alaskan Malamute","Favorita",null,"Opt3","3. Körper verfilztes Fell","GT754 - 3,0 mm ",null,"GT758 - 5,0 mm ",null,"GT770 - 7,0 mm ",null,null,null,null,null,null,null,null,null,null,null,null,null,null,null,"Husky","H"]
["DE030","Alaskan Malamute","Favorita",null,"Opt6","6. Läufe","Schere VH016C - 190 mm ","Schere VH017C - 200 mm ","Schere VH016C - 190 mm ","Schere VH017C - 200 mm ","Schere VH016C - 190 mm ","Schere VH017C - 200 mm ",null,null,null,null,null,null,null,null,null,null,null,null,null,null,"Irish Setter","I"]
["DE031","Alaskan Malamute","Favorita",null,"Opt4","4. Kopf","Schere VH016C - 190 mm ","Schere VH017C - 200 mm ","Schere VH016C - 190 mm ","Schere VH017C - 200 mm ","Schere VH016C - 190 mm ","Schere VH017C - 200 mm ",null,null,null,null,null,null,null,null,null,null,null,null,null,null,"Irish Terrier","I"]
["DE032","Alaskan Malamute","Favorita",null,"Opt5","5. Ohren","Schere VH016C - 190 mm ","Schere VH017C - 200 mm ","Schere VH016C - 190 mm ","Schere VH017C - 200 mm ","Schere VH016C - 190 mm ","Schere VH017C - 200 mm ",null,null,null,null,null,null,null,null,null,null,null,null,null,null,"Italienischer Volpino",{"$f":"LEFT(AA33,1)","v":"I"}]
["DE033","Amerikanisch Cocker Spaniel","Favorita",null,"Opt8","8. Afterbereich","GT710 - 1,8 mm ","GT742 - 2,0 mm","GT710 - 1,8 mm ","GT742 - 2,0 mm","GT710 - 1,8 mm ","GT742 - 2,0 mm",null,null,null,null,null,null,null,null,null,null,null,null,null,null,"Japan Spitz","J"]
["DE034","Amerikanisch Cocker Spaniel","Favorita",null,"Opt7","7. Pfoten","GH712 - 1,0 mm ","GT772 - 0,7 mm ","GH712 - 1,0 mm ","GT772 - 0,7 mm ","GH712 - 1,0 mm ","GT772 - 0,7 mm ",null,null,null,null,null,null,null,null,null,null,null,null,null,null,"Kerry Blue Terrier","K"]
["DE035","Amerikanisch Cocker Spaniel","Favorita",null,"Opt1","1. Körper normale Fellstruktur","GT758 - 5,0 mm ",null,"GT770 - 7,0 mm ",null,"GT779 - 9,0 mm ",null,null,null,null,null,null,null,null,null,null,null,null,null,null,null,"Labrador","L"]
["DE036","Amerikanisch Cocker Spaniel","Favorita",null,"Opt2","2. Körper sauberes Fell","GT758 - 5,0 mm ",null,"GT770 - 7,0 mm ",null,"GT779 - 9,0 mm ",null,null,null,null,null,null,null,null,null,null,null,null,null,null,null,"Lakeland Terrier","L"]
["DE037","Amerikanisch Cocker Spaniel","Favorita",null,"Opt3","3. Körper verfilztes Fell","GT754 - 3,0 mm ",null,"GT758 - 5,0 mm ",null,"GT770 - 7,0 mm ",null,null,null,null,null,null,null,null,null,null,null,null,null,null,null,"Langhaarcollie","L"]
["DE038","Amerikanisch Cocker Spaniel","Favorita",null,"Opt6","6. Läufe","Schere VH016C - 190 mm ","Schere VH017C - 200 mm ","Schere VH016C - 190 mm ","Schere VH017C - 200 mm ","Schere VH016C - 190 mm ","Schere VH017C - 200 mm ",null,null,null,null,null,null,null,null,null,null,null,null,null,null,"Leonberger","L"]
["DE039","Amerikanisch Cocker Spaniel","Favorita",null,"Opt4","4. Kopf","GT754 - 3,0 mm ",null,"GT754 - 3,0 mm ",null,"GT754 - 3,0 mm ",null,null,null,null,null,null,null,null,null,null,null,null,null,null,null,"Lhasa Apso","L"]
["DE040","Amerikanisch Cocker Spaniel","Favorita",null,"Opt5","5. Ohren","Schere VH016C - 190 mm ","Schere VH017C - 200 mm ","Schere VH016C - 190 mm ","Schere VH017C - 200 mm ","Schere VH016C - 190 mm ","Schere VH017C - 200 mm ",null,null,null,null,null,null,null,null,null,null,null,null,null,null,"Malteser","M"]
["DE041","Australien Shepherd","Favorita",null,"Opt8","8. Afterbereich","GT710 - 1,8 mm ","GT742 - 2,0 mm","GT710 - 1,8 mm ","GT742 - 2,0 mm","GT710 - 1,8 mm ","GT742 - 2,0 mm",null,null,null,null,null,null,null,null,null,null,null,null,null,null,"Mischrassen","M"]
["DE042","Australien Shepherd","Favorita",null,"Opt7","7. Pfoten","GH712 - 1,0 mm ","GT772 - 0,7 mm ","GH712 - 1,0 mm ","GT772 - 0,7 mm ","GH712 - 1,0 mm ","GT772 - 0,7 mm ",null,null,null,null,null,null,null,null,null,null,null,null,null,null,"Mittelspitz","M"]
["DE043","Australien Shepherd","Favorita",null,"Opt1","1. Körper normale Fellstruktur","GT758 - 5,0 mm ",null,"GT770 - 7,0 mm ",null,"GT779 - 9,0 mm ",null,null,null,null,null,null,null,null,null,null,null,null,null,null,null,"Neufundländer","N"]
["DE044","Australien Shepherd","Favorita",null,"Opt2","2. Körper sauberes Fell","GT758 - 5,0 mm ",null,"GT770 - 7,0 mm ",null,"GT779 - 9,0 mm ",null,null,null,null,null,null,null,null,null,null,null,null,null,null,null,"Old English Sheepdog","O"]
["DE045","Australien Shepherd","Favorita",null,"Opt3","3. Körper verfilztes Fell","GT754 - 3,0 mm ",null,"GT758 - 5,0 mm ",null,"GT770 - 7,0 mm ",null,null,null,null,null,null,null,null,null,null,null,null,null,null,null,"Pekinese","P"]
["DE046","Australien Shepherd","Favorita",null,"Opt6","6. Läufe","Schere VH016C - 190 mm ","Schere VH017C - 200 mm ","Schere VH016C - 190 mm ","Schere VH017C - 200 mm ","Schere VH016C - 190 mm ","Schere VH017C - 200 mm ",null,null,null,null,null,null,null,null,null,null,null,null,null,null,"Portugiesischer Wasserhund","P"]
["DE047","Australien Shepherd","Favorita",null,"Opt4","4. Kopf","Schere VH016C - 190 mm ","Schere VH017C - 200 mm ","Schere VH016C - 190 mm ","Schere VH017C - 200 mm ","Schere VH016C - 190 mm ","Schere VH017C - 200 mm ",null,null,null,null,null,null,null,null,null,null,null,null,null,null,"Pudel","P"]
["DE048","Australien Shepherd","Favorita",null,"Opt5","5. Ohren","Schere VH016C - 190 mm ","Schere VH017C - 200 mm ","Schere VH016C - 190 mm ","Schere VH017C - 200 mm ","Schere VH016C - 190 mm ","Schere VH017C - 200 mm ",null,null,null,null,null,null,null,null,null,null,null,null,null,null,"Samojede","S"]
["DE049","Basset","Favorita",null,"Opt8","8. Afterbereich","GT710 - 1,8 mm ","GT742 - 2,0 mm","GT710 - 1,8 mm ","GT742 - 2,0 mm","GT710 - 1,8 mm ","GT742 - 2,0 mm",null,null,null,null,null,null,null,null,null,null,null,null,null,null,"Schnauzer","S"]
["DE050","Basset","Favorita",null,"Opt7","7. Pfoten","GH712 - 1,0 mm ","GT772 - 0,7 mm ","GH712 - 1,0 mm ","GT772 - 0,7 mm ","GH712 - 1,0 mm ","GT772 - 0,7 mm ",null,null,null,null,null,null,null,null,null,null,null,null,null,null,"Scottisch Terrier","S"]
["DE051","Basset","Favorita",null,"Opt1","1. Körper normale Fellstruktur","GT754 - 3,0 mm ",null,"GT758 - 5,0 mm ",null,"GT770 - 7,0 mm ",null,null,null,null,null,null,null,null,null,null,null,null,null,null,null,"Sealyham Terrier","S"]
["DE052","Basset","Favorita",null,"Opt2","2. Körper sauberes Fell","GT754 - 3,0 mm ",null,"GT758 - 5,0 mm ",null,"GT770 - 7,0 mm ",null,null,null,null,null,null,null,null,null,null,null,null,null,null,null,"Shih Tzu","S"]
["DE053","Basset","Favorita",null,"Opt3","3. Körper verfilztes Fell","GT754 - 3,0 mm ",null,"GT758 - 5,0 mm ",null,"GT770 - 7,0 mm ",null,null,null,null,null,null,null,null,null,null,null,null,null,null,null,"Wesh Terrier","W"]
["DE054","Basset","Favorita",null,"Opt6","6. Läufe","GT754 - 3,0 mm ",null,"GT754 - 3,0 mm ",null,"GT754 - 3,0 mm ",null,null,null,null,null,null,null,null,null,null,null,null,null,null,null,"West Highland White Terrier","W"]
["DE055","Basset","Favorita",null,"Opt4","4. Kopf","GT754 - 3,0 mm ",null,"GT754 - 3,0 mm ",null,"GT754 - 3,0 mm ",null,null,null,null,null,null,null,null,null,null,null,null,null,null,null,"Wolfsspitz","W"]
["DE056","Basset","Favorita",null,"Opt5","5. Ohren","GT754 - 3,0 mm ",null,"GT754 - 3,0 mm ",null,"GT754 - 3,0 mm ",null,null,null,null,null,null,null,null,null,null,null,null,null,null,null,"Yorkshire Terrier","Y"]
["DE057","Beagle","Favorita",null,"Opt8","8. Afterbereich","GT710 - 1,8 mm ","GT742 - 2,0 mm","GT710 - 1,8 mm ","GT742 - 2,0 mm","GT710 - 1,8 mm ","GT742 - 2,0 mm",null,null,null,null,null,null,null,null,null,null,null,null,null,null,"Zwergspitz","Z"]
["DE058","Beagle","Favorita",null,"Opt7","7. Pfoten","GH712 - 1,0 mm ","GT772 - 0,7 mm ","GH712 - 1,0 mm ","GT772 - 0,7 mm ","GH712 - 1,0 mm ","GT772 - 0,7 mm "]
["DE059","Beagle","Favorita",null,"Opt1","1. Körper normale Fellstruktur","GT754 - 3,0 mm ",null,"GT758 - 5,0 mm ",null,"GT770 - 7,0 mm "]
["DE060","Beagle","Favorita",null,"Opt2","2. Körper sauberes Fell","GT754 - 3,0 mm ",null,"GT758 - 5,0 mm ",null,"GT770 - 7,0 mm "]
["DE061","Beagle","Favorita",null,"Opt3","3. Körper verfilztes Fell","GT754 - 3,0 mm ",null,"GT758 - 5,0 mm ",null,"GT770 - 7,0 mm "]
["DE062","Beagle","Favorita",null,"Opt6","6. Läufe","GT754 - 3,0 mm ",null,"GT754 - 3,0 mm ",null,"GT754 - 3,0 mm "]
["DE063","Beagle","Favorita",null,"Opt4","4. Kopf","GT754 - 3,0 mm ",null,"GT754 - 3,0 mm ",null,"GT754 - 3,0 mm "]
["DE064","Beagle","Favorita",null,"Opt5","5. Ohren","GT754 - 3,0 mm ",null,"GT754 - 3,0 mm ",null,"GT754 - 3,0 mm "]
["DE065","Bearded Collie","Favorita",null,"Opt8","8. Afterbereich","GT710 - 1,8 mm ","GT742 - 2,0 mm","GT710 - 1,8 mm ","GT742 - 2,0 mm","GT710 - 1,8 mm ","GT742 - 2,0 mm"]
["DE066","Bearded Collie","Favorita",null,{"$f":"\"Opt\"&LEFT(F67,1)","v":"Opt7"},"7. Pfoten","GH712 - 1,0 mm ","GT772 - 0,7 mm ","GH712 - 1,0 mm ","GT772 - 0,7 mm ","GH712 - 1,0 mm ","GT772 - 0,7 mm "]
["DE067","Bearded Collie","Favorita",null,"Opt1","1. Körper normale Fellstruktur","GT758 - 5,0 mm ","Schere VH016C - 190 mm ","GT770 - 7,0 mm ","Schere VH016C - 190 mm ","GT770 - 7,0 mm ","Schere VH016C - 190 mm "]
["DE068","Bearded Collie","Favorita",null,"Opt2","2. Körper sauberes Fell","GT758 - 5,0 mm ","Schere VH016C - 190 mm ","GT770 - 7,0 mm ","Schere VH016C - 190 mm ","GT770 - 7,0 mm ","Schere VH016C - 190 mm "]
["DE069","Bearded Collie","Favorita",null,"Opt3","3. Körper verfilztes Fell","GT758 - 5,0 mm ",null,"GT758 - 5,0 mm ",null,"GT758 - 5,0 mm "]
["DE070","Bearded Collie","Favorita",null,"Opt6","6. Läufe","Schere VH016C - 190 mm ","Schere VH017C - 200 mm ","Schere VH016C - 190 mm ","Schere VH017C - 200 mm ","Schere VH016C - 190 mm ","Schere VH017C - 200 mm "]
["DE071","Bearded Collie","Favorita",null,"Opt4","4. Kopf","Schere VH016C - 190 mm ","Schere VH017C - 200 mm ","Schere VH016C - 190 mm ","Schere VH017C - 200 mm ","Schere VH016C - 190 mm ","Schere VH017C - 200 mm "]
["DE072","Bearded Collie","Favorita",null,"Opt5","5. Ohren","Schere VH016C - 190 mm ","Schere VH017C - 200 mm ","Schere VH016C - 190 mm ","Schere VH017C - 200 mm ","Schere VH016C - 190 mm ","Schere VH017C - 200 mm "]
["DE073","Bedlington Terrier","Favorita",null,"Opt8","8. Afterbereich","GT742 - 2,0 mm",null,"GT742 - 2,0 mm",null,"GT742 - 2,0 mm"]
["DE074","Bedlington Terrier","Favorita",null,"Opt7","7. Pfoten","GH712 - 1,0 mm ","GT772 - 0,7 mm ","GH712 - 1,0 mm ","GT772 - 0,7 mm ","GH712 - 1,0 mm ","GT772 - 0,7 mm "]
["DE075","Bedlington Terrier","Favorita",null,"Opt1","1. Körper normale Fellstruktur","GT779 - 9,0 mm ",null,"GT782 - 12,0 mm ",null,"GT784 - 16,0 mm "]
["DE076","Bedlington Terrier","Favorita",null,"Opt2","2. Körper sauberes Fell","GT779 - 9,0 mm ",null,"GT782 - 12,0 mm ",null,"GT784 - 16,0 mm "]
["DE077","Bedlington Terrier","Favorita",null,"Opt3","3. Körper verfilztes Fell","GT748 - 3,0 mm",null,"GT748 - 3,0 mm",null,"GT748 - 3,0 mm"]
["DE078","Bedlington Terrier","Favorita",null,"Opt6","6. Läufe","Schere VH016C - 190 mm ",null,"Schere VH016C - 190 mm ",null,"Schere VH016C - 190 mm "]
["DE079","Bedlington Terrier","Favorita",null,"Opt4","4. Kopf","GT754 - 3,0 mm ",null,"GT754 - 3,0 mm ",null,"GT754 - 3,0 mm "]
["DE080","Bedlington Terrier","Favorita",null,"Opt5","5. Ohren","GT742 - 2,0 mm",null,"GT742 - 2,0 mm",null,"GT742 - 2,0 mm"]
["DE081","Bichon Frise","Favorita",null,"Opt8","8. Afterbereich","GT742 - 2,0 mm",null,"GT742 - 2,0 mm",null,"GT742 - 2,0 mm"]
["DE082","Bichon Frise","Favorita",null,"Opt7","7. Pfoten","GH712 - 1,0 mm ","GT772 - 0,7 mm ","GH712 - 1,0 mm ","GT772 - 0,7 mm ","GH712 - 1,0 mm ","GT772 - 0,7 mm "]
["DE083","Bichon Frise","Favorita",null,"Opt1","1. Körper normale Fellstruktur","GT779 - 9,0 mm ",null,"GT782 - 12,0 mm ",null,"GT784 - 16,0 mm "]
["DE084","Bichon Frise","Favorita",null,"Opt2","2. Körper sauberes Fell","GT779 - 9,0 mm ",null,"GT782 - 12,0 mm ",null,"GT784 - 16,0 mm "]
["DE085","Bichon Frise","Favorita",null,"Opt3","3. Körper verfilztes Fell","GT748 - 3,0 mm",null,"GT748 - 3,0 mm",null,"GT748 - 3,0 mm"]
["DE086","Bichon Frise","Favorita",null,"Opt6","6. Läufe","Schere VH016C - 190 mm ","Schere VH017C - 200 mm ","Schere VH016C - 190 mm ","Schere VH017C - 200 mm ","Schere VH016C - 190 mm ","Schere VH017C - 200 mm "]
["DE087","Bichon Frise","Favorita",null,"Opt4","4. Kopf","Schere VH016C - 190 mm ","Schere VH017C - 200 mm ","Schere VH016C - 190 mm ","Schere VH017C - 200 mm ","Schere VH016C - 190 mm ","Schere VH017C - 200 mm "]
["DE088","Bichon Frise","Favorita",null,"Opt5","5. Ohren","Schere VH016C - 190 mm ","Schere VH017C - 200 mm ","Schere VH016C - 190 mm ","Schere VH017C - 200 mm ","Schere VH016C - 190 mm ","Schere VH017C - 200 mm "]
["DE089","Bobtail","Favorita",null,"Opt8","8. Afterbereich","GT710 - 1,8 mm ","GT742 - 2,0 mm","GT710 - 1,8 mm ","GT742 - 2,0 mm","GT710 - 1,8 mm ","GT742 - 2,0 mm"]
["DE090","Bobtail","Favorita",null,"Opt7","7. Pfoten","GH712 - 1,0 mm ","GT772 - 0,7 mm ","GH712 - 1,0 mm ","GT772 - 0,7 mm ","GH712 - 1,0 mm ","GT772 - 0,7 mm "]
["DE091","Bobtail","Favorita",null,"Opt1","1. Körper normale Fellstruktur","GT779 - 9,0 mm ",null,"GT782 - 12,0 mm ",null,"GT784 - 16,0 mm "]
["DE092","Bobtail","Favorita",null,"Opt2","2. Körper sauberes Fell","GT779 - 9,0 mm ",null,"GT782 - 12,0 mm ",null,"GT784 - 16,0 mm "]
["DE093","Bobtail","Favorita",null,"Opt3","3. Körper verfilztes Fell","GT754 - 3,0 mm ",null,"GT758 - 5,0 mm ",null,"GT758 - 5,0 mm "]
["DE094","Bobtail","Favorita",null,"Opt6","6. Läufe","Schere VH016C - 190 mm ","Schere VH017C - 200 mm ","Schere VH016C - 190 mm ","Schere VH017C - 200 mm ","Schere VH016C - 190 mm ","Schere VH017C - 200 mm "]
["DE095","Bobtail","Favorita",null,"Opt4","4. Kopf","Schere VH016C - 190 mm ","Schere VH017C - 200 mm ","Schere VH016C - 190 mm ","Schere VH017C - 200 mm ","Schere VH016C - 190 mm ","Schere VH017C - 200 mm "]
["DE096","Bobtail","Favorita",null,"Opt5","5. Ohren","Schere VH016C - 190 mm ","Schere VH017C - 200 mm ","Schere VH016C - 190 mm ","Schere VH017C - 200 mm ","Schere VH016C - 190 mm ","Schere VH017C - 200 mm "]
["DE097","Border Collie","Favorita",null,"Opt8","8. Afterbereich","GT710 - 1,8 mm ","GT742 - 2,0 mm","GT710 - 1,8 mm ","GT742 - 2,0 mm","GT710 - 1,8 mm ","GT742 - 2,0 mm"]
["DE098","Border Collie","Favorita",null,"Opt7","7. Pfoten","GH712 - 1,0 mm ","GT772 - 0,7 mm ","GH712 - 1,0 mm ","GT772 - 0,7 mm ","GH712 - 1,0 mm ","GT772 - 0,7 mm "]
["DE099","Border Collie","Favorita",null,"Opt1","1. Körper normale Fellstruktur","GT758 - 5,0 mm ","Schere VH016C - 190 mm ","GT770 - 7,0 mm ","Schere VH016C - 190 mm ","GT770 - 7,0 mm ","Schere VH016C - 190 mm "]
["DE100","Border Collie","Favorita",null,"Opt2","2. Körper sauberes Fell","GT758 - 5,0 mm ","Schere VH016C - 190 mm ","GT770 - 7,0 mm ","Schere VH016C - 190 mm ","GT770 - 7,0 mm ","Schere VH016C - 190 mm "]
["DE101","Border Collie","Favorita",null,"Opt3","3. Körper verfilztes Fell","GT758 - 5,0 mm ",null,"GT758 - 5,0 mm ",null,"GT758 - 5,0 mm "]
["DE102","Border Collie","Favorita",null,"Opt6","6. Läufe","Schere VH016C - 190 mm ","Schere VH017C - 200 mm ","Schere VH016C - 190 mm ","Schere VH017C - 200 mm ","Schere VH016C - 190 mm ","Schere VH017C - 200 mm "]
["DE103","Border Collie","Favorita",null,"Opt4","4. Kopf","Schere VH016C - 190 mm ","Schere VH017C - 200 mm ","Schere VH016C - 190 mm ","Schere VH017C - 200 mm ","Schere VH016C - 190 mm ","Schere VH017C - 200 mm "]
["DE104","Border Collie","Favorita",null,"Opt5","5. Ohren","Schere VH016C - 190 mm ","Schere VH017C - 200 mm ","Schere VH016C - 190 mm ","Schere VH017C - 200 mm ","Schere VH016C - 190 mm ","Schere VH017C - 200 mm "]
["DE105","Bouvier des Flanders","Favorita",null,"Opt8","8. Afterbereich","GT710 - 1,8 mm ","GT742 - 2,0 mm","GT710 - 1,8 mm ","GT742 - 2,0 mm","GT710 - 1,8 mm ","GT742 - 2,0 mm"]
["DE106","Bouvier des Flanders","Favorita",null,"Opt7","7. Pfoten","GH712 - 1,0 mm ","GT772 - 0,7 mm ","GH712 - 1,0 mm ","GT772 - 0,7 mm ","GH712 - 1,0 mm ","GT772 - 0,7 mm "]
["DE107","Bouvier des Flanders","Favorita",null,"Opt1","1. Körper normale Fellstruktur","GT779 - 9,0 mm ",null,"GT782 - 12,0 mm ",null,"GT784 - 16,0 mm "]
["DE108","Bouvier des Flanders","Favorita",null,"Opt2","2. Körper sauberes Fell","GT779 - 9,0 mm ",null,"GT782 - 12,0 mm ",null,"GT784 - 16,0 mm "]
["DE109","Bouvier des Flanders","Favorita",null,"Opt3","3. Körper verfilztes Fell","GT758 - 5,0 mm ",null,"GT770 - 7,0 mm ",null,"GT779 - 9,0 mm "]
["DE110","Bouvier des Flanders","Favorita",null,"Opt6","6. Läufe","Schere VH016C - 190 mm ","Schere VH017C - 200 mm ","Schere VH016C - 190 mm ","Schere VH017C - 200 mm ","Schere VH016C - 190 mm ","Schere VH017C - 200 mm "]
["DE111","Bouvier des Flanders","Favorita",null,"Opt4","4. Kopf","GT754 - 3,0 mm ",null,"GT754 - 3,0 mm ",null,"GT754 - 3,0 mm "]
["DE112","Bouvier des Flanders","Favorita",null,"Opt5","5. Ohren","GH715 - 2,0 mm",null,"GH715 - 2,0 mm",null,"GH715 - 2,0 mm"]
["DE113","Briard","Favorita",null,"Opt8","8. Afterbereich","GT710 - 1,8 mm ","GT742 - 2,0 mm","GT710 - 1,8 mm ","GT742 - 2,0 mm","GT710 - 1,8 mm ","GT742 - 2,0 mm"]
["DE114","Briard","Favorita",null,"Opt7","7. Pfoten","GH712 - 1,0 mm ","GT772 - 0,7 mm ","GH712 - 1,0 mm ","GT772 - 0,7 mm ","GH712 - 1,0 mm ","GT772 - 0,7 mm "]
["DE115","Briard","Favorita",null,"Opt1","1. Körper normale Fellstruktur","GT779 - 9,0 mm ",null,"GT782 - 12,0 mm ",null,"GT784 - 16,0 mm "]
["DE116","Briard","Favorita",null,"Opt2","2. Körper sauberes Fell","GT779 - 9,0 mm ",null,"GT782 - 12,0 mm ",null,"GT784 - 16,0 mm "]
["DE117","Briard","Favorita",null,"Opt3","3. Körper verfilztes Fell","GT754 - 3,0 mm ",null,"GT758 - 5,0 mm ",null,"GT770 - 7,0 mm "]
["DE118","Briard","Favorita",null,"Opt6","6. Läufe","Schere VH016C - 190 mm ","Schere VH017C - 200 mm ","Schere VH016C - 190 mm ","Schere VH017C - 200 mm ","Schere VH016C - 190 mm ","Schere VH017C - 200 mm "]
["DE119","Briard","Favorita",null,"Opt4","4. Kopf","GT754 - 3,0 mm ",null,"GT754 - 3,0 mm ",null,"GT754 - 3,0 mm "]
["DE120","Briard","Favorita",null,"Opt5","5. Ohren","GH715 - 2,0 mm",null,"GH715 - 2,0 mm",null,"GH715 - 2,0 mm"]
["DE121","Cairn Terrier","Favorita",null,"Opt8","8. Afterbereich","GT742 - 2,0 mm",null,"GT742 - 2,0 mm",null,"GT742 - 2,0 mm"]
["DE122","Cairn Terrier","Favorita",null,"Opt7","7. Pfoten","GH712 - 1,0 mm ","GT772 - 0,7 mm ","GH712 - 1,0 mm ","GT772 - 0,7 mm ","GH712 - 1,0 mm ","GT772 - 0,7 mm "]
["DE123","Cairn Terrier","Favorita",null,"Opt1","1. Körper normale Fellstruktur","Trimmmesser",null,"Trimmmesser",null,"Trimmmesser"]
["DE124","Cairn Terrier","Favorita",null,"Opt2","2. Körper sauberes Fell","GT754 - 3,0 mm ",null,"GT758 - 5,0 mm ",null,"GT770 - 7,0 mm "]
["DE125","Cairn Terrier","Favorita",null,"Opt3","3. Körper verfilztes Fell","GT748 - 3,0 mm",null,"GT748 - 3,0 mm",null,"GT748 - 3,0 mm"]
["DE126","Cairn Terrier","Favorita",null,"Opt6","6. Läufe","Schere VH016C - 190 mm ",null,"Schere VH016C - 190 mm ",null,"Schere VH016C - 190 mm "]
["DE127","Cairn Terrier","Favorita",null,"Opt4","4. Kopf","GT754 - 3,0 mm ",null,"GT754 - 3,0 mm ",null,"GT754 - 3,0 mm "]
["DE128","Cairn Terrier","Favorita",null,"Opt5","5. Ohren","GT742 - 2,0 mm",null,"GT742 - 2,0 mm",null,"GT742 - 2,0 mm"]
["DE129","Chihuahua","Favorita",null,"Opt8","8. Afterbereich","GT710 - 1,8 mm ","GT742 - 2,0 mm","GT710 - 1,8 mm ","GT742 - 2,0 mm","GT710 - 1,8 mm ","GT742 - 2,0 mm"]
["DE130","Chihuahua","Favorita",null,{"$f":"\"Opt\"&LEFT(F131,1)","v":"Opt7"},"7. Pfoten","GH712 - 1,0 mm ","GT772 - 0,7 mm ","GH712 - 1,0 mm ","GT772 - 0,7 mm ","GH712 - 1,0 mm ","GT772 - 0,7 mm "]
["DE131","Chihuahua","Favorita",null,"Opt1","1. Körper normale Fellstruktur","GT779 - 9,0 mm ",null,"GT782 - 12,0 mm ",null,"GT784 - 16,0 mm "]
["DE132","Chihuahua","Favorita",null,"Opt2","2. Körper sauberes Fell","GT779 - 9,0 mm ",null,"GT782 - 12,0 mm ",null,"GT784 - 16,0 mm "]
["DE133","Chihuahua","Favorita",null,"Opt3","3. Körper verfilztes Fell","GT748 - 3,0 mm",null,"GT748 - 3,0 mm",null,"GT748 - 3,0 mm"]
["DE134","Chihuahua","Favorita",null,"Opt6","6. Läufe","Schere VH016C - 190 mm ","Schere VH017C - 200 mm ","Schere VH016C - 190 mm ","Schere VH017C - 200 mm ","Schere VH016C - 190 mm ","Schere VH017C - 200 mm "]
["DE135","Chihuahua","Favorita",null,"Opt4","4. Kopf","Schere VH016C - 190 mm ","Schere VH017C - 200 mm ","Schere VH016C - 190 mm ","Schere VH017C - 200 mm ","Schere VH016C - 190 mm ","Schere VH017C - 200 mm "]
["DE136","Chihuahua","Favorita",null,"Opt5","5. Ohren","Schere VH016C - 190 mm ","Schere VH017C - 200 mm ","Schere VH016C - 190 mm ","Schere VH017C - 200 mm ","Schere VH016C - 190 mm ","Schere VH017C - 200 mm "]
["DE137","Chow Chow","Favorita",null,"Opt8","8. Afterbereich","GT710 - 1,8 mm ","GT742 - 2,0 mm","GT710 - 1,8 mm ","GT742 - 2,0 mm","GT710 - 1,8 mm ","GT742 - 2,0 mm"]
["DE138","Chow Chow","Favorita",null,"Opt7","7. Pfoten","GH712 - 1,0 mm ","GT772 - 0,7 mm ","GH712 - 1,0 mm ","GT772 - 0,7 mm ","GH712 - 1,0 mm ","GT772 - 0,7 mm "]
["DE139","Chow Chow","Favorita",null,"Opt1","1. Körper normale Fellstruktur","GT779 - 9,0 mm ",null,"GT782 - 12,0 mm ",null,"GT784 - 16,0 mm "]
["DE140","Chow Chow","Favorita",null,"Opt2","2. Körper sauberes Fell","GT779 - 9,0 mm ",null,"GT782 - 12,0 mm ",null,"GT784 - 16,0 mm "]
["DE141","Chow Chow","Favorita",null,"Opt3","3. Körper verfilztes Fell","GT754 - 3,0 mm ",null,"GT758 - 5,0 mm ",null,"GT770 - 7,0 mm "]
["DE142","Chow Chow","Favorita",null,"Opt6","6. Läufe","Schere VH016C - 190 mm ","Schere VH017C - 200 mm ","Schere VH016C - 190 mm ","Schere VH017C - 200 mm ","Schere VH016C - 190 mm ","Schere VH017C - 200 mm "]
["DE143","Chow Chow","Favorita",null,"Opt4","4. Kopf","Schere VH016C - 190 mm ","Schere VH017C - 200 mm ","Schere VH016C - 190 mm ","Schere VH017C - 200 mm ","Schere VH016C - 190 mm ","Schere VH017C - 200 mm "]
["DE144","Chow Chow","Favorita",null,"Opt5","5. Ohren","Schere VH016C - 190 mm ","Schere VH017C - 200 mm ","Schere VH016C - 190 mm ","Schere VH017C - 200 mm ","Schere VH016C - 190 mm ","Schere VH017C - 200 mm "]
["DE145","Cocker Spaniel","Favorita",null,"Opt8","8. Afterbereich","GT710 - 1,8 mm ","GT742 - 2,0 mm","GT710 - 1,8 mm ","GT742 - 2,0 mm","GT710 - 1,8 mm ","GT742 - 2,0 mm"]
["DE146","Cocker Spaniel","Favorita",null,"Opt7","7. Pfoten","GH712 - 1,0 mm ","GT772 - 0,7 mm ","GH712 - 1,0 mm ","GT772 - 0,7 mm ","GH712 - 1,0 mm ","GT772 - 0,7 mm "]
["DE147","Cocker Spaniel","Favorita",null,"Opt1","1. Körper normale Fellstruktur","GT758 - 5,0 mm ",null,"GT770 - 7,0 mm ",null,"GT779 - 9,0 mm "]
["DE148","Cocker Spaniel","Favorita",null,"Opt2","2. Körper sauberes Fell","GT758 - 5,0 mm ",null,"GT770 - 7,0 mm ",null,"GT779 - 9,0 mm "]
["DE149","Cocker Spaniel","Favorita",null,"Opt3","3. Körper verfilztes Fell","GT754 - 3,0 mm ",null,"GT758 - 5,0 mm ",null,"GT770 - 7,0 mm "]
["DE150","Cocker Spaniel","Favorita",null,"Opt6","6. Läufe","Schere VH016C - 190 mm ","Schere VH017C - 200 mm ","Schere VH016C - 190 mm ","Schere VH017C - 200 mm ","Schere VH016C - 190 mm ","Schere VH017C - 200 mm "]
["DE151","Cocker Spaniel","Favorita",null,"Opt4","4. Kopf","GT754 - 3,0 mm ",null,"GT754 - 3,0 mm ",null,"GT754 - 3,0 mm "]
["DE152","Cocker Spaniel","Favorita",null,"Opt5","5. Ohren","Schere VH016C - 190 mm ","Schere VH017C - 200 mm ","Schere VH016C - 190 mm ","Schere VH017C - 200 mm ","Schere VH016C - 190 mm ","Schere VH017C - 200 mm "]
["DE161","Dandie Dinmont Terrier","Favorita",null,"Opt8","8. Afterbereich","GT742 - 2,0 mm",null,"GT742 - 2,0 mm",null,"GT742 - 2,0 mm"]
["DE162","Dandie Dinmont Terrier","Favorita",null,"Opt7","7. Pfoten","GH712 - 1,0 mm ","GT772 - 0,7 mm ","GH712 - 1,0 mm ","GT772 - 0,7 mm ","GH712 - 1,0 mm ","GT772 - 0,7 mm "]
["DE163","Dandie Dinmont Terrier","Favorita",null,"Opt1","1. Körper normale Fellstruktur","Trimmmesser",null,"Trimmmesser",null,"Trimmmesser"]
["DE164","Dandie Dinmont Terrier","Favorita",null,"Opt2","2. Körper sauberes Fell","GT754 - 3,0 mm ",null,"GT758 - 5,0 mm ",null,"GT770 - 7,0 mm "]
["DE165","Dandie Dinmont Terrier","Favorita",null,"Opt3","3. Körper verfilztes Fell","GT748 - 3,0 mm",null,"GT748 - 3,0 mm",null,"GT748 - 3,0 mm"]
["DE166","Dandie Dinmont Terrier","Favorita",null,"Opt6","6. Läufe","Schere VH016C - 190 mm ",null,"Schere VH016C - 190 mm ",null,"Schere VH016C - 190 mm "]
["DE167","Dandie Dinmont Terrier","Favorita",null,"Opt4","4. Kopf","GT754 - 3,0 mm ",null,"GT754 - 3,0 mm ",null,"GT754 - 3,0 mm "]
["DE168","Dandie Dinmont Terrier","Favorita",null,"Opt5","5. Ohren","GT742 - 2,0 mm",null,"GT742 - 2,0 mm",null,"GT742 - 2,0 mm"]
["DE169","Doodle","Favorita",null,"Opt8","8. Afterbereich","GT710 - 1,8 mm ","GT742 - 2,0 mm","GT710 - 1,8 mm ","GT742 - 2,0 mm","GT710 - 1,8 mm ","GT742 - 2,0 mm"]
["DE170","Doodle","Favorita",null,"Opt7","7. Pfoten","GH712 - 1,0 mm ","GT772 - 0,7 mm ","GH712 - 1,0 mm ","GT772 - 0,7 mm ","GH712 - 1,0 mm ","GT772 - 0,7 mm "]
["DE171","Doodle","Favorita",null,"Opt1","1. Körper normale Fellstruktur","GT770 - 7,0 mm ",null,"GT782 - 12,0 mm ",null,"GT784 - 16,0 mm "]
["DE172","Doodle","Favorita",null,"Opt2","2. Körper sauberes Fell","GT770 - 7,0 mm ",null,"GT782 - 12,0 mm ",null,"GT784 - 16,0 mm "]
["DE173","Doodle","Favorita",null,"Opt3","3. Körper verfilztes Fell","GT748 - 3,0 mm",null,"GT748 - 3,0 mm",null,"GT748 - 3,0 mm"]
["DE174","Doodle","Favorita",null,"Opt6","6. Läufe","Schere VH016C - 190 mm ","Schere VH017C - 200 mm ","Schere VH016C - 190 mm ","Schere VH017C - 200 mm ","Schere VH016C - 190 mm ","Schere VH017C - 200 mm "]
["DE175","Doodle","Favorita",null,"Opt4","4. Kopf","Schere VH016C - 190 mm ","Schere VH017C - 200 mm ","Schere VH016C - 190 mm ","Schere VH017C - 200 mm ","Schere VH016C - 190 mm ","Schere VH017C - 200 mm "]
["DE176","Doodle","Favorita",null,"Opt5","5. Ohren","Schere VH016C - 190 mm ","Schere VH017C - 200 mm ","Schere VH016C - 190 mm ","Schere VH017C - 200 mm ","Schere VH016C - 190 mm ","Schere VH017C - 200 mm "]
["DE177","Englisch Cocker Spaniel","Favorita",null,"Opt8","8. Afterbereich","GT710 - 1,8 mm ","GT742 - 2,0 mm","GT710 - 1,8 mm ","GT742 - 2,0 mm","GT710 - 1,8 mm ","GT742 - 2,0 mm"]
["DE178","Englisch Cocker Spaniel","Favorita",null,"Opt7","7. Pfoten","GH712 - 1,0 mm ","GT772 - 0,7 mm ","GH712 - 1,0 mm ","GT772 - 0,7 mm ","GH712 - 1,0 mm ","GT772 - 0,7 mm "]
["DE179","Englisch Cocker Spaniel","Favorita",null,"Opt1","1. Körper normale Fellstruktur","GT758 - 5,0 mm ",null,"GT770 - 7,0 mm ",null,"GT779 - 9,0 mm "]
["DE180","Englisch Cocker Spaniel","Favorita",null,"Opt2","2. Körper sauberes Fell","GT758 - 5,0 mm ",null,"GT770 - 7,0 mm ",null,"GT779 - 9,0 mm "]
["DE181","Englisch Cocker Spaniel","Favorita",null,"Opt3","3. Körper verfilztes Fell","GT754 - 3,0 mm ",null,"GT758 - 5,0 mm ",null,"GT770 - 7,0 mm "]
["DE182","Englisch Cocker Spaniel","Favorita",null,"Opt6","6. Läufe","Schere VH016C - 190 mm ","Schere VH017C - 200 mm ","Schere VH016C - 190 mm ","Schere VH017C - 200 mm ","Schere VH016C - 190 mm ","Schere VH017C - 200 mm "]
["DE183","Englisch Cocker Spaniel","Favorita",null,"Opt4","4. Kopf","GT754 - 3,0 mm ",null,"GT754 - 3,0 mm ",null,"GT754 - 3,0 mm "]
["DE184","Englisch Cocker Spaniel","Favorita",null,"Opt5","5. Ohren","Schere VH016C - 190 mm ","Schere VH017C - 200 mm ","Schere VH016C - 190 mm ","Schere VH017C - 200 mm ","Schere VH016C - 190 mm ","Schere VH017C - 200 mm "]
["DE185","Englisch Setter","Favorita",null,"Opt8","8. Afterbereich","GT710 - 1,8 mm ","GT742 - 2,0 mm","GT710 - 1,8 mm ","GT742 - 2,0 mm","GT710 - 1,8 mm ","GT742 - 2,0 mm"]
["DE186","Englisch Setter","Favorita",null,"Opt7","7. Pfoten","GH712 - 1,0 mm ","GT772 - 0,7 mm ","GH712 - 1,0 mm ","GT772 - 0,7 mm ","GH712 - 1,0 mm ","GT772 - 0,7 mm "]
["DE187","Englisch Setter","Favorita",null,"Opt1","1. Körper normale Fellstruktur","GT758 - 5,0 mm ",null,"GT770 - 7,0 mm ",null,"GT779 - 9,0 mm "]
["DE188","Englisch Setter","Favorita",null,"Opt2","2. Körper sauberes Fell","GT758 - 5,0 mm ",null,"GT770 - 7,0 mm ",null,"GT779 - 9,0 mm "]
["DE189","Englisch Setter","Favorita",null,"Opt3","3. Körper verfilztes Fell","GT754 - 3,0 mm ",null,"GT758 - 5,0 mm ",null,"GT770 - 7,0 mm "]
["DE190","Englisch Setter","Favorita",null,"Opt6","6. Läufe","Schere VH016C - 190 mm ","Schere VH017C - 200 mm ","Schere VH016C - 190 mm ","Schere VH017C - 200 mm ","Schere VH016C - 190 mm ","Schere VH017C - 200 mm "]
["DE191","Englisch Setter","Favorita",null,"Opt4","4. Kopf","GT754 - 3,0 mm ",null,"GT754 - 3,0 mm ",null,"GT754 - 3,0 mm "]
["DE192","Englisch Setter","Favorita",null,"Opt5","5. Ohren","Schere VH016C - 190 mm ","Schere VH017C - 200 mm ","Schere VH016C - 190 mm ","Schere VH017C - 200 mm ","Schere VH016C - 190 mm ","Schere VH017C - 200 mm "]
["DE193","Englisch Springer Spaniel","Favorita",null,"Opt8","8. Afterbereich","GT710 - 1,8 mm ","GT742 - 2,0 mm","GT710 - 1,8 mm ","GT742 - 2,0 mm","GT710 - 1,8 mm ","GT742 - 2,0 mm"]
["DE194","Englisch Springer Spaniel","Favorita",null,"Opt7","7. Pfoten","GH712 - 1,0 mm ","GT772 - 0,7 mm ","GH712 - 1,0 mm ","GT772 - 0,7 mm ","GH712 - 1,0 mm ","GT772 - 0,7 mm "]
["DE195","Englisch Springer Spaniel","Favorita",null,"Opt1","1. Körper normale Fellstruktur","GT758 - 5,0 mm ",null,"GT770 - 7,0 mm ",null,"GT779 - 9,0 mm "]
["DE196","Englisch Springer Spaniel","Favorita",null,"Opt2","2. Körper sauberes Fell","GT758 - 5,0 mm ",null,"GT770 - 7,0 mm ",null,"GT779 - 9,0 mm "]
["DE197","Englisch Springer Spaniel","Favorita",null,"Opt3","3. Körper verfilztes Fell","GT754 - 3,0 mm ",null,"GT758 - 5,0 mm ",null,"GT770 - 7,0 mm "]
["DE198","Englisch Springer Spaniel","Favorita",null,"Opt6","6. Läufe","Schere VH016C - 190 mm ","Schere VH017C - 200 mm ","Schere VH016C - 190 mm ","Schere VH017C - 200 mm ","Schere VH016C - 190 mm ","Schere VH017C - 200 mm "]
["DE199","Englisch Springer Spaniel","Favorita",null,"Opt4","4. Kopf","GT754 - 3,0 mm ",null,"GT754 - 3,0 mm ",null,"GT754 - 3,0 mm "]
["DE200","Englisch Springer Spaniel","Favorita",null,"Opt5","5. Ohren","Schere VH016C - 190 mm ","Schere VH017C - 200 mm ","Schere VH016C - 190 mm ","Schere VH017C - 200 mm ","Schere VH016C - 190 mm ","Schere VH017C - 200 mm "]
["DE201","Fox Terrier","Favorita",null,"Opt8","8. Afterbereich","GT742 - 2,0 mm",null,"GT742 - 2,0 mm",null,"GT742 - 2,0 mm"]
["DE202","Fox Terrier","Favorita",null,{"$f":"\"Opt\"&LEFT(F195,1)","v":"Opt7"},"7. Pfoten","GH712 - 1,0 mm ","GT772 - 0,7 mm ","GH712 - 1,0 mm ","GT772 - 0,7 mm ","GH712 - 1,0 mm ","GT772 - 0,7 mm "]
["DE203","Fox Terrier","Favorita",null,"Opt1","1. Körper normale Fellstruktur","Trimmmesser",null,"Trimmmesser",null,"Trimmmesser"]
["DE204","Fox Terrier","Favorita",null,"Opt2","2. Körper sauberes Fell","GT754 - 3,0 mm ",null,"GT758 - 5,0 mm ",null,"GT770 - 7,0 mm "]
["DE205","Fox Terrier","Favorita",null,"Opt3","3. Körper verfilztes Fell","GT748 - 3,0 mm",null,"GT748 - 3,0 mm",null,"GT748 - 3,0 mm"]
["DE206","Fox Terrier","Favorita",null,"Opt6","6. Läufe","Schere VH016C - 190 mm ",null,"Schere VH016C - 190 mm ",null,"Schere VH016C - 190 mm "]
["DE207","Fox Terrier","Favorita",null,"Opt4","4. Kopf","GT754 - 3,0 mm ",null,"GT754 - 3,0 mm ",null,"GT754 - 3,0 mm "]
["DE208","Fox Terrier","Favorita",null,"Opt5","5. Ohren","GT742 - 2,0 mm",null,"GT742 - 2,0 mm",null,"GT742 - 2,0 mm"]
["DE209","Golden Retriever","Favorita",null,"Opt8","8. Afterbereich","GT710 - 1,8 mm ","GT742 - 2,0 mm","GT710 - 1,8 mm ","GT742 - 2,0 mm","GT710 - 1,8 mm ","GT742 - 2,0 mm"]
["DE210","Golden Retriever","Favorita",null,"Opt7","7. Pfoten","GH712 - 1,0 mm ","GT772 - 0,7 mm ","GH712 - 1,0 mm ","GT772 - 0,7 mm ","GH712 - 1,0 mm ","GT772 - 0,7 mm "]
["DE211","Golden Retriever","Favorita",null,"Opt1","1. Körper normale Fellstruktur","GT770 - 7,0 mm ",null,"GT779 - 9,0 mm ",null,"GT782 - 12,0 mm "]
["DE212","Golden Retriever","Favorita",null,"Opt2","2. Körper sauberes Fell","GT770 - 7,0 mm ",null,"GT779 - 9,0 mm ",null,"GT782 - 12,0 mm "]
["DE213","Golden Retriever","Favorita",null,"Opt3","3. Körper verfilztes Fell","GT754 - 3,0 mm ",null,"GT758 - 5,0 mm ",null,"GT770 - 7,0 mm "]
["DE214","Golden Retriever","Favorita",null,"Opt6","6. Läufe","Schere VH016C - 190 mm ","Schere VH017C - 200 mm ","Schere VH016C - 190 mm ","Schere VH017C - 200 mm ","Schere VH016C - 190 mm ","Schere VH017C - 200 mm "]
["DE215","Golden Retriever","Favorita",null,"Opt4","4. Kopf","Schere VH016C - 190 mm ","Schere VH017C - 200 mm ","Schere VH016C - 190 mm ","Schere VH017C - 200 mm ","Schere VH016C - 190 mm ","Schere VH017C - 200 mm "]
["DE216","Golden Retriever","Favorita",null,"Opt5","5. Ohren","Schere VH016C - 190 mm ","Schere VH017C - 200 mm ","Schere VH016C - 190 mm ","Schere VH017C - 200 mm ","Schere VH016C - 190 mm ","Schere VH017C - 200 mm "]
["DE217","Gordon Setter","Favorita",null,"Opt8","8. Afterbereich","GT710 - 1,8 mm ","GT742 - 2,0 mm","GT710 - 1,8 mm ","GT742 - 2,0 mm","GT710 - 1,8 mm ","GT742 - 2,0 mm"]
["DE218","Gordon Setter","Favorita",null,"Opt7","7. Pfoten","GH712 - 1,0 mm ","GT772 - 0,7 mm ","GH712 - 1,0 mm ","GT772 - 0,7 mm ","GH712 - 1,0 mm ","GT772 - 0,7 mm "]
["DE219","Gordon Setter","Favorita",null,"Opt1","1. Körper normale Fellstruktur","GT758 - 5,0 mm ",null,"GT770 - 7,0 mm ",null,"GT779 - 9,0 mm "]
["DE220","Gordon Setter","Favorita",null,"Opt2","2. Körper sauberes Fell","GT758 - 5,0 mm ",null,"GT770 - 7,0 mm ",null,"GT779 - 9,0 mm "]
["DE221","Gordon Setter","Favorita",null,"Opt3","3. Körper verfilztes Fell","GT754 - 3,0 mm ",null,"GT758 - 5,0 mm ",null,"GT770 - 7,0 mm "]
["DE222","Gordon Setter","Favorita",null,"Opt6","6. Läufe","Schere VH016C - 190 mm ","Schere VH017C - 200 mm ","Schere VH016C - 190 mm ","Schere VH017C - 200 mm ","Schere VH016C - 190 mm ","Schere VH017C - 200 mm "]
["DE223","Gordon Setter","Favorita",null,"Opt4","4. Kopf","GT754 - 3,0 mm ",null,"GT754 - 3,0 mm ",null,"GT754 - 3,0 mm "]
["DE224","Gordon Setter","Favorita",null,"Opt5","5. Ohren","Schere VH016C - 190 mm ","Schere VH017C - 200 mm ","Schere VH016C - 190 mm ","Schere VH017C - 200 mm ","Schere VH016C - 190 mm ","Schere VH017C - 200 mm "]
["DE225","Großspitz","Favorita",null,"Opt8","8. Afterbereich","GT710 - 1,8 mm ","GT742 - 2,0 mm","GT710 - 1,8 mm ","GT742 - 2,0 mm","GT710 - 1,8 mm ","GT742 - 2,0 mm"]
["DE226","Großspitz","Favorita",null,"Opt7","7. Pfoten","GH712 - 1,0 mm ","GT772 - 0,7 mm ","GH712 - 1,0 mm ","GT772 - 0,7 mm ","GH712 - 1,0 mm ","GT772 - 0,7 mm "]
["DE227","Großspitz","Favorita",null,"Opt1","1. Körper normale Fellstruktur","GT758 - 5,0 mm ",null,"GT770 - 7,0 mm ",null,"GT779 - 9,0 mm "]
["DE228","Großspitz","Favorita",null,"Opt2","2. Körper sauberes Fell","GT758 - 5,0 mm ",null,"GT770 - 7,0 mm ",null,"GT779 - 9,0 mm "]
["DE229","Großspitz","Favorita",null,"Opt3","3. Körper verfilztes Fell","GT754 - 3,0 mm ",null,"GT758 - 5,0 mm ",null,"GT770 - 7,0 mm "]
["DE230","Großspitz","Favorita",null,"Opt6","6. Läufe","Schere VH016C - 190 mm ","Schere VH017C - 200 mm ","Schere VH016C - 190 mm ","Schere VH017C - 200 mm ","Schere VH016C - 190 mm ","Schere VH017C - 200 mm "]
["DE231","Großspitz","Favorita",null,"Opt4","4. Kopf","Schere VH016C - 190 mm ","Schere VH017C - 200 mm ","Schere VH016C - 190 mm ","Schere VH017C - 200 mm ","Schere VH016C - 190 mm ","Schere VH017C - 200 mm "]
["DE232","Großspitz","Favorita",null,"Opt5","5. Ohren","Schere VH016C - 190 mm ","Schere VH017C - 200 mm ","Schere VH016C - 190 mm ","Schere VH017C - 200 mm ","Schere VH016C - 190 mm ","Schere VH017C - 200 mm "]
["DE233","Havaneser","Favorita",null,"Opt8","8. Afterbereich","GT710 - 1,8 mm ","GT742 - 2,0 mm","GT710 - 1,8 mm ","GT742 - 2,0 mm","GT710 - 1,8 mm ","GT742 - 2,0 mm"]
["DE234","Havaneser","Favorita",null,"Opt7","7. Pfoten","GH712 - 1,0 mm ","GT772 - 0,7 mm ","GH712 - 1,0 mm ","GT772 - 0,7 mm ","GH712 - 1,0 mm ","GT772 - 0,7 mm "]
["DE235","Havaneser","Favorita",null,"Opt1","1. Körper normale Fellstruktur","GT770 - 7,0 mm ","Schere VH016C - 190 mm ","GT779 - 9,0 mm ","Schere VH016C - 190 mm ","GT782 - 12,0 mm ","Schere VH016C - 190 mm "]
["DE236","Havaneser","Favorita",null,"Opt2","2. Körper sauberes Fell","GT770 - 7,0 mm ","Schere VH016C - 190 mm ","GT779 - 9,0 mm ","Schere VH016C - 190 mm ","GT782 - 12,0 mm ","Schere VH016C - 190 mm "]
["DE237","Havaneser","Favorita",null,"Opt3","3. Körper verfilztes Fell","GT748 - 3,0 mm",null,"GT748 - 3,0 mm",null,"GT748 - 3,0 mm"]
["DE238","Havaneser","Favorita",null,"Opt6","6. Läufe","Schere VH016C - 190 mm ","Schere VH017C - 200 mm ","Schere VH016C - 190 mm ","Schere VH017C - 200 mm ","Schere VH016C - 190 mm ","Schere VH017C - 200 mm "]
["DE239","Havaneser","Favorita",null,"Opt4","4. Kopf","Schere VH016C - 190 mm ","Schere VH017C - 200 mm ","Schere VH016C - 190 mm ","Schere VH017C - 200 mm ","Schere VH016C - 190 mm ","Schere VH017C - 200 mm "]
["DE240","Havaneser","Favorita",null,"Opt5","5. Ohren","Schere VH016C - 190 mm ","Schere VH017C - 200 mm ","Schere VH016C - 190 mm ","Schere VH017C - 200 mm ","Schere VH016C - 190 mm ","Schere VH017C - 200 mm "]
["DE241","Husky","Favorita",null,"Opt8","8. Afterbereich","GT710 - 1,8 mm ","GT742 - 2,0 mm","GT710 - 1,8 mm ","GT742 - 2,0 mm","GT710 - 1,8 mm ","GT742 - 2,0 mm"]
["DE242","Husky","Favorita",null,"Opt7","7. Pfoten","GH712 - 1,0 mm ","GT772 - 0,7 mm ","GH712 - 1,0 mm ","GT772 - 0,7 mm ","GH712 - 1,0 mm ","GT772 - 0,7 mm "]
["DE243","Husky","Favorita",null,"Opt1","1. Körper normale Fellstruktur","GT758 - 5,0 mm ",null,"GT770 - 7,0 mm ",null,"GT779 - 9,0 mm "]
["DE244","Husky","Favorita",null,"Opt2","2. Körper sauberes Fell","GT758 - 5,0 mm ",null,"GT770 - 7,0 mm ",null,"GT779 - 9,0 mm "]
["DE245","Husky","Favorita",null,"Opt3","3. Körper verfilztes Fell","GT754 - 3,0 mm ",null,"GT758 - 5,0 mm ",null,"GT770 - 7,0 mm "]
["DE246","Husky","Favorita",null,"Opt6","6. Läufe","Schere VH016C - 190 mm ","Schere VH017C - 200 mm ","Schere VH016C - 190 mm ","Schere VH017C - 200 mm ","Schere VH016C - 190 mm ","Schere VH017C - 200 mm "]
["DE247","Husky","Favorita",null,"Opt4","4. Kopf","Schere VH016C - 190 mm ","Schere VH017C - 200 mm ","Schere VH016C - 190 mm ","Schere VH017C - 200 mm ","Schere VH016C - 190 mm ","Schere VH017C - 200 mm "]
["DE248","Husky","Favorita",null,"Opt5","5. Ohren","Schere VH016C - 190 mm ","Schere VH017C - 200 mm ","Schere VH016C - 190 mm ","Schere VH017C - 200 mm ","Schere VH016C - 190 mm ","Schere VH017C - 200 mm "]
["DE249","Irish Setter","Favorita",null,"Opt8","8. Afterbereich","GT710 - 1,8 mm ","GT742 - 2,0 mm","GT710 - 1,8 mm ","GT742 - 2,0 mm","GT710 - 1,8 mm ","GT742 - 2,0 mm"]
["DE250","Irish Setter","Favorita",null,"Opt7","7. Pfoten","GH712 - 1,0 mm ","GT772 - 0,7 mm ","GH712 - 1,0 mm ","GT772 - 0,7 mm ","GH712 - 1,0 mm ","GT772 - 0,7 mm "]
["DE251","Irish Setter","Favorita",null,"Opt1","1. Körper normale Fellstruktur","GT758 - 5,0 mm ",null,"GT770 - 7,0 mm ",null,"GT779 - 9,0 mm "]
["DE252","Irish Setter","Favorita",null,"Opt2","2. Körper sauberes Fell","GT758 - 5,0 mm ",null,"GT770 - 7,0 mm ",null,"GT779 - 9,0 mm "]
["DE253","Irish Setter","Favorita",null,"Opt3","3. Körper verfilztes Fell","GT754 - 3,0 mm ",null,"GT758 - 5,0 mm ",null,"GT770 - 7,0 mm "]
["DE254","Irish Setter","Favorita",null,"Opt6","6. Läufe","Schere VH016C - 190 mm ","Schere VH017C - 200 mm ","Schere VH016C - 190 mm ","Schere VH017C - 200 mm ","Schere VH016C - 190 mm ","Schere VH017C - 200 mm "]
["DE255","Irish Setter","Favorita",null,"Opt4","4. Kopf","GT754 - 3,0 mm ",null,"GT754 - 3,0 mm ",null,"GT754 - 3,0 mm "]
["DE256","Irish Setter","Favorita",null,"Opt5","5. Ohren","Schere VH016C - 190 mm ","Schere VH017C - 200 mm ","Schere VH016C - 190 mm ","Schere VH017C - 200 mm ","Schere VH016C - 190 mm ","Schere VH017C - 200 mm "]
["DE257","Irish Terrier","Favorita",null,"Opt8","8. Afterbereich","GT742 - 2,0 mm",null,"GT742 - 2,0 mm",null,"GT742 - 2,0 mm"]
["DE258","Irish Terrier","Favorita",null,"Opt7","7. Pfoten","GH712 - 1,0 mm ","GT772 - 0,7 mm ","GH712 - 1,0 mm ","GT772 - 0,7 mm ","GH712 - 1,0 mm ","GT772 - 0,7 mm "]
["DE259","Irish Terrier","Favorita",null,"Opt1","1. Körper normale Fellstruktur","Trimmmesser",null,"Trimmmesser",null,"Trimmmesser"]
["DE260","Irish Terrier","Favorita",null,"Opt2","2. Körper sauberes Fell","GT754 - 3,0 mm ",null,"GT758 - 5,0 mm ",null,"GT770 - 7,0 mm "]
["DE261","Irish Terrier","Favorita",null,"Opt3","3. Körper verfilztes Fell","GT748 - 3,0 mm",null,"GT748 - 3,0 mm",null,"GT748 - 3,0 mm"]
["DE262","Irish Terrier","Favorita",null,"Opt6","6. Läufe","Schere VH016C - 190 mm ",null,"Schere VH016C - 190 mm ",null,"Schere VH016C - 190 mm "]
["DE263","Irish Terrier","Favorita",null,"Opt4","4. Kopf","GT754 - 3,0 mm ",null,"GT754 - 3,0 mm ",null,"GT754 - 3,0 mm "]
["DE264","Irish Terrier","Favorita",null,"Opt5","5. Ohren","GT742 - 2,0 mm",null,"GT742 - 2,0 mm",null,"GT742 - 2,0 mm"]
["DE265","Japan Spitz","Favorita",null,"Opt8","8. Afterbereich","GT710 - 1,8 mm ","GT742 - 2,0 mm","GT710 - 1,8 mm ","GT742 - 2,0 mm","GT710 - 1,8 mm ","GT742 - 2,0 mm"]
["DE266","Japan Spitz","Favorita",null,{"$f":"\"Opt\"&LEFT(F259,1)","v":"Opt7"},"7. Pfoten","GH712 - 1,0 mm ","GT772 - 0,7 mm ","GH712 - 1,0 mm ","GT772 - 0,7 mm ","GH712 - 1,0 mm ","GT772 - 0,7 mm "]
["DE267","Japan Spitz","Favorita",null,"Opt1","1. Körper normale Fellstruktur","GT758 - 5,0 mm ",null,"GT770 - 7,0 mm ",null,"GT779 - 9,0 mm "]
["DE268","Japan Spitz","Favorita",null,"Opt2","2. Körper sauberes Fell","GT758 - 5,0 mm ",null,"GT770 - 7,0 mm ",null,"GT779 - 9,0 mm "]
["DE269","Japan Spitz","Favorita",null,"Opt3","3. Körper verfilztes Fell","GT754 - 3,0 mm ",null,"GT758 - 5,0 mm ",null,"GT770 - 7,0 mm "]
["DE270","Japan Spitz","Favorita",null,"Opt6","6. Läufe","Schere VH016C - 190 mm ","Schere VH017C - 200 mm ","Schere VH016C - 190 mm ","Schere VH017C - 200 mm ","Schere VH016C - 190 mm ","Schere VH017C - 200 mm "]
["DE271","Japan Spitz","Favorita",null,"Opt4","4. Kopf","Schere VH016C - 190 mm ","Schere VH017C - 200 mm ","Schere VH016C - 190 mm ","Schere VH017C - 200 mm ","Schere VH016C - 190 mm ","Schere VH017C - 200 mm "]
["DE272","Japan Spitz","Favorita",null,"Opt5","5. Ohren","Schere VH016C - 190 mm ","Schere VH017C - 200 mm ","Schere VH016C - 190 mm ","Schere VH017C - 200 mm ","Schere VH016C - 190 mm ","Schere VH017C - 200 mm "]
["DE273","Kerry Blue Terrier","Favorita",null,"Opt8","8. Afterbereich","GT742 - 2,0 mm",null,"GT742 - 2,0 mm",null,"GT742 - 2,0 mm"]
["DE274","Kerry Blue Terrier","Favorita",null,"Opt7","7. Pfoten","GH712 - 1,0 mm ","GT772 - 0,7 mm ","GH712 - 1,0 mm ","GT772 - 0,7 mm ","GH712 - 1,0 mm ","GT772 - 0,7 mm "]
["DE275","Kerry Blue Terrier","Favorita",null,"Opt1","1. Körper normale Fellstruktur","GT779 - 9,0 mm ",null,"GT782 - 12,0 mm ",null,"GT784 - 16,0 mm "]
["DE276","Kerry Blue Terrier","Favorita",null,"Opt2","2. Körper sauberes Fell","GT779 - 9,0 mm ",null,"GT782 - 12,0 mm ",null,"GT784 - 16,0 mm "]
["DE277","Kerry Blue Terrier","Favorita",null,"Opt3","3. Körper verfilztes Fell","GT748 - 3,0 mm",null,"GT748 - 3,0 mm",null,"GT748 - 3,0 mm"]
["DE278","Kerry Blue Terrier","Favorita",null,"Opt6","6. Läufe","Schere VH016C - 190 mm ",null,"Schere VH016C - 190 mm ",null,"Schere VH016C - 190 mm "]
["DE279","Kerry Blue Terrier","Favorita",null,"Opt4","4. Kopf","GT754 - 3,0 mm ",null,"GT754 - 3,0 mm ",null,"GT754 - 3,0 mm "]
["DE280","Kerry Blue Terrier","Favorita",null,"Opt5","5. Ohren","GT742 - 2,0 mm",null,"GT742 - 2,0 mm",null,"GT742 - 2,0 mm"]
["DE281","Labrador","Favorita",null,"Opt8","8. Afterbereich","GT710 - 1,8 mm ","GT742 - 2,0 mm","GT710 - 1,8 mm ","GT742 - 2,0 mm","GT710 - 1,8 mm ","GT742 - 2,0 mm"]
["DE282","Labrador","Favorita",null,"Opt7","7. Pfoten","GH712 - 1,0 mm ","GT772 - 0,7 mm ","GH712 - 1,0 mm ","GT772 - 0,7 mm ","GH712 - 1,0 mm ","GT772 - 0,7 mm "]
["DE283","Labrador","Favorita",null,"Opt1","1. Körper normale Fellstruktur","GT758 - 5,0 mm ",null,"GT770 - 7,0 mm ",null,"GT770 - 7,0 mm "]
["DE284","Labrador","Favorita",null,"Opt2","2. Körper sauberes Fell","GT758 - 5,0 mm ",null,"GT770 - 7,0 mm ",null,"GT770 - 7,0 mm "]
["DE285","Labrador","Favorita",null,"Opt3","3. Körper verfilztes Fell","GT754 - 3,0 mm ",null,"GT758 - 5,0 mm ",null,"GT758 - 5,0 mm "]
["DE286","Labrador","Favorita",null,"Opt6","6. Läufe","GT754 - 3,0 mm ",null,"GT758 - 5,0 mm ",null,"GT758 - 5,0 mm "]
["DE287","Labrador","Favorita",null,"Opt4","4. Kopf","GT754 - 3,0 mm ",null,"GT754 - 3,0 mm ",null,"GT754 - 3,0 mm "]
["DE288","Labrador","Favorita",null,"Opt5","5. Ohren","GT754 - 3,0 mm ",null,"GT754 - 3,0 mm ",null,"GT754 - 3,0 mm "]
["DE289","Lakeland Terrier","Favorita",null,"Opt8","8. Afterbereich","GT742 - 2,0 mm",null,"GT742 - 2,0 mm",null,"GT742 - 2,0 mm"]
["DE290","Lakeland Terrier","Favorita",null,"Opt7","7. Pfoten","GH712 - 1,0 mm ","GT772 - 0,7 mm ","GH712 - 1,0 mm ","GT772 - 0,7 mm ","GH712 - 1,0 mm ","GT772 - 0,7 mm "]
["DE291","Lakeland Terrier","Favorita",null,"Opt1","1. Körper normale Fellstruktur","Trimmmesser",null,"Trimmmesser",null,"Trimmmesser"]
["DE292","Lakeland Terrier","Favorita",null,"Opt2","2. Körper sauberes Fell","GT754 - 3,0 mm ",null,"GT758 - 5,0 mm ",null,"GT770 - 7,0 mm "]
["DE293","Lakeland Terrier","Favorita",null,"Opt3","3. Körper verfilztes Fell","GT748 - 3,0 mm",null,"GT748 - 3,0 mm",null,"GT748 - 3,0 mm"]
["DE294","Lakeland Terrier","Favorita",null,"Opt6","6. Läufe","Schere VH016C - 190 mm ",null,"Schere VH016C - 190 mm ",null,"Schere VH016C - 190 mm "]
["DE295","Lakeland Terrier","Favorita",null,"Opt4","4. Kopf","GT754 - 3,0 mm ",null,"GT754 - 3,0 mm ",null,"GT754 - 3,0 mm "]
["DE296","Lakeland Terrier","Favorita",null,"Opt5","5. Ohren","GT742 - 2,0 mm",null,"GT742 - 2,0 mm",null,"GT742 - 2,0 mm"]
["DE297","Langhaarcollie","Favorita",null,"Opt8","8. Afterbereich","GT710 - 1,8 mm ","GT742 - 2,0 mm","GT710 - 1,8 mm ","GT742 - 2,0 mm","GT710 - 1,8 mm ","GT742 - 2,0 mm"]
["DE298","Langhaarcollie","Favorita",null,"Opt7","7. Pfoten","GH712 - 1,0 mm ","GT772 - 0,7 mm ","GH712 - 1,0 mm ","GT772 - 0,7 mm ","GH712 - 1,0 mm ","GT772 - 0,7 mm "]
["DE299","Langhaarcollie","Favorita",null,"Opt1","1. Körper normale Fellstruktur","GT758 - 5,0 mm ","Schere VH016C - 190 mm ","GT770 - 7,0 mm ","Schere VH016C - 190 mm ","GT770 - 7,0 mm ","Schere VH016C - 190 mm "]
["DE300","Langhaarcollie","Favorita",null,"Opt2","2. Körper sauberes Fell","GT758 - 5,0 mm ","Schere VH016C - 190 mm ","GT770 - 7,0 mm ","Schere VH016C - 190 mm ","GT770 - 7,0 mm ","Schere VH016C - 190 mm "]
["DE301","Langhaarcollie","Favorita",null,"Opt3","3. Körper verfilztes Fell","GT758 - 5,0 mm ",null,"GT758 - 5,0 mm ",null,"GT758 - 5,0 mm "]
["DE302","Langhaarcollie","Favorita",null,"Opt6","6. Läufe","Schere VH016C - 190 mm ","Schere VH017C - 200 mm ","Schere VH016C - 190 mm ","Schere VH017C - 200 mm ","Schere VH016C - 190 mm ","Schere VH017C - 200 mm "]
["DE303","Langhaarcollie","Favorita",null,"Opt4","4. Kopf","Schere VH016C - 190 mm ","Schere VH017C - 200 mm ","Schere VH016C - 190 mm ","Schere VH017C - 200 mm ","Schere VH016C - 190 mm ","Schere VH017C - 200 mm "]
["DE304","Langhaarcollie","Favorita",null,"Opt5","5. Ohren","Schere VH016C - 190 mm ","Schere VH017C - 200 mm ","Schere VH016C - 190 mm ","Schere VH017C - 200 mm ","Schere VH016C - 190 mm ","Schere VH017C - 200 mm "]
["DE305","Leonberger","Favorita",null,"Opt8","8. Afterbereich","GT710 - 1,8 mm ","GT742 - 2,0 mm","GT710 - 1,8 mm ","GT742 - 2,0 mm","GT710 - 1,8 mm ","GT742 - 2,0 mm"]
["DE306","Leonberger","Favorita",null,"Opt7","7. Pfoten","GH712 - 1,0 mm ","GT772 - 0,7 mm ","GH712 - 1,0 mm ","GT772 - 0,7 mm ","GH712 - 1,0 mm ","GT772 - 0,7 mm "]
["DE307","Leonberger","Favorita",null,"Opt1","1. Körper normale Fellstruktur","GT779 - 9,0 mm ",null,"GT782 - 12,0 mm ",null,"GT784 - 16,0 mm "]
["DE308","Leonberger","Favorita",null,"Opt2","2. Körper sauberes Fell","GT779 - 9,0 mm ",null,"GT782 - 12,0 mm ",null,"GT784 - 16,0 mm "]
["DE309","Leonberger","Favorita",null,"Opt3","3. Körper verfilztes Fell","GT754 - 3,0 mm ",null,"GT758 - 5,0 mm ",null,"GT770 - 7,0 mm "]
["DE310","Leonberger","Favorita",null,"Opt6","6. Läufe","Schere VH016C - 190 mm ","Schere VH017C - 200 mm ","Schere VH016C - 190 mm ","Schere VH017C - 200 mm ","Schere VH016C - 190 mm ","Schere VH017C - 200 mm "]
["DE311","Leonberger","Favorita",null,"Opt4","4. Kopf","Schere VH016C - 190 mm ","Schere VH017C - 200 mm ","Schere VH016C - 190 mm ","Schere VH017C - 200 mm ","Schere VH016C - 190 mm ","Schere VH017C - 200 mm "]
["DE312","Leonberger","Favorita",null,"Opt5","5. Ohren","Schere VH016C - 190 mm ","Schere VH017C - 200 mm ","Schere VH016C - 190 mm ","Schere VH017C - 200 mm ","Schere VH016C - 190 mm ","Schere VH017C - 200 mm "]
["DE313","Lhasa Apso","Favorita",null,"Opt8","8. Afterbereich","GT710 - 1,8 mm ","GT742 - 2,0 mm","GT710 - 1,8 mm ","GT742 - 2,0 mm","GT710 - 1,8 mm ","GT742 - 2,0 mm"]
["DE314","Lhasa Apso","Favorita",null,"Opt7","7. Pfoten","GH712 - 1,0 mm ","GT772 - 0,7 mm ","GH712 - 1,0 mm ","GT772 - 0,7 mm ","GH712 - 1,0 mm ","GT772 - 0,7 mm "]
["DE315","Lhasa Apso","Favorita",null,"Opt1","1. Körper normale Fellstruktur","GT779 - 9,0 mm ",null,"GT782 - 12,0 mm ",null,"GT784 - 16,0 mm "]
["DE316","Lhasa Apso","Favorita",null,"Opt2","2. Körper sauberes Fell","GT779 - 9,0 mm ",null,"GT782 - 12,0 mm ",null,"GT784 - 16,0 mm "]
["DE317","Lhasa Apso","Favorita",null,"Opt3","3. Körper verfilztes Fell","GT754 - 3,0 mm ",null,"GT758 - 5,0 mm ",null,"GT758 - 5,0 mm "]
["DE318","Lhasa Apso","Favorita",null,"Opt6","6. Läufe","Schere VH016C - 190 mm ","Schere VH017C - 200 mm ","Schere VH016C - 190 mm ","Schere VH017C - 200 mm ","Schere VH016C - 190 mm ","Schere VH017C - 200 mm "]
["DE319","Lhasa Apso","Favorita",null,"Opt4","4. Kopf","Schere VH016C - 190 mm ","Schere VH017C - 200 mm ","Schere VH016C - 190 mm ","Schere VH017C - 200 mm ","Schere VH016C - 190 mm ","Schere VH017C - 200 mm "]
["DE320","Lhasa Apso","Favorita",null,"Opt5","5. Ohren","Schere VH016C - 190 mm ","Schere VH017C - 200 mm ","Schere VH016C - 190 mm ","Schere VH017C - 200 mm ","Schere VH016C - 190 mm ","Schere VH017C - 200 mm "]
["DE321","Malteser","Favorita",null,"Opt8","8. Afterbereich","GT710 - 1,8 mm ","GT742 - 2,0 mm","GT710 - 1,8 mm ","GT742 - 2,0 mm","GT710 - 1,8 mm ","GT742 - 2,0 mm"]
["DE322","Malteser","Favorita",null,"Opt7","7. Pfoten","GH712 - 1,0 mm ","GT772 - 0,7 mm ","GH712 - 1,0 mm ","GT772 - 0,7 mm ","GH712 - 1,0 mm ","GT772 - 0,7 mm "]
["DE323","Malteser","Favorita",null,"Opt1","1. Körper normale Fellstruktur","GT770 - 7,0 mm ","Schere VH016C - 190 mm ","GT779 - 9,0 mm ","Schere VH016C - 190 mm ","GT782 - 12,0 mm ","Schere VH016C - 190 mm "]
["DE324","Malteser","Favorita",null,"Opt2","2. Körper sauberes Fell","GT770 - 7,0 mm ","Schere VH016C - 190 mm ","GT779 - 9,0 mm ","Schere VH016C - 190 mm ","GT782 - 12,0 mm ","Schere VH016C - 190 mm "]
["DE325","Malteser","Favorita",null,"Opt3","3. Körper verfilztes Fell","GT748 - 3,0 mm",null,"GT748 - 3,0 mm",null,"GT748 - 3,0 mm"]
["DE326","Malteser","Favorita",null,"Opt6","6. Läufe","Schere VH016C - 190 mm ","Schere VH017C - 200 mm ","Schere VH016C - 190 mm ","Schere VH017C - 200 mm ","Schere VH016C - 190 mm ","Schere VH017C - 200 mm "]
["DE327","Malteser","Favorita",null,"Opt4","4. Kopf","Schere VH016C - 190 mm ","Schere VH017C - 200 mm ","Schere VH016C - 190 mm ","Schere VH017C - 200 mm ","Schere VH016C - 190 mm ","Schere VH017C - 200 mm "]
["DE328","Malteser","Favorita",null,"Opt5","5. Ohren","Schere VH016C - 190 mm ","Schere VH017C - 200 mm ","Schere VH016C - 190 mm ","Schere VH017C - 200 mm ","Schere VH016C - 190 mm ","Schere VH017C - 200 mm "]
["DE329","Mischrassen","Favorita",null,"Opt8","8. Afterbereich","GT742 - 2,0 mm",null,"GT742 - 2,0 mm",null,"GT742 - 2,0 mm"]
["DE330","Mischrassen","Favorita",null,{"$f":"\"Opt\"&LEFT(F323,1)","v":"Opt7"},"7. Pfoten","GH712 - 1,0 mm ","GT772 - 0,7 mm ","GH712 - 1,0 mm ","GT772 - 0,7 mm ","GH712 - 1,0 mm ","GT772 - 0,7 mm "]
["DE331","Mischrassen","Favorita",null,"Opt1","1. Körper normale Fellstruktur","GT748 - 3,0 mm",null,"GT758 - 5,0 mm ","GT770 - 7,0 mm ","GT779 - 9,0 mm ","GT782 - 12,0 mm "]
["DE332","Mischrassen","Favorita",null,"Opt2","2. Körper sauberes Fell","GT748 - 3,0 mm",null,"GT758 - 5,0 mm ","GT770 - 7,0 mm ","GT779 - 9,0 mm ","GT782 - 12,0 mm "]
["DE333","Mischrassen","Favorita",null,"Opt3","3. Körper verfilztes Fell","GT748 - 3,0 mm",null,"GT748 - 3,0 mm",null,"GT748 - 3,0 mm"]
["DE334","Mischrassen","Favorita",null,"Opt6","6. Läufe","GT758 - 5,0 mm ",null,"GT758 - 5,0 mm ",null,"GT758 - 5,0 mm "]
["DE335","Mischrassen","Favorita",null,"Opt4","4. Kopf","Schere VH016C - 190 mm ",null,"Schere VH016C - 190 mm ",null,"Schere VH016C - 190 mm "]
["DE336","Mischrassen","Favorita",null,"Opt5","5. Ohren","Schere VH016C - 190 mm ",null,"Schere VH016C - 190 mm ",null,"Schere VH016C - 190 mm "]
["DE337","Mittelspitz","Favorita",null,"Opt8","8. Afterbereich","GT710 - 1,8 mm ","GT742 - 2,0 mm","GT710 - 1,8 mm ","GT742 - 2,0 mm","GT710 - 1,8 mm ","GT742 - 2,0 mm"]
["DE338","Mittelspitz","Favorita",null,"Opt7","7. Pfoten","GH712 - 1,0 mm ","GT772 - 0,7 mm ","GH712 - 1,0 mm ","GT772 - 0,7 mm ","GH712 - 1,0 mm ","GT772 - 0,7 mm "]
["DE339","Mittelspitz","Favorita",null,"Opt1","1. Körper normale Fellstruktur","GT758 - 5,0 mm ",null,"GT770 - 7,0 mm ",null,"GT779 - 9,0 mm "]
["DE340","Mittelspitz","Favorita",null,"Opt2","2. Körper sauberes Fell","GT758 - 5,0 mm ",null,"GT770 - 7,0 mm ",null,"GT779 - 9,0 mm "]
["DE341","Mittelspitz","Favorita",null,"Opt3","3. Körper verfilztes Fell","GT754 - 3,0 mm ",null,"GT758 - 5,0 mm ",null,"GT770 - 7,0 mm "]
["DE342","Mittelspitz","Favorita",null,"Opt6","6. Läufe","Schere VH016C - 190 mm ","Schere VH017C - 200 mm ","Schere VH016C - 190 mm ","Schere VH017C - 200 mm ","Schere VH016C - 190 mm ","Schere VH017C - 200 mm "]
["DE343","Mittelspitz","Favorita",null,"Opt4","4. Kopf","Schere VH016C - 190 mm ","Schere VH017C - 200 mm ","Schere VH016C - 190 mm ","Schere VH017C - 200 mm ","Schere VH016C - 190 mm ","Schere VH017C - 200 mm "]
["DE344","Mittelspitz","Favorita",null,"Opt5","5. Ohren","Schere VH016C - 190 mm ","Schere VH017C - 200 mm ","Schere VH016C - 190 mm ","Schere VH017C - 200 mm ","Schere VH016C - 190 mm ","Schere VH017C - 200 mm "]
["DE345","Neufundländer","Favorita",null,"Opt8","8. Afterbereich","GT710 - 1,8 mm ","GT742 - 2,0 mm","GT710 - 1,8 mm ","GT742 - 2,0 mm","GT710 - 1,8 mm ","GT742 - 2,0 mm"]
["DE346","Neufundländer","Favorita",null,"Opt7","7. Pfoten","GH712 - 1,0 mm ","GT772 - 0,7 mm ","GH712 - 1,0 mm ","GT772 - 0,7 mm ","GH712 - 1,0 mm ","GT772 - 0,7 mm "]
["DE347","Neufundländer","Favorita",null,"Opt1","1. Körper normale Fellstruktur","GT779 - 9,0 mm ",null,"GT782 - 12,0 mm ",null,"GT784 - 16,0 mm "]
["DE348","Neufundländer","Favorita",null,"Opt2","2. Körper sauberes Fell","GT779 - 9,0 mm ",null,"GT782 - 12,0 mm ",null,"GT784 - 16,0 mm "]
["DE349","Neufundländer","Favorita",null,"Opt3","3. Körper verfilztes Fell","GT754 - 3,0 mm ",null,"GT758 - 5,0 mm ",null,"GT770 - 7,0 mm "]
["DE350","Neufundländer","Favorita",null,"Opt6","6. Läufe","Schere VH016C - 190 mm ","Schere VH017C - 200 mm ","Schere VH016C - 190 mm ","Schere VH017C - 200 mm ","Schere VH016C - 190 mm ","Schere VH017C - 200 mm "]
["DE351","Neufundländer","Favorita",null,"Opt4","4. Kopf","Schere VH016C - 190 mm ","Schere VH017C - 200 mm ","Schere VH016C - 190 mm ","Schere VH017C - 200 mm ","Schere VH016C - 190 mm ","Schere VH017C - 200 mm "]
["DE352","Neufundländer","Favorita",null,"Opt5","5. Ohren","Schere VH016C - 190 mm ","Schere VH017C - 200 mm ","Schere VH016C - 190 mm ","Schere VH017C - 200 mm ","Schere VH016C - 190 mm ","Schere VH017C - 200 mm "]
["DE353","Old English Sheepdog","Favorita",null,"Opt8","8. Afterbereich","GT710 - 1,8 mm ","GT742 - 2,0 mm","GT710 - 1,8 mm ","GT742 - 2,0 mm","GT710 - 1,8 mm ","GT742 - 2,0 mm"]
["DE354","Old English Sheepdog","Favorita",null,"Opt7","7. Pfoten","GH712 - 1,0 mm ","GT772 - 0,7 mm ","GH712 - 1,0 mm ","GT772 - 0,7 mm ","GH712 - 1,0 mm ","GT772 - 0,7 mm "]
["DE355","Old English Sheepdog","Favorita",null,"Opt1","1. Körper normale Fellstruktur","GT779 - 9,0 mm ",null,"GT782 - 12,0 mm ",null,"GT784 - 16,0 mm "]
["DE356","Old English Sheepdog","Favorita",null,"Opt2","2. Körper sauberes Fell","GT779 - 9,0 mm ",null,"GT782 - 12,0 mm ",null,"GT784 - 16,0 mm "]
["DE357","Old English Sheepdog","Favorita",null,"Opt3","3. Körper verfilztes Fell","GT754 - 3,0 mm ",null,"GT758 - 5,0 mm ",null,"GT758 - 5,0 mm "]
["DE358","Old English Sheepdog","Favorita",null,"Opt6","6. Läufe","Schere VH016C - 190 mm ","Schere VH017C - 200 mm ","Schere VH016C - 190 mm ","Schere VH017C - 200 mm ","Schere VH016C - 190 mm ","Schere VH017C - 200 mm "]
["DE359","Old English Sheepdog","Favorita",null,"Opt4","4. Kopf","Schere VH016C - 190 mm ","Schere VH017C - 200 mm ","Schere VH016C - 190 mm ","Schere VH017C - 200 mm ","Schere VH016C - 190 mm ","Schere VH017C - 200 mm "]
["DE360","Old English Sheepdog","Favorita",null,"Opt5","5. Ohren","Schere VH016C - 190 mm ","Schere VH017C - 200 mm ","Schere VH016C - 190 mm ","Schere VH017C - 200 mm ","Schere VH016C - 190 mm ","Schere VH017C - 200 mm "]
["DE361","Pekinese","Favorita",null,"Opt8","8. Afterbereich","GT710 - 1,8 mm ","GT742 - 2,0 mm","GT710 - 1,8 mm ","GT742 - 2,0 mm","GT710 - 1,8 mm ","GT742 - 2,0 mm"]
["DE362","Pekinese","Favorita",null,"Opt7","7. Pfoten","GH712 - 1,0 mm ","GT772 - 0,7 mm ","GH712 - 1,0 mm ","GT772 - 0,7 mm ","GH712 - 1,0 mm ","GT772 - 0,7 mm "]
["DE363","Pekinese","Favorita",null,"Opt1","1. Körper normale Fellstruktur","GT779 - 9,0 mm ",null,"GT782 - 12,0 mm ",null,"GT784 - 16,0 mm "]
["DE364","Pekinese","Favorita",null,"Opt2","2. Körper sauberes Fell","GT779 - 9,0 mm ",null,"GT782 - 12,0 mm ",null,"GT784 - 16,0 mm "]
["DE365","Pekinese","Favorita",null,"Opt3","3. Körper verfilztes Fell","GT754 - 3,0 mm ",null,"GT758 - 5,0 mm ",null,"GT758 - 5,0 mm "]
["DE366","Pekinese","Favorita",null,"Opt6","6. Läufe","Schere VH016C - 190 mm ","Schere VH017C - 200 mm ","Schere VH016C - 190 mm ","Schere VH017C - 200 mm ","Schere VH016C - 190 mm ","Schere VH017C - 200 mm "]
["DE367","Pekinese","Favorita",null,"Opt4","4. Kopf","Schere VH016C - 190 mm ","Schere VH017C - 200 mm ","Schere VH016C - 190 mm ","Schere VH017C - 200 mm ","Schere VH016C - 190 mm ","Schere VH017C - 200 mm "]
["DE368","Pekinese","Favorita",null,"Opt5","5. Ohren","Schere VH016C - 190 mm ","Schere VH017C - 200 mm ","Schere VH016C - 190 mm ","Schere VH017C - 200 mm ","Schere VH016C - 190 mm ","Schere VH017C - 200 mm "]
["DE369","Portugiesischer Wasserhund","Favorita",null,"Opt8","8. Afterbereich","GT710 - 1,8 mm ","GT742 - 2,0 mm","GT710 - 1,8 mm ","GT742 - 2,0 mm","GT710 - 1,8 mm ","GT742 - 2,0 mm"]
["DE370","Portugiesischer Wasserhund","Favorita",null,"Opt7","7. Pfoten","GH712 - 1,0 mm ","GT772 - 0,7 mm ","GH712 - 1,0 mm ","GT772 - 0,7 mm ","GH712 - 1,0 mm ","GT772 - 0,7 mm "]
["DE371","Portugiesischer Wasserhund","Favorita",null,"Opt1","1. Körper normale Fellstruktur","GT779 - 9,0 mm ",null,"GT782 - 12,0 mm ",null,"GT784 - 16,0 mm "]
["DE372","Portugiesischer Wasserhund","Favorita",null,"Opt2","2. Körper sauberes Fell","GT779 - 9,0 mm ",null,"GT782 - 12,0 mm ",null,"GT784 - 16,0 mm "]
["DE373","Portugiesischer Wasserhund","Favorita",null,"Opt3","3. Körper verfilztes Fell","GT754 - 3,0 mm ",null,"GT758 - 5,0 mm ",null,"GT758 - 5,0 mm "]
["DE374","Portugiesischer Wasserhund","Favorita",null,"Opt6","6. Läufe","Schere VH016C - 190 mm ","Schere VH017C - 200 mm ","Schere VH016C - 190 mm ","Schere VH017C - 200 mm ","Schere VH016C - 190 mm ","Schere VH017C - 200 mm "]
["DE375","Portugiesischer Wasserhund","Favorita",null,"Opt4","4. Kopf","Schere VH016C - 190 mm ","Schere VH017C - 200 mm ","Schere VH016C - 190 mm ","Schere VH017C - 200 mm ","Schere VH016C - 190 mm ","Schere VH017C - 200 mm "]
["DE376","Portugiesischer Wasserhund","Favorita",null,"Opt5","5. Ohren","Schere VH016C - 190 mm ","Schere VH017C - 200 mm ","Schere VH016C - 190 mm ","Schere VH017C - 200 mm ","Schere VH016C - 190 mm ","Schere VH017C - 200 mm "]
["DE377","Pudel","Favorita",null,"Opt8","8. Afterbereich","GT710 - 1,8 mm ","GT742 - 2,0 mm","GT710 - 1,8 mm ","GT742 - 2,0 mm","GT710 - 1,8 mm ","GT742 - 2,0 mm"]
["DE378","Pudel","Favorita",null,"Opt7","7. Pfoten","GH712 - 1,0 mm ","GT772 - 0,7 mm ","GH712 - 1,0 mm ","GT772 - 0,7 mm ","GH712 - 1,0 mm ","GT772 - 0,7 mm "]
["DE379","Pudel","Favorita",null,"Opt1","1. Körper normale Fellstruktur","GT779 - 9,0 mm ",null,"GT782 - 12,0 mm ",null,"GT784 - 16,0 mm "]
["DE380","Pudel","Favorita",null,"Opt2","2. Körper sauberes Fell","GT779 - 9,0 mm ",null,"GT782 - 12,0 mm ",null,"GT784 - 16,0 mm "]
["DE381","Pudel","Favorita",null,"Opt3","3. Körper verfilztes Fell","GT748 - 3,0 mm",null,"GT748 - 3,0 mm",null,"GT748 - 3,0 mm"]
["DE382","Pudel","Favorita",null,"Opt6","6. Läufe","Schere VH016C - 190 mm ","Schere VH017C - 200 mm ","Schere VH016C - 190 mm ","Schere VH017C - 200 mm ","Schere VH016C - 190 mm ","Schere VH017C - 200 mm "]
["DE383","Pudel","Favorita",null,"Opt4","4. Kopf","Schere VH016C - 190 mm ","Schere VH017C - 200 mm ","Schere VH016C - 190 mm ","Schere VH017C - 200 mm ","Schere VH016C - 190 mm ","Schere VH017C - 200 mm "]
["DE384","Pudel","Favorita",null,"Opt5","5. Ohren","Schere VH016C - 190 mm ","Schere VH017C - 200 mm ","Schere VH016C - 190 mm ","Schere VH017C - 200 mm ","Schere VH016C - 190 mm ","Schere VH017C - 200 mm "]
["DE385","Samojede","Favorita",null,"Opt8","8. Afterbereich","GT710 - 1,8 mm ","GT742 - 2,0 mm","GT710 - 1,8 mm ","GT742 - 2,0 mm","GT710 - 1,8 mm ","GT742 - 2,0 mm"]
["DE386","Samojede","Favorita",null,"Opt7","7. Pfoten","GH712 - 1,0 mm ","GT772 - 0,7 mm ","GH712 - 1,0 mm ","GT772 - 0,7 mm ","GH712 - 1,0 mm ","GT772 - 0,7 mm "]
["DE387","Samojede","Favorita",null,"Opt1","1. Körper normale Fellstruktur","GT758 - 5,0 mm ",null,"GT770 - 7,0 mm ",null,"GT779 - 9,0 mm "]
["DE388","Samojede","Favorita",null,"Opt2","2. Körper sauberes Fell","GT758 - 5,0 mm ",null,"GT770 - 7,0 mm ",null,"GT779 - 9,0 mm "]
["DE389","Samojede","Favorita",null,"Opt3","3. Körper verfilztes Fell","GT754 - 3,0 mm ",null,"GT758 - 5,0 mm ",null,"GT770 - 7,0 mm "]
["DE390","Samojede","Favorita",null,"Opt6","6. Läufe","Schere VH016C - 190 mm ","Schere VH017C - 200 mm ","Schere VH016C - 190 mm ","Schere VH017C - 200 mm ","Schere VH016C - 190 mm ","Schere VH017C - 200 mm "]
["DE391","Samojede","Favorita",null,"Opt4","4. Kopf","Schere VH016C - 190 mm ","Schere VH017C - 200 mm ","Schere VH016C - 190 mm ","Schere VH017C - 200 mm ","Schere VH016C - 190 mm ","Schere VH017C - 200 mm "]
["DE392","Samojede","Favorita",null,"Opt5","5. Ohren","Schere VH016C - 190 mm ","Schere VH017C - 200 mm ","Schere VH016C - 190 mm ","Schere VH017C - 200 mm ","Schere VH016C - 190 mm ","Schere VH017C - 200 mm "]
["DE393","Schnauzer","Favorita",null,"Opt8","8. Afterbereich","GT710 - 1,8 mm ","GT742 - 2,0 mm","GT710 - 1,8 mm ","GT742 - 2,0 mm","GT710 - 1,8 mm ","GT742 - 2,0 mm"]
["DE394","Schnauzer","Favorita",null,{"$f":"\"Opt\"&LEFT(F387,1)","v":"Opt7"},"7. Pfoten","GH712 - 1,0 mm ","GT772 - 0,7 mm ","GH712 - 1,0 mm ","GT772 - 0,7 mm ","GH712 - 1,0 mm ","GT772 - 0,7 mm "]
["DE395","Schnauzer","Favorita",null,"Opt1","1. Körper normale Fellstruktur","GT754 - 3,0 mm ",null,"GT758 - 5,0 mm ",null,"GT758 - 5,0 mm "]
["DE396","Schnauzer","Favorita",null,"Opt2","2. Körper sauberes Fell","GT754 - 3,0 mm ",null,"GT758 - 5,0 mm ",null,"GT758 - 5,0 mm "]
["DE397","Schnauzer","Favorita",null,"Opt3","3. Körper verfilztes Fell","GT754 - 3,0 mm ",null,"GT758 - 5,0 mm ",null,"GT758 - 5,0 mm "]
["DE398","Schnauzer","Favorita",null,"Opt6","6. Läufe","Schere VH016C - 190 mm ","Schere VH017C - 200 mm ","Schere VH016C - 190 mm ","Schere VH017C - 200 mm ","Schere VH016C - 190 mm ","Schere VH017C - 200 mm "]
["DE399","Schnauzer","Favorita",null,"Opt4","4. Kopf","GT754 - 3,0 mm ","Schere VH016C - 190 mm ","GT754 - 3,0 mm ","Schere VH016C - 190 mm ","GT754 - 3,0 mm ","Schere VH016C - 190 mm "]
["DE400","Schnauzer","Favorita",null,"Opt5","5. Ohren","GH715 - 2,0 mm",null,"GH715 - 2,0 mm",null,"GH715 - 2,0 mm"]
["DE401","Scottisch Terrier","Favorita",null,"Opt8","8. Afterbereich","GT742 - 2,0 mm",null,"GT742 - 2,0 mm",null,"GT742 - 2,0 mm"]
["DE402","Scottisch Terrier","Favorita",null,"Opt7","7. Pfoten","GH712 - 1,0 mm ","GT772 - 0,7 mm ","GH712 - 1,0 mm ","GT772 - 0,7 mm ","GH712 - 1,0 mm ","GT772 - 0,7 mm "]
["DE403","Scottisch Terrier","Favorita",null,"Opt1","1. Körper normale Fellstruktur","Trimmmesser",null,"Trimmmesser",null,"Trimmmesser"]
["DE404","Scottisch Terrier","Favorita",null,"Opt2","2. Körper sauberes Fell","GT754 - 3,0 mm ",null,"GT758 - 5,0 mm ",null,"GT770 - 7,0 mm "]
["DE405","Scottisch Terrier","Favorita",null,"Opt3","3. Körper verfilztes Fell","GT748 - 3,0 mm",null,"GT748 - 3,0 mm",null,"GT748 - 3,0 mm"]
["DE406","Scottisch Terrier","Favorita",null,"Opt6","6. Läufe","Schere VH016C - 190 mm ",null,"Schere VH016C - 190 mm ",null,"Schere VH016C - 190 mm "]
["DE407","Scottisch Terrier","Favorita",null,"Opt4","4. Kopf","GT754 - 3,0 mm ",null,"GT754 - 3,0 mm ",null,"GT754 - 3,0 mm "]
["DE408","Scottisch Terrier","Favorita",null,"Opt5","5. Ohren","GT742 - 2,0 mm",null,"GT742 - 2,0 mm",null,"GT742 - 2,0 mm"]
["DE409","Sealyham Terrier","Favorita",null,"Opt8","8. Afterbereich","GT742 - 2,0 mm",null,"GT742 - 2,0 mm",null,"GT742 - 2,0 mm"]
["DE410","Sealyham Terrier","Favorita",null,"Opt7","7. Pfoten","GH712 - 1,0 mm ","GT772 - 0,7 mm ","GH712 - 1,0 mm ","GT772 - 0,7 mm ","GH712 - 1,0 mm ","GT772 - 0,7 mm "]
["DE411","Sealyham Terrier","Favorita",null,"Opt1","1. Körper normale Fellstruktur","Trimmmesser",null,"Trimmmesser",null,"Trimmmesser"]
["DE412","Sealyham Terrier","Favorita",null,"Opt2","2. Körper sauberes Fell","GT754 - 3,0 mm ",null,"GT758 - 5,0 mm ",null,"GT770 - 7,0 mm "]
["DE413","Sealyham Terrier","Favorita",null,"Opt3","3. Körper verfilztes Fell","GT748 - 3,0 mm",null,"GT748 - 3,0 mm",null,"GT748 - 3,0 mm"]
["DE414","Sealyham Terrier","Favorita",null,"Opt6","6. Läufe","Schere VH016C - 190 mm ",null,"Schere VH016C - 190 mm ",null,"Schere VH016C - 190 mm "]
["DE415","Sealyham Terrier","Favorita",null,"Opt4","4. Kopf","GT754 - 3,0 mm ",null,"GT754 - 3,0 mm ",null,"GT754 - 3,0 mm "]
["DE416","Sealyham Terrier","Favorita",null,"Opt5","5. Ohren","GT742 - 2,0 mm",null,"GT742 - 2,0 mm",null,"GT742 - 2,0 mm"]
["DE425","Shih Tzu","Favorita",null,"Opt8","8. Afterbereich","GT710 - 1,8 mm ","GT742 - 2,0 mm","GT710 - 1,8 mm ","GT742 - 2,0 mm","GT710 - 1,8 mm ","GT742 - 2,0 mm"]
["DE426","Shih Tzu","Favorita",null,"Opt7","7. Pfoten","GH712 - 1,0 mm ","GT772 - 0,7 mm ","GH712 - 1,0 mm ","GT772 - 0,7 mm ","GH712 - 1,0 mm ","GT772 - 0,7 mm "]
["DE427","Shih Tzu","Favorita",null,"Opt1","1. Körper normale Fellstruktur","GT779 - 9,0 mm ",null,"GT782 - 12,0 mm ",null,"GT784 - 16,0 mm "]
["DE428","Shih Tzu","Favorita",null,"Opt2","2. Körper sauberes Fell","GT779 - 9,0 mm ",null,"GT782 - 12,0 mm ",null,"GT784 - 16,0 mm "]
["DE429","Shih Tzu","Favorita",null,"Opt3","3. Körper verfilztes Fell","GT754 - 3,0 mm ",null,"GT758 - 5,0 mm ",null,"GT758 - 5,0 mm "]
["DE430","Shih Tzu","Favorita",null,"Opt6","6. Läufe","Schere VH016C - 190 mm ","Schere VH017C - 200 mm ","Schere VH016C - 190 mm ","Schere VH017C - 200 mm ","Schere VH016C - 190 mm ","Schere VH017C - 200 mm "]
["DE431","Shih Tzu","Favorita",null,"Opt4","4. Kopf","GT754 - 3,0 mm ",null,"GT754 - 3,0 mm ",null,"GT754 - 3,0 mm "]
["DE432","Shih Tzu","Favorita",null,"Opt5","5. Ohren","GH715 - 2,0 mm",null,"GH715 - 2,0 mm",null,"GH715 - 2,0 mm"]
["DE449","Italienischer Volpino","Favorita",null,"Opt8","8. Afterbereich","GT710 - 1,8 mm ","GT742 - 2,0 mm","GT710 - 1,8 mm ","GT742 - 2,0 mm","GT710 - 1,8 mm ","GT742 - 2,0 mm"]
["DE450","Italienischer Volpino","Favorita",null,"Opt7","7. Pfoten","GH712 - 1,0 mm ","GT772 - 0,7 mm ","GH712 - 1,0 mm ","GT772 - 0,7 mm ","GH712 - 1,0 mm ","GT772 - 0,7 mm "]
["DE451","Italienischer Volpino","Favorita",null,"Opt1","1. Körper normale Fellstruktur","GT758 - 5,0 mm ",null,"GT770 - 7,0 mm ",null,"GT779 - 9,0 mm "]
["DE452","Italienischer Volpino","Favorita",null,"Opt2","2. Körper sauberes Fell","GT758 - 5,0 mm ",null,"GT770 - 7,0 mm ",null,"GT779 - 9,0 mm "]
["DE453","Italienischer Volpino","Favorita",null,"Opt3","3. Körper verfilztes Fell","GT754 - 3,0 mm ",null,"GT758 - 5,0 mm ",null,"GT770 - 7,0 mm "]
["DE454","Italienischer Volpino","Favorita",null,"Opt6","6. Läufe","Schere VH016C - 190 mm ","Schere VH017C - 200 mm ","Schere VH016C - 190 mm ","Schere VH017C - 200 mm ","Schere VH016C - 190 mm ","Schere VH017C - 200 mm "]
["DE455","Italienischer Volpino","Favorita",null,"Opt4","4. Kopf","Schere VH016C - 190 mm ","Schere VH017C - 200 mm ","Schere VH016C - 190 mm ","Schere VH017C - 200 mm ","Schere VH016C - 190 mm ","Schere VH017C - 200 mm "]
["DE456","Italienischer Volpino","Favorita",null,"Opt5","5. Ohren","Schere VH016C - 190 mm ","Schere VH017C - 200 mm ","Schere VH016C - 190 mm ","Schere VH017C - 200 mm ","Schere VH016C - 190 mm ","Schere VH017C - 200 mm "]
["DE457","Wesh Terrier","Favorita",null,"Opt8","8. Afterbereich","GT742 - 2,0 mm",null,"GT742 - 2,0 mm",null,"GT742 - 2,0 mm"]
["DE458","Wesh Terrier","Favorita",null,"Opt7","7. Pfoten","GH712 - 1,0 mm ","GT772 - 0,7 mm ","GH712 - 1,0 mm ","GT772 - 0,7 mm ","GH712 - 1,0 mm ","GT772 - 0,7 mm "]
["DE459","Wesh Terrier","Favorita",null,"Opt1","1. Körper normale Fellstruktur","Trimmmesser",null,"Trimmmesser",null,"Trimmmesser"]
["DE460","Wesh Terrier","Favorita",null,"Opt2","2. Körper sauberes Fell","GT754 - 3,0 mm ",null,"GT758 - 5,0 mm ",null,"GT770 - 7,0 mm "]
["DE461","Wesh Terrier","Favorita",null,"Opt3","3. Körper verfilztes Fell","GT748 - 3,0 mm",null,"GT748 - 3,0 mm",null,"GT748 - 3,0 mm"]
["DE462","Wesh Terrier","Favorita",null,"Opt6","6. Läufe","Schere VH016C - 190 mm ",null,"Schere VH016C - 190 mm ",null,"Schere VH016C - 190 mm "]
["DE463","Wesh Terrier","Favorita",null,"Opt4","4. Kopf","GT754 - 3,0 mm ",null,"GT754 - 3,0 mm ",null,"GT754 - 3,0 mm "]
["DE464","Wesh Terrier","Favorita",null,"Opt5","5. Ohren","GT742 - 2,0 mm",null,"GT742 - 2,0 mm",null,"GT742 - 2,0 mm"]
["DE465","West Highland White Terrier","Favorita",null,"Opt8","8. Afterbereich","GT742 - 2,0 mm",null,"GT742 - 2,0 mm",null,"GT742 - 2,0 mm"]
["DE466","West Highland White Terrier","Favorita",null,"Opt7","7. Pfoten","GH712 - 1,0 mm ","GT772 - 0,7 mm ","GH712 - 1,0 mm ","GT772 - 0,7 mm ","GH712 - 1,0 mm ","GT772 - 0,7 mm "]
["DE467","West Highland White Terrier","Favorita",null,"Opt1","1. Körper normale Fellstruktur","Trimmmesser",null,"Trimmmesser",null,"Trimmmesser"]
["DE468","West Highland White Terrier","Favorita",null,"Opt2","2. Körper sauberes Fell","GT754 - 3,0 mm ",null,"GT758 - 5,0 mm ",null,"GT770 - 7,0 mm "]
["DE469","West Highland White Terrier","Favorita",null,"Opt3","3. Körper verfilztes Fell","GT748 - 3,0 mm",null,"GT748 - 3,0 mm",null,"GT748 - 3,0 mm"]
["DE470","West Highland White Terrier","Favorita",null,"Opt6","6. Läufe","Schere VH016C - 190 mm ",null,"Schere VH016C - 190 mm ",null,"Schere VH016C - 190 mm "]
["DE471","West Highland White Terrier","Favorita",null,"Opt4","4. Kopf","GT754 - 3,0 mm ",null,"GT754 - 3,0 mm ",null,"GT754 - 3,0 mm "]
["DE472","West Highland White Terrier","Favorita",null,"Opt5","5. Ohren","GT742 - 2,0 mm",null,"GT742 - 2,0 mm",null,"GT742 - 2,0 mm"]
["DE481","Wolfsspitz","Favorita",null,"Opt8","8. Afterbereich","GT710 - 1,8 mm ","GT742 - 2,0 mm","GT710 - 1,8 mm ","GT742 - 2,0 mm","GT710 - 1,8 mm ","GT742 - 2,0 mm"]
["DE482","Wolfsspitz","Favorita",null,"Opt7","7. Pfoten","GH712 - 1,0 mm ","GT772 - 0,7 mm ","GH712 - 1,0 mm ","GT772 - 0,7 mm ","GH712 - 1,0 mm ","GT772 - 0,7 mm "]
["DE483","Wolfsspitz","Favorita",null,"Opt1","1. Körper normale Fellstruktur","GT758 - 5,0 mm ",null,"GT770 - 7,0 mm ",null,"GT779 - 9,0 mm "]
["DE484","Wolfsspitz","Favorita",null,"Opt2","2. Körper sauberes Fell","GT758 - 5,0 mm ",null,"GT770 - 7,0 mm ",null,"GT779 - 9,0 mm "]
["DE485","Wolfsspitz","Favorita",null,"Opt3","3. Körper verfilztes Fell","GT754 - 3,0 mm ",null,"GT758 - 5,0 mm ",null,"GT770 - 7,0 mm "]
["DE486","Wolfsspitz","Favorita",null,"Opt6","6. Läufe","Schere VH016C - 190 mm ","Schere VH017C - 200 mm ","Schere VH016C - 190 mm ","Schere VH017C - 200 mm ","Schere VH016C - 190 mm ","Schere VH017C - 200 mm "]
["DE487","Wolfsspitz","Favorita",null,"Opt4","4. Kopf","Schere VH016C - 190 mm ","Schere VH017C - 200 mm ","Schere VH016C - 190 mm ","Schere VH017C - 200 mm ","Schere VH016C - 190 mm ","Schere VH017C - 200 mm "]
["DE488","Wolfsspitz","Favorita",null,"Opt5","5. Ohren","Schere VH016C - 190 mm ","Schere VH017C - 200 mm ","Schere VH016C - 190 mm ","Schere VH017C - 200 mm ","Schere VH016C - 190 mm ","Schere VH017C - 200 mm "]
["DE489","Yorkshire Terrier","Favorita",null,"Opt8","8. Afterbereich","GT742 - 2,0 mm",null,"GT742 - 2,0 mm",null,"GT742 - 2,0 mm"]
["DE490","Yorkshire Terrier","Favorita",null,{"$f":"\"Opt\"&LEFT(F451,1)","v":"Opt7"},"7. Pfoten","GH712 - 1,0 mm ","GT772 - 0,7 mm ","GH712 - 1,0 mm ","GT772 - 0,7 mm ","GH712 - 1,0 mm ","GT772 - 0,7 mm "]
["DE491","Yorkshire Terrier","Favorita",null,"Opt1","1. Körper normale Fellstruktur","GT779 - 9,0 mm ",null,"GT782 - 12,0 mm ",null,"GT784 - 16,0 mm "]
["DE492","Yorkshire Terrier","Favorita",null,"Opt2","2. Körper sauberes Fell","GT779 - 9,0 mm ",null,"GT782 - 12,0 mm ",null,"GT784 - 16,0 mm "]
["DE493","Yorkshire Terrier","Favorita",null,"Opt3","3. Körper verfilztes Fell","GT748 - 3,0 mm",null,"GT748 - 3,0 mm",null,"GT748 - 3,0 mm"]
["DE494","Yorkshire Terrier","Favorita",null,"Opt6","6. Läufe","Schere VH016C - 190 mm ",null,"Schere VH016C - 190 mm ",null,"Schere VH016C - 190 mm "]
["DE495","Yorkshire Terrier","Favorita",null,"Opt4","4. Kopf","GT754 - 3,0 mm ",null,"GT754 - 3,0 mm ",null,"GT754 - 3,0 mm "]
["DE496","Yorkshire Terrier","Favorita",null,"Opt5","5. Ohren","GT742 - 2,0 mm",null,"GT742 - 2,0 mm",null,"GT742 - 2,0 mm"]
["DE497","Zwergspitz","Favorita",null,"Opt8","8. Afterbereich","GT710 - 1,8 mm ","GT742 - 2,0 mm","GT710 - 1,8 mm ","GT742 - 2,0 mm","GT710 - 1,8 mm ","GT742 - 2,0 mm"]
["DE498","Zwergspitz","Favorita",null,"Opt7","7. Pfoten","GH712 - 1,0 mm ","GT772 - 0,7 mm ","GH712 - 1,0 mm ","GT772 - 0,7 mm ","GH712 - 1,0 mm ","GT772 - 0,7 mm "]
["DE499","Zwergspitz","Favorita",null,"Opt1","1. Körper normale Fellstruktur","GT758 - 5,0 mm ",null,"GT770 - 7,0 mm ",null,"GT779 - 9,0 mm "]
["DE500","Zwergspitz","Favorita",null,"Opt2","2. Körper sauberes Fell","GT758 - 5,0 mm ",null,"GT770 - 7,0 mm ",null,"GT779 - 9,0 mm "]
["DE501","Zwergspitz","Favorita",null,"Opt3","3. Körper verfilztes Fell","GT754 - 3,0 mm ",null,"GT758 - 5,0 mm ",null,"GT770 - 7,0 mm "]
["DE502","Zwergspitz","Favorita",null,"Opt6","6. Läufe","Schere VH016C - 190 mm ","Schere VH017C - 200 mm ","Schere VH016C - 190 mm ","Schere VH017C - 200 mm ","Schere VH016C - 190 mm ","Schere VH017C - 200 mm "]
["DE503","Zwergspitz","Favorita",null,"Opt4","4. Kopf","Schere VH016C - 190 mm ","Schere VH017C - 200 mm ","Schere VH016C - 190 mm ","Schere VH017C - 200 mm ","Schere VH016C - 190 mm ","Schere VH017C - 200 mm "]
["DE504","Zwergspitz","Favorita",null,"Opt5","5. Ohren","Schere VH016C - 190 mm ","Schere VH017C - 200 mm ","Schere VH016C - 190 mm ","Schere VH017C - 200 mm ","Schere VH016C - 190 mm ","Schere VH017C - 200 mm "]
["DE505","Affenpinscher","SnapOn",null,{"$f":"\"Opt\"&LEFT(F466,1)","v":"Opt8"},"8. Afterbereich","GT333 - 2,0 mm",null,"GT333 - 2,0 mm",null,"GT333 - 2,0 mm"]
["DE506","Affenpinscher","SnapOn",null,{"$f":"\"Opt\"&LEFT(F467,1)","v":"Opt7"},"7. Pfoten","GT320 - 0,8 mm",null,"GT320 - 0,8 mm",null,"GT320 - 0,8 mm"]
["DE507","Affenpinscher","SnapOn",null,"Opt1","1. Körper normale Fellstruktur","GT357 - 6,3 mm",null,"GT357 - 6,3 mm",null,"GT357 - 6,3 mm"]
["DE508","Affenpinscher","SnapOn",null,"Opt2","2. Körper sauberes Fell","GT357 - 6,3 mm",null,"GT357 - 6,3 mm",null,"GT357 - 6,3 mm"]
["DE509","Affenpinscher","SnapOn",null,"Opt3","3. Körper verfilztes Fell","GT345 - 3,2 mm",null,"GT357 - 6,3 mm",null,"GT357 - 6,3 mm"]
["DE510","Affenpinscher","SnapOn",null,"Opt6","6. Läufe","Schere VH016C - 190 mm","Schere VH017C - 200 mm","Schere VH016C - 190 mm","Schere VH017C - 200 mm","Schere VH016C - 190 mm","Schere VH017C - 200 mm"]
["DE511","Affenpinscher","SnapOn",null,"Opt4","4. Kopf","Schere VH016C - 190 mm","Schere VH017C - 200 mm","Schere VH016C - 190 mm","Schere VH017C - 200 mm","Schere VH016C - 190 mm","Schere VH017C - 200 mm"]
["DE512","Affenpinscher","SnapOn",null,"Opt5","5. Ohren","Schere VH016C - 190 mm","Schere VH017C - 200 mm","Schere VH016C - 190 mm","Schere VH017C - 200 mm","Schere VH016C - 190 mm","Schere VH017C - 200 mm"]
["DE513","Airedale Terrier","SnapOn",null,"Opt8","8. Afterbereich","GT333 - 2,0 mm",null,"GT333 - 2,0 mm",null,"GT333 - 2,0 mm"]
["DE514","Airedale Terrier","SnapOn",null,"Opt7","7. Pfoten","GT320 - 0,8 mm",null,"GT320 - 0,8 mm",null,"GT320 - 0,8 mm"]
["DE515","Airedale Terrier","SnapOn",null,"Opt1","1. Körper normale Fellstruktur","Trimmmesser",null,"Trimmmesser",null,"Trimmmesser"]
["DE516","Airedale Terrier","SnapOn",null,"Opt2","2. Körper sauberes Fell","GT345 - 3,2 mm",null,"GT357 - 6,3 mm",null,"GT366 - 9,5 mm"]
["DE517","Airedale Terrier","SnapOn",null,"Opt3","3. Körper verfilztes Fell","GT345 - 3,2 mm",null,"GT345 - 3,2 mm",null,"GT345 - 3,2 mm"]
["DE518","Airedale Terrier","SnapOn",null,"Opt6","6. Läufe","Schere VH016C - 190 mm","Schere VH017C - 200 mm","Schere VH016C - 190 mm","Schere VH017C - 200 mm","Schere VH016C - 190 mm","Schere VH017C - 200 mm"]
["DE519","Airedale Terrier","SnapOn",null,"Opt4","4. Kopf","GT345 - 3,2 mm",null,"GT345 - 3,2 mm",null,"GT345 - 3,2 mm"]
["DE520","Airedale Terrier","SnapOn",null,"Opt5","5. Ohren","GT333 - 2,0 mm",null,"GT333 - 2,0 mm",null,"GT333 - 2,0 mm"]
["DE521","Akita","SnapOn",null,"Opt8","8. Afterbereich","GT333 - 2,0 mm",null,"GT333 - 2,0 mm",null,"GT333 - 2,0 mm"]
["DE522","Akita","SnapOn",null,"Opt7","7. Pfoten","GT320 - 0,8 mm",null,"GT320 - 0,8 mm",null,"GT320 - 0,8 mm"]
["DE523","Akita","SnapOn",null,"Opt1","1. Körper normale Fellstruktur","GT345 - 3,2 mm","ausbürsten","GT357 - 6,3 mm",null,"GT357 - 6,3 mm"]
["DE524","Akita","SnapOn",null,"Opt2","2. Körper sauberes Fell","GT345 - 3,2 mm","ausbürsten","GT357 - 6,3 mm",null,"GT357 - 6,3 mm"]
["DE525","Akita","SnapOn",null,"Opt3","3. Körper verfilztes Fell","GT345 - 3,2 mm",null,"GT345 - 3,2 mm",null,"GT345 - 3,2 mm"]
["DE526","Akita","SnapOn",null,"Opt6","6. Läufe","Schere VH016C - 190 mm","Schere VH017C - 200 mm","Schere VH016C - 190 mm","Schere VH017C - 200 mm","Schere VH016C - 190 mm","Schere VH017C - 200 mm"]
["DE527","Akita","SnapOn",null,"Opt4","4. Kopf","Schere VH016C - 190 mm","Schere VH017C - 200 mm","Schere VH016C - 190 mm","Schere VH017C - 200 mm","Schere VH016C - 190 mm","Schere VH017C - 200 mm"]
["DE528","Akita","SnapOn",null,"Opt5","5. Ohren","Schere VH016C - 190 mm","Schere VH017C - 200 mm","Schere VH016C - 190 mm","Schere VH017C - 200 mm","Schere VH016C - 190 mm","Schere VH017C - 200 mm"]
["DE529","Alaskan Malamute","SnapOn",null,"Opt8","8. Afterbereich","GT333 - 2,0 mm",null,"GT333 - 2,0 mm",null,"GT333 - 2,0 mm"]
["DE530","Alaskan Malamute","SnapOn",null,"Opt7","7. Pfoten","GT320 - 0,8 mm",null,"GT320 - 0,8 mm",null,"GT320 - 0,8 mm"]
["DE531","Alaskan Malamute","SnapOn",null,"Opt1","1. Körper normale Fellstruktur","GT345 - 3,2 mm","ausbürsten","GT357 - 6,3 mm",null,"GT357 - 6,3 mm"]
["DE532","Alaskan Malamute","SnapOn",null,"Opt2","2. Körper sauberes Fell","GT345 - 3,2 mm","ausbürsten","GT357 - 6,3 mm",null,"GT357 - 6,3 mm"]
["DE533","Alaskan Malamute","SnapOn",null,"Opt3","3. Körper verfilztes Fell","GT345 - 3,2 mm",null,"GT345 - 3,2 mm",null,"GT345 - 3,2 mm"]
["DE534","Alaskan Malamute","SnapOn",null,"Opt6","6. Läufe","Schere VH016C - 190 mm","Schere VH017C - 200 mm","Schere VH016C - 190 mm","Schere VH017C - 200 mm","Schere VH016C - 190 mm","Schere VH017C - 200 mm"]
["DE535","Alaskan Malamute","SnapOn",null,"Opt4","4. Kopf","Schere VH016C - 190 mm","Schere VH017C - 200 mm","Schere VH016C - 190 mm","Schere VH017C - 200 mm","Schere VH016C - 190 mm","Schere VH017C - 200 mm"]
["DE536","Alaskan Malamute","SnapOn",null,"Opt5","5. Ohren","Schere VH016C - 190 mm","Schere VH017C - 200 mm","Schere VH016C - 190 mm","Schere VH017C - 200 mm","Schere VH016C - 190 mm","Schere VH017C - 200 mm"]
["DE537","Amerikanisch Cocker Spaniel","SnapOn",null,"Opt8","8. Afterbereich","GT333 - 2,0 mm",null,"GT333 - 2,0 mm",null,"GT333 - 2,0 mm"]
["DE538","Amerikanisch Cocker Spaniel","SnapOn",null,"Opt7","7. Pfoten","GT320 - 0,8 mm",null,"GT320 - 0,8 mm",null,"GT320 - 0,8 mm"]
["DE539","Amerikanisch Cocker Spaniel","SnapOn",null,"Opt1","1. Körper normale Fellstruktur","GT357 - 6,3 mm","Trimmmesser","GT357 - 6,3 mm",null,"GT357 - 6,3 mm"]
["DE540","Amerikanisch Cocker Spaniel","SnapOn",null,"Opt2","2. Körper sauberes Fell","GT357 - 6,3 mm",null,"GT357 - 6,3 mm",null,"GT357 - 6,3 mm"]
["DE541","Amerikanisch Cocker Spaniel","SnapOn",null,"Opt3","3. Körper verfilztes Fell","GT345 - 3,2 mm",null,"GT357 - 6,3 mm",null,"GT357 - 6,3 mm"]
["DE542","Amerikanisch Cocker Spaniel","SnapOn",null,"Opt6","6. Läufe","Schere VH016C - 190 mm","Schere VH017C - 200 mm","Schere VH016C - 190 mm","Schere VH017C - 200 mm","Schere VH016C - 190 mm","Schere VH017C - 200 mm"]
["DE543","Amerikanisch Cocker Spaniel","SnapOn",null,"Opt4","4. Kopf","GT333 - 2,0 mm",null,"GT333 - 2,0 mm",null,"GT333 - 2,0 mm"]
["DE544","Amerikanisch Cocker Spaniel","SnapOn",null,"Opt5","5. Ohren","Schere VH016C - 190 mm","Schere VH017C - 200 mm","Schere VH016C - 190 mm","Schere VH017C - 200 mm","Schere VH016C - 190 mm","Schere VH017C - 200 mm"]
["DE545","Australien Shepherd","SnapOn",null,"Opt8","8. Afterbereich","GT333 - 2,0 mm",null,"GT333 - 2,0 mm",null,"GT333 - 2,0 mm"]
["DE546","Australien Shepherd","SnapOn",null,"Opt7","7. Pfoten","GT320 - 0,8 mm",null,"GT320 - 0,8 mm",null,"GT320 - 0,8 mm"]
["DE547","Australien Shepherd","SnapOn",null,"Opt1","1. Körper normale Fellstruktur","GT345 - 3,2 mm","ausbürsten","GT357 - 6,3 mm",null,"GT357 - 6,3 mm"]
["DE548","Australien Shepherd","SnapOn",null,"Opt2","2. Körper sauberes Fell","GT345 - 3,2 mm","ausbürsten","GT357 - 6,3 mm",null,"GT357 - 6,3 mm"]
["DE549","Australien Shepherd","SnapOn",null,"Opt3","3. Körper verfilztes Fell","GT345 - 3,2 mm",null,"GT345 - 3,2 mm",null,"GT345 - 3,2 mm"]
["DE550","Australien Shepherd","SnapOn",null,"Opt6","6. Läufe","Schere VH016C - 190 mm","Schere VH017C - 200 mm","Schere VH016C - 190 mm","Schere VH017C - 200 mm","Schere VH016C - 190 mm","Schere VH017C - 200 mm"]
["DE551","Australien Shepherd","SnapOn",null,"Opt4","4. Kopf","Schere VH016C - 190 mm","Schere VH017C - 200 mm","Schere VH016C - 190 mm","Schere VH017C - 200 mm","Schere VH016C - 190 mm","Schere VH017C - 200 mm"]
["DE552","Australien Shepherd","SnapOn",null,"Opt5","5. Ohren","Schere VH016C - 190 mm","Schere VH017C - 200 mm","Schere VH016C - 190 mm","Schere VH017C - 200 mm","Schere VH016C - 190 mm","Schere VH017C - 200 mm"]
["DE553","Basset","SnapOn",null,"Opt8","8. Afterbereich","GT333 - 2,0 mm",null,"GT333 - 2,0 mm",null,"GT333 - 2,0 mm"]
["DE554","Basset","SnapOn",null,"Opt7","7. Pfoten","GT320 - 0,8 mm",null,"GT320 - 0,8 mm",null,"GT320 - 0,8 mm"]
["DE555","Basset","SnapOn",null,"Opt1","1. Körper normale Fellstruktur","GT357 - 6,3 mm",null,"GT357 - 6,3 mm",null,"GT357 - 6,3 mm"]
["DE556","Basset","SnapOn",null,"Opt2","2. Körper sauberes Fell","GT357 - 6,3 mm",null,"GT357 - 6,3 mm",null,"GT357 - 6,3 mm"]
["DE557","Basset","SnapOn",null,"Opt3","3. Körper verfilztes Fell","GT345 - 3,2 mm",null,"GT357 - 6,3 mm",null,"GT357 - 6,3 mm"]
["DE558","Basset","SnapOn",null,"Opt6","6. Läufe","Schere VH016C - 190 mm","Schere VH017C - 200 mm","Schere VH016C - 190 mm","Schere VH017C - 200 mm","Schere VH016C - 190 mm","Schere VH017C - 200 mm"]
["DE559","Basset","SnapOn",null,"Opt4","4. Kopf","GT333 - 2,0 mm",null,"GT333 - 2,0 mm",null,"GT333 - 2,0 mm"]
["DE560","Basset","SnapOn",null,"Opt5","5. Ohren","GT333 - 2,0 mm",null,"GT333 - 2,0 mm",null,"GT333 - 2,0 mm"]
["DE561","Beagle","SnapOn",null,"Opt8","8. Afterbereich","GT333 - 2,0 mm",null,"GT333 - 2,0 mm",null,"GT333 - 2,0 mm"]
["DE562","Beagle","SnapOn",null,"Opt7","7. Pfoten","GT320 - 0,8 mm",null,"GT320 - 0,8 mm",null,"GT320 - 0,8 mm"]
["DE563","Beagle","SnapOn",null,"Opt1","1. Körper normale Fellstruktur","GT357 - 6,3 mm",null,"GT357 - 6,3 mm",null,"GT357 - 6,3 mm"]
["DE564","Beagle","SnapOn",null,"Opt2","2. Körper sauberes Fell","GT357 - 6,3 mm",null,"GT357 - 6,3 mm",null,"GT357 - 6,3 mm"]
["DE565","Beagle","SnapOn",null,"Opt3","3. Körper verfilztes Fell","GT345 - 3,2 mm",null,"GT357 - 6,3 mm",null,"GT357 - 6,3 mm"]
["DE566","Beagle","SnapOn",null,"Opt6","6. Läufe","Schere VH016C - 190 mm","Schere VH017C - 200 mm","Schere VH016C - 190 mm","Schere VH017C - 200 mm","Schere VH016C - 190 mm","Schere VH017C - 200 mm"]
["DE567","Beagle","SnapOn",null,"Opt4","4. Kopf","GT333 - 2,0 mm",null,"GT333 - 2,0 mm",null,"GT333 - 2,0 mm"]
["DE568","Beagle","SnapOn",null,"Opt5","5. Ohren","GT333 - 2,0 mm",null,"GT333 - 2,0 mm",null,"GT333 - 2,0 mm"]
["DE569","Bearded Collie","SnapOn",null,"Opt8","8. Afterbereich","GT333 - 2,0 mm",null,"GT333 - 2,0 mm",null,"GT333 - 2,0 mm"]
["DE570","Bearded Collie","SnapOn",null,{"$f":"\"Opt\"&LEFT(F531,1)","v":"Opt7"},"7. Pfoten","GT320 - 0,8 mm",null,"GT320 - 0,8 mm",null,"GT320 - 0,8 mm"]
["DE571","Bearded Collie","SnapOn",null,"Opt1","1. Körper normale Fellstruktur","GT360 - 6,3 mm","GT357 - 6,3 mm"," GT360 - 6,3 mm","GT364 - 9,5 mm","Schere VH016C - 190 mm","Schere VH017C - 200 mm"]
["DE572","Bearded Collie","SnapOn",null,"Opt2","2. Körper sauberes Fell","GT360 - 6,3 mm","GT357 - 6,3 mm"," GT360 - 6,3 mm","GT364 - 9,5 mm","Schere VH016C - 190 mm","Schere VH017C - 200 mm"]
["DE573","Bearded Collie","SnapOn",null,"Opt3","3. Körper verfilztes Fell","GT345 - 3,2 mm",null,"GT345 - 3,2 mm",null,"GT345 - 3,2 mm"]
["DE574","Bearded Collie","SnapOn",null,"Opt6","6. Läufe","Schere VH016C - 190 mm","Schere VH017C - 200 mm","Schere VH016C - 190 mm","Schere VH017C - 200 mm","Schere VH016C - 190 mm","Schere VH017C - 200 mm"]
["DE575","Bearded Collie","SnapOn",null,"Opt4","4. Kopf","Schere VH016C - 190 mm","Schere VH017C - 200 mm","Schere VH016C - 190 mm","Schere VH017C - 200 mm","Schere VH016C - 190 mm","Schere VH017C - 200 mm"]
["DE576","Bearded Collie","SnapOn",null,"Opt5","5. Ohren","Schere VH016C - 190 mm","Schere VH017C - 200 mm","Schere VH016C - 190 mm","Schere VH017C - 200 mm","Schere VH016C - 190 mm","Schere VH017C - 200 mm"]
["DE577","Bedlington Terrier","SnapOn",null,"Opt8","8. Afterbereich","GT333 - 2,0 mm",null,"GT333 - 2,0 mm",null,"GT333 - 2,0 mm"]
["DE578","Bedlington Terrier","SnapOn",null,"Opt7","7. Pfoten","GT320 - 0,8 mm",null,"GT320 - 0,8 mm",null,"GT320 - 0,8 mm"]
["DE579","Bedlington Terrier","SnapOn",null,"Opt1","1. Körper normale Fellstruktur","GT345 - 3,2 mm",null,"GT357 - 6,3 mm",null,"GT366 - 9,5 mm"]
["DE580","Bedlington Terrier","SnapOn",null,"Opt2","2. Körper sauberes Fell","GT345 - 3,2 mm",null,"GT357 - 6,3 mm",null,"GT366 - 9,5 mm"]
["DE581","Bedlington Terrier","SnapOn",null,"Opt3","3. Körper verfilztes Fell","GT345 - 3,2 mm",null,"GT345 - 3,2 mm",null,"GT366 - 9,5 mm"]
["DE582","Bedlington Terrier","SnapOn",null,"Opt6","6. Läufe","Schere VH016C - 190 mm","Schere VH017C - 200 mm","Schere VH016C - 190 mm","Schere VH017C - 200 mm","Schere VH016C - 190 mm","Schere VH017C - 200 mm"]
["DE583","Bedlington Terrier","SnapOn",null,"Opt4","4. Kopf","GT345 - 3,2 mm",null,"GT345 - 3,2 mm",null,"GT345 - 3,2 mm"]
["DE584","Bedlington Terrier","SnapOn",null,"Opt5","5. Ohren","GT333 - 2,0 mm",null,"GT333 - 2,0 mm",null,"GT333 - 2,0 mm"]
["DE585","Bichon Frise","SnapOn",null,"Opt8","8. Afterbereich","GT333 - 2,0 mm",null,"GT333 - 2,0 mm",null,"GT333 - 2,0 mm"]
["DE586","Bichon Frise","SnapOn",null,"Opt7","7. Pfoten","GT320 - 0,8 mm",null,"GT320 - 0,8 mm",null,"GT320 - 0,8 mm"]
["DE587","Bichon Frise","SnapOn",null,"Opt1","1. Körper normale Fellstruktur","GT366 - 9,5 mm",null,"Schere VH016C - 190 mm","Schere VH017C - 200 mm","Schere VH016C - 190 mm","Schere VH017C - 200 mm"]
["DE588","Bichon Frise","SnapOn",null,"Opt2","2. Körper sauberes Fell","GT366 - 9,5 mm",null,"Schere VH016C - 190 mm","Schere VH017C - 200 mm","Schere VH016C - 190 mm","Schere VH017C - 200 mm"]
["DE589","Bichon Frise","SnapOn",null,"Opt3","3. Körper verfilztes Fell","GT345 - 3,2 mm",null,"GT345 - 3,2 mm",null,"GT345 - 3,2 mm"]
["DE590","Bichon Frise","SnapOn",null,"Opt6","6. Läufe","Schere VH016C - 190 mm","Schere VH017C - 200 mm","Schere VH016C - 190 mm","Schere VH017C - 200 mm","Schere VH016C - 190 mm","Schere VH017C - 200 mm"]
["DE591","Bichon Frise","SnapOn",null,"Opt4","4. Kopf","Schere VH016C - 190 mm","Schere VH017C - 200 mm","Schere VH016C - 190 mm","Schere VH017C - 200 mm","Schere VH016C - 190 mm","Schere VH017C - 200 mm"]
["DE592","Bichon Frise","SnapOn",null,"Opt5","5. Ohren","Schere VH016C - 190 mm","Schere VH017C - 200 mm","Schere VH016C - 190 mm","Schere VH017C - 200 mm","Schere VH016C - 190 mm","Schere VH017C - 200 mm"]
["DE593","Bobtail","SnapOn",null,"Opt8","8. Afterbereich","GT333 - 2,0 mm",null,"GT333 - 2,0 mm",null,"GT333 - 2,0 mm"]
["DE594","Bobtail","SnapOn",null,"Opt7","7. Pfoten","GT320 - 0,8 mm",null,"GT320 - 0,8 mm",null,"GT320 - 0,8 mm"]
["DE595","Bobtail","SnapOn",null,"Opt1","1. Körper normale Fellstruktur","GT364 - 9,5 mm",null,"GT364 - 9,5 mm",null,"GT364 - 9,5 mm"]
["DE596","Bobtail","SnapOn",null,"Opt2","2. Körper sauberes Fell","GT364 - 9,5 mm",null,"GT364 - 9,5 mm",null,"GT364 - 9,5 mm"]
["DE597","Bobtail","SnapOn",null,"Opt3","3. Körper verfilztes Fell","GT345 - 3,2 mm",null,"GT345 - 3,2 mm",null,"GT345 - 3,2 mm"]
["DE598","Bobtail","SnapOn",null,"Opt6","6. Läufe","Schere VH016C - 190 mm","Schere VH017C - 200 mm","Schere VH016C - 190 mm","Schere VH017C - 200 mm","Schere VH016C - 190 mm","Schere VH017C - 200 mm"]
["DE599","Bobtail","SnapOn",null,"Opt4","4. Kopf","Schere VH016C - 190 mm","Schere VH017C - 200 mm","Schere VH016C - 190 mm","Schere VH017C - 200 mm","Schere VH016C - 190 mm","Schere VH017C - 200 mm"]
["DE600","Bobtail","SnapOn",null,"Opt5","5. Ohren","Schere VH016C - 190 mm","Schere VH017C - 200 mm","Schere VH016C - 190 mm","Schere VH017C - 200 mm","Schere VH016C - 190 mm","Schere VH017C - 200 mm"]
["DE601","Border Collie","SnapOn",null,"Opt8","8. Afterbereich","GT333 - 2,0 mm",null,"GT333 - 2,0 mm",null,"GT333 - 2,0 mm"]
["DE602","Border Collie","SnapOn",null,"Opt7","7. Pfoten","GT320 - 0,8 mm",null,"GT320 - 0,8 mm",null,"GT320 - 0,8 mm"]
["DE603","Border Collie","SnapOn",null,"Opt1","1. Körper normale Fellstruktur","GT360 - 6,3 mm","GT357 - 6,3 mm"," GT360 - 6,3 mm","GT364 - 9,5 mm","Schere VH016C - 190 mm","Schere VH017C - 200 mm"]
["DE604","Border Collie","SnapOn",null,"Opt2","2. Körper sauberes Fell","GT360 - 6,3 mm","GT357 - 6,3 mm"," GT360 - 6,3 mm","GT364 - 9,5 mm","Schere VH016C - 190 mm","Schere VH017C - 200 mm"]
["DE605","Border Collie","SnapOn",null,"Opt3","3. Körper verfilztes Fell","GT345 - 3,2 mm",null,"GT345 - 3,2 mm",null,"GT345 - 3,2 mm"]
["DE606","Border Collie","SnapOn",null,"Opt6","6. Läufe","Schere VH016C - 190 mm","Schere VH017C - 200 mm","Schere VH016C - 190 mm","Schere VH017C - 200 mm","Schere VH016C - 190 mm","Schere VH017C - 200 mm"]
["DE607","Border Collie","SnapOn",null,"Opt4","4. Kopf","Schere VH016C - 190 mm","Schere VH017C - 200 mm","Schere VH016C - 190 mm","Schere VH017C - 200 mm","Schere VH016C - 190 mm","Schere VH017C - 200 mm"]
["DE608","Border Collie","SnapOn",null,"Opt5","5. Ohren","Schere VH016C - 190 mm","Schere VH017C - 200 mm","Schere VH016C - 190 mm","Schere VH017C - 200 mm","Schere VH016C - 190 mm","Schere VH017C - 200 mm"]
["DE609","Bouvier des Flanders","SnapOn",null,"Opt8","8. Afterbereich","GT333 - 2,0 mm",null,"GT333 - 2,0 mm",null,"GT333 - 2,0 mm"]
["DE610","Bouvier des Flanders","SnapOn",null,"Opt7","7. Pfoten","GT320 - 0,8 mm",null,"GT320 - 0,8 mm",null,"GT320 - 0,8 mm"]
["DE611","Bouvier des Flanders","SnapOn",null,"Opt1","1. Körper normale Fellstruktur","GT357 - 6,3 mm",null,"GT364 - 9,5 mm",null,"GT364 - 9,5 mm","Schere VH016C - 190 mm"]
["DE612","Bouvier des Flanders","SnapOn",null,"Opt2","2. Körper sauberes Fell","GT357 - 6,3 mm",null,"GT364 - 9,5 mm",null,"GT364 - 9,5 mm","Schere VH016C - 190 mm"]
["DE613","Bouvier des Flanders","SnapOn",null,"Opt3","3. Körper verfilztes Fell","GT357 - 6,3 mm",null,"GT357 - 6,3 mm",null,"GT357 - 6,3 mm"]
["DE614","Bouvier des Flanders","SnapOn",null,"Opt6","6. Läufe","Schere VH016C - 190 mm","Schere VH017C - 200 mm","Schere VH016C - 190 mm","Schere VH017C - 200 mm","Schere VH016C - 190 mm","Schere VH017C - 200 mm"]
["DE615","Bouvier des Flanders","SnapOn",null,"Opt4","4. Kopf","GT345 - 3,2 mm",null,"GT345 - 3,2 mm",null,"GT345 - 3,2 mm"]
["DE616","Bouvier des Flanders","SnapOn",null,"Opt5","5. Ohren","GT333 - 2,0 mm",null,"GT333 - 2,0 mm",null,"GT333 - 2,0 mm"]
["DE617","Briard","SnapOn",null,"Opt8","8. Afterbereich","GT333 - 2,0 mm",null,"GT333 - 2,0 mm",null,"GT333 - 2,0 mm"]
["DE618","Briard","SnapOn",null,"Opt7","7. Pfoten","GT320 - 0,8 mm",null,"GT320 - 0,8 mm",null,"GT320 - 0,8 mm"]
["DE619","Briard","SnapOn",null,"Opt1","1. Körper normale Fellstruktur","GT357 - 6,3 mm",null,"GT364 - 9,5 mm",null,"GT364 - 9,5 mm","Schere VH016C - 190 mm"]
["DE620","Briard","SnapOn",null,"Opt2","2. Körper sauberes Fell","GT357 - 6,3 mm",null,"GT364 - 9,5 mm",null,"GT364 - 9,5 mm","Schere VH016C - 190 mm"]
["DE621","Briard","SnapOn",null,"Opt3","3. Körper verfilztes Fell","GT345 - 3,2 mm",null,"GT357 - 6,3 mm",null,"GT364 - 9,5 mm"]
["DE622","Briard","SnapOn",null,"Opt6","6. Läufe","Schere VH016C - 190 mm","Schere VH017C - 200 mm","Schere VH016C - 190 mm","Schere VH017C - 200 mm","Schere VH016C - 190 mm","Schere VH017C - 200 mm"]
["DE623","Briard","SnapOn",null,"Opt4","4. Kopf","GT345 - 3,2 mm",null,"GT345 - 3,2 mm",null,"GT345 - 3,2 mm"]
["DE624","Briard","SnapOn",null,"Opt5","5. Ohren","GT333 - 2,0 mm",null,"GT333 - 2,0 mm",null,"GT333 - 2,0 mm"]
["DE625","Cairn Terrier","SnapOn",null,"Opt8","8. Afterbereich","GT333 - 2,0 mm",null,"GT333 - 2,0 mm",null,"GT333 - 2,0 mm"]
["DE626","Cairn Terrier","SnapOn",null,"Opt7","7. Pfoten","GT320 - 0,8 mm",null,"GT320 - 0,8 mm",null,"GT320 - 0,8 mm"]
["DE627","Cairn Terrier","SnapOn",null,"Opt1","1. Körper normale Fellstruktur","Trimmmesser",null,"Trimmmesser",null,"Trimmmesser"]
["DE628","Cairn Terrier","SnapOn",null,"Opt2","2. Körper sauberes Fell","GT345 - 3,2 mm",null,"GT357 - 6,3 mm",null,"GT366 - 9,5 mm"]
["DE629","Cairn Terrier","SnapOn",null,"Opt3","3. Körper verfilztes Fell","GT345 - 3,2 mm",null,"GT345 - 3,2 mm",null,"GT345 - 3,2 mm"]
["DE630","Cairn Terrier","SnapOn",null,"Opt6","6. Läufe","Schere VH016C - 190 mm","Schere VH017C - 200 mm","Schere VH016C - 190 mm","Schere VH017C - 200 mm","Schere VH016C - 190 mm","Schere VH017C - 200 mm"]
["DE631","Cairn Terrier","SnapOn",null,"Opt4","4. Kopf","GT345 - 3,2 mm",null,"GT345 - 3,2 mm",null,"GT345 - 3,2 mm"]
["DE632","Cairn Terrier","SnapOn",null,"Opt5","5. Ohren","GT333 - 2,0 mm",null,"GT333 - 2,0 mm",null,"GT333 - 2,0 mm"]
["DE633","Chihuahua","SnapOn",null,"Opt8","8. Afterbereich","GT333 - 2,0 mm",null,"GT333 - 2,0 mm",null,"GT333 - 2,0 mm"]
["DE634","Chihuahua","SnapOn",null,{"$f":"\"Opt\"&LEFT(F595,1)","v":"Opt7"},"7. Pfoten","GT320 - 0,8 mm",null,"GT320 - 0,8 mm",null,"GT320 - 0,8 mm"]
["DE635","Chihuahua","SnapOn",null,"Opt1","1. Körper normale Fellstruktur","GT357 - 6,3 mm","ausbürsten","GT366 - 9,5 mm",null,"Schere VH016C - 190 mm","Schere VH017C - 200 mm"]
["DE636","Chihuahua","SnapOn",null,"Opt2","2. Körper sauberes Fell","GT357 - 6,3 mm","ausbürsten","GT366 - 9,5 mm",null,"Schere VH016C - 190 mm","Schere VH017C - 200 mm"]
["DE637","Chihuahua","SnapOn",null,"Opt3","3. Körper verfilztes Fell","GT345 - 3,2 mm",null,"GT345 - 3,2 mm",null,"GT345 - 3,2 mm"]
["DE638","Chihuahua","SnapOn",null,"Opt6","6. Läufe","Schere VH016C - 190 mm","Schere VH017C - 200 mm","Schere VH016C - 190 mm","Schere VH017C - 200 mm","Schere VH016C - 190 mm","Schere VH017C - 200 mm"]
["DE639","Chihuahua","SnapOn",null,"Opt4","4. Kopf","Schere VH016C - 190 mm","Schere VH017C - 200 mm","Schere VH016C - 190 mm","Schere VH017C - 200 mm","Schere VH016C - 190 mm","Schere VH017C - 200 mm"]
["DE640","Chihuahua","SnapOn",null,"Opt5","5. Ohren","Schere VH016C - 190 mm","Schere VH017C - 200 mm","Schere VH016C - 190 mm","Schere VH017C - 200 mm","Schere VH016C - 190 mm","Schere VH017C - 200 mm"]
["DE641","Chow Chow","SnapOn",null,"Opt8","8. Afterbereich","GT333 - 2,0 mm",null,"GT333 - 2,0 mm",null,"GT333 - 2,0 mm"]
["DE642","Chow Chow","SnapOn",null,"Opt7","7. Pfoten","GT320 - 0,8 mm",null,"GT320 - 0,8 mm",null,"GT320 - 0,8 mm"]
["DE643","Chow Chow","SnapOn",null,"Opt1","1. Körper normale Fellstruktur","GT345 - 3,2 mm","ausbürsten","GT357 - 6,3 mm",null,"GT357 - 6,3 mm"]
["DE644","Chow Chow","SnapOn",null,"Opt2","2. Körper sauberes Fell","GT345 - 3,2 mm","ausbürsten","GT357 - 6,3 mm",null,"GT357 - 6,3 mm"]
["DE645","Chow Chow","SnapOn",null,"Opt3","3. Körper verfilztes Fell","GT345 - 3,2 mm",null,"GT345 - 3,2 mm",null,"GT345 - 3,2 mm"]
["DE646","Chow Chow","SnapOn",null,"Opt6","6. Läufe","Schere VH016C - 190 mm","Schere VH017C - 200 mm","Schere VH016C - 190 mm","Schere VH017C - 200 mm","Schere VH016C - 190 mm","Schere VH017C - 200 mm"]
["DE647","Chow Chow","SnapOn",null,"Opt4","4. Kopf","Schere VH016C - 190 mm","Schere VH017C - 200 mm","Schere VH016C - 190 mm","Schere VH017C - 200 mm","Schere VH016C - 190 mm","Schere VH017C - 200 mm"]
["DE648","Chow Chow","SnapOn",null,"Opt5","5. Ohren","Schere VH016C - 190 mm","Schere VH017C - 200 mm","Schere VH016C - 190 mm","Schere VH017C - 200 mm","Schere VH016C - 190 mm","Schere VH017C - 200 mm"]
["DE649","Cocker Spaniel","SnapOn",null,"Opt8","8. Afterbereich","GT333 - 2,0 mm",null,"GT333 - 2,0 mm",null,"GT333 - 2,0 mm"]
["DE650","Cocker Spaniel","SnapOn",null,"Opt7","7. Pfoten","GT320 - 0,8 mm",null,"GT320 - 0,8 mm",null,"GT320 - 0,8 mm"]
["DE651","Cocker Spaniel","SnapOn",null,"Opt1","1. Körper normale Fellstruktur","GT357 - 6,3 mm","Trimmmesser","GT357 - 6,3 mm",null,"GT357 - 6,3 mm"]
["DE652","Cocker Spaniel","SnapOn",null,"Opt2","2. Körper sauberes Fell","GT357 - 6,3 mm",null,"GT357 - 6,3 mm",null,"GT357 - 6,3 mm"]
["DE653","Cocker Spaniel","SnapOn",null,"Opt3","3. Körper verfilztes Fell","GT345 - 3,2 mm",null,"GT357 - 6,3 mm",null,"GT357 - 6,3 mm"]
["DE654","Cocker Spaniel","SnapOn",null,"Opt6","6. Läufe","Schere VH016C - 190 mm","Schere VH017C - 200 mm","Schere VH016C - 190 mm","Schere VH017C - 200 mm","Schere VH016C - 190 mm","Schere VH017C - 200 mm"]
["DE655","Cocker Spaniel","SnapOn",null,"Opt4","4. Kopf","GT333 - 2,0 mm",null,"GT333 - 2,0 mm",null,"GT333 - 2,0 mm"]
["DE656","Cocker Spaniel","SnapOn",null,"Opt5","5. Ohren","Schere VH016C - 190 mm","Schere VH017C - 200 mm","Schere VH016C - 190 mm","Schere VH017C - 200 mm","Schere VH016C - 190 mm","Schere VH017C - 200 mm"]
["DE657","Dandie Dinmont Terrier","SnapOn",null,"Opt8","8. Afterbereich","GT333 - 2,0 mm",null,"GT333 - 2,0 mm",null,"GT333 - 2,0 mm"]
["DE658","Dandie Dinmont Terrier","SnapOn",null,"Opt7","7. Pfoten","GT320 - 0,8 mm",null,"GT320 - 0,8 mm",null,"GT320 - 0,8 mm"]
["DE659","Dandie Dinmont Terrier","SnapOn",null,"Opt1","1. Körper normale Fellstruktur","Trimmmesser",null,"Trimmmesser",null,"Trimmmesser"]
["DE660","Dandie Dinmont Terrier","SnapOn",null,"Opt2","2. Körper sauberes Fell","GT345 - 3,2 mm",null,"GT357 - 6,3 mm",null,"GT366 - 9,5 mm"]
["DE661","Dandie Dinmont Terrier","SnapOn",null,"Opt3","3. Körper verfilztes Fell","GT345 - 3,2 mm",null,"GT345 - 3,2 mm",null,"GT345 - 3,2 mm"]
["DE662","Dandie Dinmont Terrier","SnapOn",null,"Opt6","6. Läufe","Schere VH016C - 190 mm","Schere VH017C - 200 mm","Schere VH016C - 190 mm","Schere VH017C - 200 mm","Schere VH016C - 190 mm","Schere VH017C - 200 mm"]
["DE663","Dandie Dinmont Terrier","SnapOn",null,"Opt4","4. Kopf","GT345 - 3,2 mm",null,"GT345 - 3,2 mm",null,"GT345 - 3,2 mm"]
["DE664","Dandie Dinmont Terrier","SnapOn",null,"Opt5","5. Ohren","GT333 - 2,0 mm",null,"GT333 - 2,0 mm",null,"GT333 - 2,0 mm"]
["DE665","Doodle","SnapOn",null,"Opt8","8. Afterbereich","GT333 - 2,0 mm",null,"GT333 - 2,0 mm",null,"GT333 - 2,0 mm"]
["DE666","Doodle","SnapOn",null,"Opt7","7. Pfoten","GT320 - 0,8 mm",null,"GT320 - 0,8 mm",null,"GT320 - 0,8 mm"]
["DE667","Doodle","SnapOn",null,"Opt1","1. Körper normale Fellstruktur","GT357 - 6,3 mm",null,"GT366 - 9,5 mm",null,"Schere VH016C - 190 mm","Schere VH017C - 200 mm"]
["DE668","Doodle","SnapOn",null,"Opt2","2. Körper sauberes Fell","GT357 - 6,3 mm",null,"GT366 - 9,5 mm",null,"Schere VH016C - 190 mm","Schere VH017C - 200 mm"]
["DE669","Doodle","SnapOn",null,"Opt3","3. Körper verfilztes Fell","GT345 - 3,2 mm",null,"GT345 - 3,2 mm",null,"GT345 - 3,2 mm"]
["DE670","Doodle","SnapOn",null,"Opt6","6. Läufe","Schere VH016C - 190 mm","Schere VH017C - 200 mm","Schere VH016C - 190 mm","Schere VH017C - 200 mm","Schere VH016C - 190 mm","Schere VH017C - 200 mm"]
["DE671","Doodle","SnapOn",null,"Opt4","4. Kopf","Schere VH016C - 190 mm","Schere VH017C - 200 mm","Schere VH016C - 190 mm","Schere VH017C - 200 mm","Schere VH016C - 190 mm","Schere VH017C - 200 mm"]
["DE672","Doodle","SnapOn",null,"Opt5","5. Ohren","Schere VH016C - 190 mm","Schere VH017C - 200 mm","Schere VH016C - 190 mm","Schere VH017C - 200 mm","Schere VH016C - 190 mm","Schere VH017C - 200 mm"]
["DE673","Englisch Cocker Spaniel","SnapOn",null,"Opt8","8. Afterbereich","GT333 - 2,0 mm",null,"GT333 - 2,0 mm",null,"GT333 - 2,0 mm"]
["DE674","Englisch Cocker Spaniel","SnapOn",null,"Opt7","7. Pfoten","GT320 - 0,8 mm",null,"GT320 - 0,8 mm",null,"GT320 - 0,8 mm"]
["DE675","Englisch Cocker Spaniel","SnapOn",null,"Opt1","1. Körper normale Fellstruktur","GT357 - 6,3 mm","Trimmmesser","GT357 - 6,3 mm",null,"GT357 - 6,3 mm"]
["DE676","Englisch Cocker Spaniel","SnapOn",null,"Opt2","2. Körper sauberes Fell","GT357 - 6,3 mm",null,"GT357 - 6,3 mm",null,"GT357 - 6,3 mm"]
["DE677","Englisch Cocker Spaniel","SnapOn",null,"Opt3","3. Körper verfilztes Fell","GT345 - 3,2 mm",null,"GT357 - 6,3 mm",null,"GT357 - 6,3 mm"]
["DE678","Englisch Cocker Spaniel","SnapOn",null,"Opt6","6. Läufe","Schere VH016C - 190 mm","Schere VH017C - 200 mm","Schere VH016C - 190 mm","Schere VH017C - 200 mm","Schere VH016C - 190 mm","Schere VH017C - 200 mm"]
["DE679","Englisch Cocker Spaniel","SnapOn",null,"Opt4","4. Kopf","GT333 - 2,0 mm",null,"GT333 - 2,0 mm",null,"GT333 - 2,0 mm"]
["DE680","Englisch Cocker Spaniel","SnapOn",null,"Opt5","5. Ohren","Schere VH016C - 190 mm","Schere VH017C - 200 mm","Schere VH016C - 190 mm","Schere VH017C - 200 mm","Schere VH016C - 190 mm","Schere VH017C - 200 mm"]
["DE681","Englisch Setter","SnapOn",null,"Opt8","8. Afterbereich","GT333 - 2,0 mm",null,"GT333 - 2,0 mm",null,"GT333 - 2,0 mm"]
["DE682","Englisch Setter","SnapOn",null,"Opt7","7. Pfoten","GT320 - 0,8 mm",null,"GT320 - 0,8 mm",null,"GT320 - 0,8 mm"]
["DE683","Englisch Setter","SnapOn",null,"Opt1","1. Körper normale Fellstruktur","GT357 - 6,3 mm","Trimmmesser","GT357 - 6,3 mm",null,"GT357 - 6,3 mm"]
["DE684","Englisch Setter","SnapOn",null,"Opt2","2. Körper sauberes Fell","GT357 - 6,3 mm","Schere VH016C - 190 mm","GT357 - 6,3 mm",null,"GT357 - 6,3 mm"]
["DE685","Englisch Setter","SnapOn",null,"Opt3","3. Körper verfilztes Fell","GT345 - 3,2 mm",null,"GT357 - 6,3 mm",null,"GT357 - 6,3 mm"]
["DE686","Englisch Setter","SnapOn",null,"Opt6","6. Läufe","Schere VH016C - 190 mm","Schere VH017C - 200 mm","Schere VH016C - 190 mm","Schere VH017C - 200 mm","Schere VH016C - 190 mm","Schere VH017C - 200 mm"]
["DE687","Englisch Setter","SnapOn",null,"Opt4","4. Kopf","GT333 - 2,0 mm",null,"GT333 - 2,0 mm",null,"GT333 - 2,0 mm"]
["DE688","Englisch Setter","SnapOn",null,"Opt5","5. Ohren","Schere VH016C - 190 mm","Schere VH017C - 200 mm","Schere VH016C - 190 mm","Schere VH017C - 200 mm","Schere VH016C - 190 mm","Schere VH017C - 200 mm"]
["DE689","Englisch Springer Spaniel","SnapOn",null,"Opt8","8. Afterbereich","GT333 - 2,0 mm",null,"GT333 - 2,0 mm",null,"GT333 - 2,0 mm"]
["DE690","Englisch Springer Spaniel","SnapOn",null,"Opt7","7. Pfoten","GT320 - 0,8 mm",null,"GT320 - 0,8 mm",null,"GT320 - 0,8 mm"]
["DE691","Englisch Springer Spaniel","SnapOn",null,"Opt1","1. Körper normale Fellstruktur","GT357 - 6,3 mm","Trimmmesser","GT357 - 6,3 mm",null,"GT357 - 6,3 mm"]
["DE692","Englisch Springer Spaniel","SnapOn",null,"Opt2","2. Körper sauberes Fell","GT357 - 6,3 mm",null,"GT357 - 6,3 mm",null,"GT357 - 6,3 mm"]
["DE693","Englisch Springer Spaniel","SnapOn",null,"Opt3","3. Körper verfilztes Fell","GT345 - 3,2 mm",null,"GT357 - 6,3 mm",null,"GT357 - 6,3 mm"]
["DE694","Englisch Springer Spaniel","SnapOn",null,"Opt6","6. Läufe","Schere VH016C - 190 mm","Schere VH017C - 200 mm","Schere VH016C - 190 mm","Schere VH017C - 200 mm","Schere VH016C - 190 mm","Schere VH017C - 200 mm"]
["DE695","Englisch Springer Spaniel","SnapOn",null,"Opt4","4. Kopf","GT333 - 2,0 mm",null,"GT333 - 2,0 mm",null,"GT333 - 2,0 mm"]
["DE696","Englisch Springer Spaniel","SnapOn",null,"Opt5","5. Ohren","Schere VH016C - 190 mm","Schere VH017C - 200 mm","Schere VH016C - 190 mm","Schere VH017C - 200 mm","Schere VH016C - 190 mm","Schere VH017C - 200 mm"]
["DE697","Fox Terrier","SnapOn",null,"Opt8","8. Afterbereich","GT333 - 2,0 mm",null,"GT333 - 2,0 mm",null,"GT333 - 2,0 mm"]
["DE698","Fox Terrier","SnapOn",null,{"$f":"\"Opt\"&LEFT(F659,1)","v":"Opt7"},"7. Pfoten","GT320 - 0,8 mm",null,"GT320 - 0,8 mm",null,"GT320 - 0,8 mm"]
["DE699","Fox Terrier","SnapOn",null,"Opt1","1. Körper normale Fellstruktur","Trimmmesser",null,"Trimmmesser",null,"Trimmmesser"]
["DE700","Fox Terrier","SnapOn",null,"Opt2","2. Körper sauberes Fell","GT345 - 3,2 mm",null,"GT357 - 6,3 mm",null,"GT366 - 9,5 mm"]
["DE701","Fox Terrier","SnapOn",null,"Opt3","3. Körper verfilztes Fell","GT345 - 3,2 mm",null,"GT345 - 3,2 mm",null,"GT345 - 3,2 mm"]
["DE702","Fox Terrier","SnapOn",null,"Opt6","6. Läufe","Schere VH016C - 190 mm","Schere VH017C - 200 mm","Schere VH016C - 190 mm","Schere VH017C - 200 mm","Schere VH016C - 190 mm","Schere VH017C - 200 mm"]
["DE703","Fox Terrier","SnapOn",null,"Opt4","4. Kopf","GT345 - 3,2 mm",null,"GT345 - 3,2 mm",null,"GT345 - 3,2 mm"]
["DE704","Fox Terrier","SnapOn",null,"Opt5","5. Ohren","GT333 - 2,0 mm",null,"GT333 - 2,0 mm",null,"GT333 - 2,0 mm"]
["DE705","Golden Retriever","SnapOn",null,"Opt8","8. Afterbereich","GT333 - 2,0 mm",null,"GT333 - 2,0 mm",null,"GT333 - 2,0 mm"]
["DE706","Golden Retriever","SnapOn",null,"Opt7","7. Pfoten","GT320 - 0,8 mm",null,"GT320 - 0,8 mm",null,"GT320 - 0,8 mm"]
["DE707","Golden Retriever","SnapOn",null,"Opt1","1. Körper normale Fellstruktur","GT345 - 3,2 mm","ausbürsten","GT357 - 6,3 mm","ausbürsten","GT357 - 6,3 mm","ausbürsten"]
["DE708","Golden Retriever","SnapOn",null,"Opt2","2. Körper sauberes Fell","GT345 - 3,2 mm","ausbürsten","GT357 - 6,3 mm","ausbürsten","GT357 - 6,3 mm","ausbürsten"]
["DE709","Golden Retriever","SnapOn",null,"Opt3","3. Körper verfilztes Fell","GT345 - 3,2 mm",null,"GT345 - 3,2 mm",null,"GT345 - 3,2 mm"]
["DE710","Golden Retriever","SnapOn",null,"Opt6","6. Läufe","Schere VH016C - 190 mm","Schere VH017C - 200 mm","Schere VH016C - 190 mm","Schere VH017C - 200 mm","Schere VH016C - 190 mm","Schere VH017C - 200 mm"]
["DE711","Golden Retriever","SnapOn",null,"Opt4","4. Kopf","Schere VH016C - 190 mm","Schere VH017C - 200 mm","Schere VH016C - 190 mm","Schere VH017C - 200 mm","Schere VH016C - 190 mm","Schere VH017C - 200 mm"]
["DE712","Golden Retriever","SnapOn",null,"Opt5","5. Ohren","Schere VH016C - 190 mm","Schere VH017C - 200 mm","Schere VH016C - 190 mm","Schere VH017C - 200 mm","Schere VH016C - 190 mm","Schere VH017C - 200 mm"]
["DE713","Gordon Setter","SnapOn",null,"Opt8","8. Afterbereich","GT333 - 2,0 mm",null,"GT333 - 2,0 mm",null,"GT333 - 2,0 mm"]
["DE714","Gordon Setter","SnapOn",null,"Opt7","7. Pfoten","GT320 - 0,8 mm",null,"GT320 - 0,8 mm",null,"GT320 - 0,8 mm"]
["DE715","Gordon Setter","SnapOn",null,"Opt1","1. Körper normale Fellstruktur","GT357 - 6,3 mm","Trimmmesser","GT357 - 6,3 mm",null,"GT357 - 6,3 mm"]
["DE716","Gordon Setter","SnapOn",null,"Opt2","2. Körper sauberes Fell","GT357 - 6,3 mm","Schere VH016C - 190 mm","GT357 - 6,3 mm",null,"GT357 - 6,3 mm"]
["DE717","Gordon Setter","SnapOn",null,"Opt3","3. Körper verfilztes Fell","GT345 - 3,2 mm",null,"GT357 - 6,3 mm",null,"GT357 - 6,3 mm"]
["DE718","Gordon Setter","SnapOn",null,"Opt6","6. Läufe","Schere VH016C - 190 mm","Schere VH017C - 200 mm","Schere VH016C - 190 mm","Schere VH017C - 200 mm","Schere VH016C - 190 mm","Schere VH017C - 200 mm"]
["DE719","Gordon Setter","SnapOn",null,"Opt4","4. Kopf","GT333 - 2,0 mm",null,"GT333 - 2,0 mm",null,"GT333 - 2,0 mm"]
["DE720","Gordon Setter","SnapOn",null,"Opt5","5. Ohren","Schere VH016C - 190 mm","Schere VH017C - 200 mm","Schere VH016C - 190 mm","Schere VH017C - 200 mm","Schere VH016C - 190 mm","Schere VH017C - 200 mm"]
["DE721","Großspitz","SnapOn",null,"Opt8","8. Afterbereich","GT333 - 2,0 mm",null,"GT333 - 2,0 mm",null,"GT333 - 2,0 mm"]
["DE722","Großspitz","SnapOn",null,"Opt7","7. Pfoten","GT320 - 0,8 mm",null,"GT320 - 0,8 mm",null,"GT320 - 0,8 mm"]
["DE723","Großspitz","SnapOn",null,"Opt1","1. Körper normale Fellstruktur","GT345 - 3,2 mm","ausbürsten","GT357 - 6,3 mm",null,"GT357 - 6,3 mm"]
["DE724","Großspitz","SnapOn",null,"Opt2","2. Körper sauberes Fell","GT345 - 3,2 mm","ausbürsten","GT357 - 6,3 mm",null,"GT357 - 6,3 mm"]
["DE725","Großspitz","SnapOn",null,"Opt3","3. Körper verfilztes Fell","GT345 - 3,2 mm",null,"GT345 - 3,2 mm",null,"GT345 - 3,2 mm"]
["DE726","Großspitz","SnapOn",null,"Opt6","6. Läufe","Schere VH016C - 190 mm","Schere VH017C - 200 mm","Schere VH016C - 190 mm","Schere VH017C - 200 mm","Schere VH016C - 190 mm","Schere VH017C - 200 mm"]
["DE727","Großspitz","SnapOn",null,"Opt4","4. Kopf","Schere VH016C - 190 mm","Schere VH017C - 200 mm","Schere VH016C - 190 mm","Schere VH017C - 200 mm","Schere VH016C - 190 mm","Schere VH017C - 200 mm"]
["DE728","Großspitz","SnapOn",null,"Opt5","5. Ohren","Schere VH016C - 190 mm","Schere VH017C - 200 mm","Schere VH016C - 190 mm","Schere VH017C - 200 mm","Schere VH016C - 190 mm","Schere VH017C - 200 mm"]
["DE729","Havaneser","SnapOn",null,"Opt8","8. Afterbereich","GT333 - 2,0 mm",null,"GT333 - 2,0 mm",null,"GT333 - 2,0 mm"]
["DE730","Havaneser","SnapOn",null,"Opt7","7. Pfoten","GT320 - 0,8 mm",null,"GT320 - 0,8 mm",null,"GT320 - 0,8 mm"]
["DE731","Havaneser","SnapOn",null,"Opt1","1. Körper normale Fellstruktur","GT357 - 6,3 mm","Schere VH016C - 190 mm","GT366 - 9,5 mm","Schere VH016C - 190 mm","Schere VH016C - 190 mm","Schere VH017C - 200 mm"]
["DE732","Havaneser","SnapOn",null,"Opt2","2. Körper sauberes Fell","GT357 - 6,3 mm","Schere VH016C - 190 mm","GT366 - 9,5 mm","Schere VH016C - 190 mm","Schere VH016C - 190 mm","Schere VH017C - 200 mm"]
["DE733","Havaneser","SnapOn",null,"Opt3","3. Körper verfilztes Fell","Schere VH016C - 190 mm","Schere VH017C - 200 mm","Schere VH016C - 190 mm","Schere VH017C - 200 mm","Schere VH016C - 190 mm","Schere VH017C - 200 mm"]
["DE734","Havaneser","SnapOn",null,"Opt6","6. Läufe","Schere VH016C - 190 mm","Schere VH017C - 200 mm","Schere VH016C - 190 mm","Schere VH017C - 200 mm","Schere VH016C - 190 mm","Schere VH017C - 200 mm"]
["DE735","Havaneser","SnapOn",null,"Opt4","4. Kopf","Schere VH016C - 190 mm","Schere VH017C - 200 mm","Schere VH016C - 190 mm","Schere VH017C - 200 mm","Schere VH016C - 190 mm","Schere VH017C - 200 mm"]
["DE736","Havaneser","SnapOn",null,"Opt5","5. Ohren","Schere VH016C - 190 mm","Schere VH017C - 200 mm","Schere VH016C - 190 mm","Schere VH017C - 200 mm","Schere VH016C - 190 mm","Schere VH017C - 200 mm"]
["DE737","Husky","SnapOn",null,"Opt8","8. Afterbereich","GT333 - 2,0 mm",null,"GT333 - 2,0 mm",null,"GT333 - 2,0 mm"]
["DE738","Husky","SnapOn",null,"Opt7","7. Pfoten","GT320 - 0,8 mm",null,"GT320 - 0,8 mm",null,"GT320 - 0,8 mm"]
["DE739","Husky","SnapOn",null,"Opt1","1. Körper normale Fellstruktur","GT345 - 3,2 mm",null,"GT357 - 6,3 mm",null,"GT357 - 6,3 mm"]
["DE740","Husky","SnapOn",null,"Opt2","2. Körper sauberes Fell","GT345 - 3,2 mm",null,"GT357 - 6,3 mm",null,"GT357 - 6,3 mm"]
["DE741","Husky","SnapOn",null,"Opt3","3. Körper verfilztes Fell","GT345 - 3,2 mm",null,"GT345 - 3,2 mm",null,"GT345 - 3,2 mm"]
["DE742","Husky","SnapOn",null,"Opt6","6. Läufe","Schere VH016C - 190 mm","Schere VH017C - 200 mm","Schere VH016C - 190 mm","Schere VH017C - 200 mm","Schere VH016C - 190 mm","Schere VH017C - 200 mm"]
["DE743","Husky","SnapOn",null,"Opt4","4. Kopf","Schere VH016C - 190 mm","Schere VH017C - 200 mm","Schere VH016C - 190 mm","Schere VH017C - 200 mm","Schere VH016C - 190 mm","Schere VH017C - 200 mm"]
["DE744","Husky","SnapOn",null,"Opt5","5. Ohren","Schere VH016C - 190 mm","Schere VH017C - 200 mm","Schere VH016C - 190 mm","Schere VH017C - 200 mm","Schere VH016C - 190 mm","Schere VH017C - 200 mm"]
["DE745","Irish Setter","SnapOn",null,"Opt8","8. Afterbereich","GT333 - 2,0 mm",null,"GT333 - 2,0 mm",null,"GT333 - 2,0 mm"]
["DE746","Irish Setter","SnapOn",null,"Opt7","7. Pfoten","GT320 - 0,8 mm",null,"GT320 - 0,8 mm",null,"GT320 - 0,8 mm"]
["DE747","Irish Setter","SnapOn",null,"Opt1","1. Körper normale Fellstruktur","GT357 - 6,3 mm","Trimmmesser","GT357 - 6,3 mm",null,"GT357 - 6,3 mm"]
["DE748","Irish Setter","SnapOn",null,"Opt2","2. Körper sauberes Fell","GT357 - 6,3 mm","Schere VH016C - 190 mm","GT357 - 6,3 mm",null,"GT357 - 6,3 mm"]
["DE749","Irish Setter","SnapOn",null,"Opt3","3. Körper verfilztes Fell","GT345 - 3,2 mm",null,"GT357 - 6,3 mm",null,"GT357 - 6,3 mm"]
["DE750","Irish Setter","SnapOn",null,"Opt6","6. Läufe","Schere VH016C - 190 mm","Schere VH017C - 200 mm","Schere VH016C - 190 mm","Schere VH017C - 200 mm","Schere VH016C - 190 mm","Schere VH017C - 200 mm"]
["DE751","Irish Setter","SnapOn",null,"Opt4","4. Kopf","GT333 - 2,0 mm",null,"GT333 - 2,0 mm",null,"GT333 - 2,0 mm"]
["DE752","Irish Setter","SnapOn",null,"Opt5","5. Ohren","Schere VH016C - 190 mm","Schere VH017C - 200 mm","Schere VH016C - 190 mm","Schere VH017C - 200 mm","Schere VH016C - 190 mm","Schere VH017C - 200 mm"]
["DE753","Irish Terrier","SnapOn",null,"Opt8","8. Afterbereich","GT333 - 2,0 mm",null,"GT333 - 2,0 mm",null,"GT333 - 2,0 mm"]
["DE754","Irish Terrier","SnapOn",null,"Opt7","7. Pfoten","GT320 - 0,8 mm",null,"GT320 - 0,8 mm",null,"GT320 - 0,8 mm"]
["DE755","Irish Terrier","SnapOn",null,"Opt1","1. Körper normale Fellstruktur","Trimmmesser",null,"Trimmmesser",null,"Trimmmesser"]
["DE756","Irish Terrier","SnapOn",null,"Opt2","2. Körper sauberes Fell","GT345 - 3,2 mm",null,"GT357 - 6,3 mm",null,"GT366 - 9,5 mm"]
["DE757","Irish Terrier","SnapOn",null,"Opt3","3. Körper verfilztes Fell","GT345 - 3,2 mm",null,"GT345 - 3,2 mm",null,"GT345 - 3,2 mm"]
["DE758","Irish Terrier","SnapOn",null,"Opt6","6. Läufe","Schere VH016C - 190 mm","Schere VH017C - 200 mm","Schere VH016C - 190 mm","Schere VH017C - 200 mm","Schere VH016C - 190 mm","Schere VH017C - 200 mm"]
["DE759","Irish Terrier","SnapOn",null,"Opt4","4. Kopf","GT345 - 3,2 mm",null,"GT345 - 3,2 mm",null,"GT345 - 3,2 mm"]
["DE760","Irish Terrier","SnapOn",null,"Opt5","5. Ohren","GT333 - 2,0 mm",null,"GT333 - 2,0 mm",null,"GT333 - 2,0 mm"]
["DE761","Japan Spitz","SnapOn",null,"Opt8","8. Afterbereich","GT333 - 2,0 mm",null,"GT333 - 2,0 mm",null,"GT333 - 2,0 mm"]
["DE762","Japan Spitz","SnapOn",null,{"$f":"\"Opt\"&LEFT(F723,1)","v":"Opt7"},"7. Pfoten","GT320 - 0,8 mm",null,"GT320 - 0,8 mm",null,"GT320 - 0,8 mm"]
["DE763","Japan Spitz","SnapOn",null,"Opt1","1. Körper normale Fellstruktur","GT345 - 3,2 mm","ausbürsten","GT357 - 6,3 mm",null,"GT357 - 6,3 mm"]
["DE764","Japan Spitz","SnapOn",null,"Opt2","2. Körper sauberes Fell","GT345 - 3,2 mm","ausbürsten","GT357 - 6,3 mm",null,"GT357 - 6,3 mm"]
["DE765","Japan Spitz","SnapOn",null,"Opt3","3. Körper verfilztes Fell","GT345 - 3,2 mm",null,"GT345 - 3,2 mm",null,"GT345 - 3,2 mm"]
["DE766","Japan Spitz","SnapOn",null,"Opt6","6. Läufe","Schere VH016C - 190 mm","Schere VH017C - 200 mm","Schere VH016C - 190 mm","Schere VH017C - 200 mm","Schere VH016C - 190 mm","Schere VH017C - 200 mm"]
["DE767","Japan Spitz","SnapOn",null,"Opt4","4. Kopf","Schere VH016C - 190 mm","Schere VH017C - 200 mm","Schere VH016C - 190 mm","Schere VH017C - 200 mm","Schere VH016C - 190 mm","Schere VH017C - 200 mm"]
["DE768","Japan Spitz","SnapOn",null,"Opt5","5. Ohren","Schere VH016C - 190 mm","Schere VH017C - 200 mm","Schere VH016C - 190 mm","Schere VH017C - 200 mm","Schere VH016C - 190 mm","Schere VH017C - 200 mm"]
["DE769","Kerry Blue Terrier","SnapOn",null,"Opt8","8. Afterbereich","GT333 - 2,0 mm",null,"GT333 - 2,0 mm",null,"GT333 - 2,0 mm"]
["DE770","Kerry Blue Terrier","SnapOn",null,"Opt7","7. Pfoten","GT320 - 0,8 mm",null,"GT320 - 0,8 mm",null,"GT320 - 0,8 mm"]
["DE771","Kerry Blue Terrier","SnapOn",null,"Opt1","1. Körper normale Fellstruktur","GT345 - 3,2 mm",null,"GT357 - 6,3 mm",null,"GT366 - 9,5 mm"]
["DE772","Kerry Blue Terrier","SnapOn",null,"Opt2","2. Körper sauberes Fell","GT345 - 3,2 mm",null,"GT357 - 6,3 mm",null,"GT366 - 9,5 mm"]
["DE773","Kerry Blue Terrier","SnapOn",null,"Opt3","3. Körper verfilztes Fell","GT345 - 3,2 mm",null,"GT345 - 3,2 mm",null,"GT366 - 9,5 mm"]
["DE774","Kerry Blue Terrier","SnapOn",null,"Opt6","6. Läufe","Schere VH016C - 190 mm","Schere VH017C - 200 mm","Schere VH016C - 190 mm","Schere VH017C - 200 mm","Schere VH016C - 190 mm","Schere VH017C - 200 mm"]
["DE775","Kerry Blue Terrier","SnapOn",null,"Opt4","4. Kopf","GT345 - 3,2 mm",null,"GT345 - 3,2 mm",null,"GT345 - 3,2 mm"]
["DE776","Kerry Blue Terrier","SnapOn",null,"Opt5","5. Ohren","GT333 - 2,0 mm",null,"GT333 - 2,0 mm",null,"GT333 - 2,0 mm"]
["DE777","Labrador","SnapOn",null,"Opt8","8. Afterbereich","GT333 - 2,0 mm",null,"GT333 - 2,0 mm",null,"GT333 - 2,0 mm"]
["DE778","Labrador","SnapOn",null,"Opt7","7. Pfoten","GT320 - 0,8 mm",null,"GT320 - 0,8 mm",null,"GT320 - 0,8 mm"]
["DE779","Labrador","SnapOn",null,"Opt1","1. Körper normale Fellstruktur","GT345 - 3,2 mm",null,"GT357 - 6,3 mm",null,"GT357 - 6,3 mm"]
["DE780","Labrador","SnapOn",null,"Opt2","2. Körper sauberes Fell","GT345 - 3,2 mm",null,"GT357 - 6,3 mm",null,"GT357 - 6,3 mm"]
["DE781","Labrador","SnapOn",null,"Opt3","3. Körper verfilztes Fell","GT345 - 3,2 mm",null,"GT345 - 3,2 mm",null,"GT345 - 3,2 mm"]
["DE782","Labrador","SnapOn",null,"Opt6","6. Läufe","GT333 - 2,0 mm",null,"GT333 - 2,0 mm",null,"GT333 - 2,0 mm"]
["DE783","Labrador","SnapOn",null,"Opt4","4. Kopf","GT333 - 2,0 mm",null,"GT333 - 2,0 mm",null,"GT333 - 2,0 mm"]
["DE784","Labrador","SnapOn",null,"Opt5","5. Ohren","GT333 - 2,0 mm",null,"GT333 - 2,0 mm",null,"GT333 - 2,0 mm"]
["DE785","Lakeland Terrier","SnapOn",null,"Opt8","8. Afterbereich","GT333 - 2,0 mm",null,"GT333 - 2,0 mm",null,"GT333 - 2,0 mm"]
["DE786","Lakeland Terrier","SnapOn",null,"Opt7","7. Pfoten","GT320 - 0,8 mm",null,"GT320 - 0,8 mm",null,"GT320 - 0,8 mm"]
["DE787","Lakeland Terrier","SnapOn",null,"Opt1","1. Körper normale Fellstruktur","Trimmmesser",null,"Trimmmesser",null,"Trimmmesser"]
["DE788","Lakeland Terrier","SnapOn",null,"Opt2","2. Körper sauberes Fell","GT345 - 3,2 mm",null,"GT357 - 6,3 mm",null,"GT366 - 9,5 mm"]
["DE789","Lakeland Terrier","SnapOn",null,"Opt3","3. Körper verfilztes Fell","GT345 - 3,2 mm",null,"GT345 - 3,2 mm",null,"GT345 - 3,2 mm"]
["DE790","Lakeland Terrier","SnapOn",null,"Opt6","6. Läufe","Schere VH016C - 190 mm","Schere VH017C - 200 mm","Schere VH016C - 190 mm","Schere VH017C - 200 mm","Schere VH016C - 190 mm","Schere VH017C - 200 mm"]
["DE791","Lakeland Terrier","SnapOn",null,"Opt4","4. Kopf","GT345 - 3,2 mm",null,"GT345 - 3,2 mm",null,"GT345 - 3,2 mm"]
["DE792","Lakeland Terrier","SnapOn",null,"Opt5","5. Ohren","GT333 - 2,0 mm",null,"GT333 - 2,0 mm",null,"GT333 - 2,0 mm"]
["DE793","Langhaarcollie","SnapOn",null,"Opt8","8. Afterbereich","GT333 - 2,0 mm",null,"GT333 - 2,0 mm",null,"GT333 - 2,0 mm"]
["DE794","Langhaarcollie","SnapOn",null,"Opt7","7. Pfoten","GT320 - 0,8 mm",null,"GT320 - 0,8 mm",null,"GT320 - 0,8 mm"]
["DE795","Langhaarcollie","SnapOn",null,"Opt1","1. Körper normale Fellstruktur","GT360 - 6,3 mm","GT357 - 6,3 mm"," GT360 - 6,3 mm","GT364 - 9,5 mm","Schere VH016C - 190 mm","Schere VH017C - 200 mm"]
["DE796","Langhaarcollie","SnapOn",null,"Opt2","2. Körper sauberes Fell","GT360 - 6,3 mm","GT357 - 6,3 mm"," GT360 - 6,3 mm","GT364 - 9,5 mm","Schere VH016C - 190 mm","Schere VH017C - 200 mm"]
["DE797","Langhaarcollie","SnapOn",null,"Opt3","3. Körper verfilztes Fell","GT345 - 3,2 mm",null,"GT345 - 3,2 mm",null,"GT345 - 3,2 mm"]
["DE798","Langhaarcollie","SnapOn",null,"Opt6","6. Läufe","Schere VH016C - 190 mm","Schere VH017C - 200 mm","Schere VH016C - 190 mm","Schere VH017C - 200 mm","Schere VH016C - 190 mm","Schere VH017C - 200 mm"]
["DE799","Langhaarcollie","SnapOn",null,"Opt4","4. Kopf","Schere VH016C - 190 mm","Schere VH017C - 200 mm","Schere VH016C - 190 mm","Schere VH017C - 200 mm","Schere VH016C - 190 mm","Schere VH017C - 200 mm"]
["DE800","Langhaarcollie","SnapOn",null,"Opt5","5. Ohren","Schere VH016C - 190 mm","Schere VH017C - 200 mm","Schere VH016C - 190 mm","Schere VH017C - 200 mm","Schere VH016C - 190 mm","Schere VH017C - 200 mm"]
["DE801","Leonberger","SnapOn",null,"Opt8","8. Afterbereich","GT333 - 2,0 mm",null,"GT333 - 2,0 mm",null,"GT333 - 2,0 mm"]
["DE802","Leonberger","SnapOn",null,"Opt7","7. Pfoten","GT320 - 0,8 mm",null,"GT320 - 0,8 mm",null,"GT320 - 0,8 mm"]
["DE803","Leonberger","SnapOn",null,"Opt1","1. Körper normale Fellstruktur","GT345 - 3,2 mm","ausbürsten","GT357 - 6,3 mm","ausbürsten","GT357 - 6,3 mm","ausbürsten"]
["DE804","Leonberger","SnapOn",null,"Opt2","2. Körper sauberes Fell","GT345 - 3,2 mm","ausbürsten","GT357 - 6,3 mm","ausbürsten","GT357 - 6,3 mm","ausbürsten"]
["DE805","Leonberger","SnapOn",null,"Opt3","3. Körper verfilztes Fell","GT345 - 3,2 mm",null,"GT345 - 3,2 mm",null,"GT345 - 3,2 mm"]
["DE806","Leonberger","SnapOn",null,"Opt6","6. Läufe","Schere VH016C - 190 mm","Schere VH017C - 200 mm","Schere VH016C - 190 mm","Schere VH017C - 200 mm","Schere VH016C - 190 mm","Schere VH017C - 200 mm"]
["DE807","Leonberger","SnapOn",null,"Opt4","4. Kopf","Schere VH016C - 190 mm","Schere VH017C - 200 mm","Schere VH016C - 190 mm","Schere VH017C - 200 mm","Schere VH016C - 190 mm","Schere VH017C - 200 mm"]
["DE808","Leonberger","SnapOn",null,"Opt5","5. Ohren","Schere VH016C - 190 mm","Schere VH017C - 200 mm","Schere VH016C - 190 mm","Schere VH017C - 200 mm","Schere VH016C - 190 mm","Schere VH017C - 200 mm"]
["DE809","Lhasa Apso","SnapOn",null,"Opt8","8. Afterbereich","GT333 - 2,0 mm",null,"GT333 - 2,0 mm",null,"GT333 - 2,0 mm"]
["DE810","Lhasa Apso","SnapOn",null,"Opt7","7. Pfoten","GT320 - 0,8 mm",null,"GT320 - 0,8 mm",null,"GT320 - 0,8 mm"]
["DE811","Lhasa Apso","SnapOn",null,"Opt1","1. Körper normale Fellstruktur","GT364 - 9,5 mm",null,"GT364 - 9,5 mm",null,"GT364 - 9,5 mm"]
["DE812","Lhasa Apso","SnapOn",null,"Opt2","2. Körper sauberes Fell","GT364 - 9,5 mm",null,"GT364 - 9,5 mm",null,"GT364 - 9,5 mm"]
["DE813","Lhasa Apso","SnapOn",null,"Opt3","3. Körper verfilztes Fell","GT345 - 3,2 mm",null,"GT345 - 3,2 mm",null,"GT345 - 3,2 mm"]
["DE814","Lhasa Apso","SnapOn",null,"Opt6","6. Läufe","Schere VH016C - 190 mm","Schere VH017C - 200 mm","Schere VH016C - 190 mm","Schere VH017C - 200 mm","Schere VH016C - 190 mm","Schere VH017C - 200 mm"]
["DE815","Lhasa Apso","SnapOn",null,"Opt4","4. Kopf","GT333 - 2,0 mm",null,"GT333 - 2,0 mm",null,"GT333 - 2,0 mm"]
["DE816","Lhasa Apso","SnapOn",null,"Opt5","5. Ohren","GT333 - 2,0 mm",null,"GT333 - 2,0 mm",null,"GT333 - 2,0 mm"]
["DE817","Malteser","SnapOn",null,"Opt8","8. Afterbereich","GT333 - 2,0 mm",null,"GT333 - 2,0 mm",null,"GT333 - 2,0 mm"]
["DE818","Malteser","SnapOn",null,"Opt7","7. Pfoten","GT320 - 0,8 mm",null,"GT320 - 0,8 mm",null,"GT320 - 0,8 mm"]
["DE819","Malteser","SnapOn",null,"Opt1","1. Körper normale Fellstruktur","GT366 - 9,5 mm","Schere VH016C - 190 mm","Schere VH016C - 190 mm","Schere VH017C - 200 mm","Schere VH016C - 190 mm","Schere VH017C - 200 mm"]
["DE820","Malteser","SnapOn",null,"Opt2","2. Körper sauberes Fell","GT366 - 9,5 mm","Schere VH016C - 190 mm","Schere VH016C - 190 mm","Schere VH017C - 200 mm","Schere VH016C - 190 mm","Schere VH017C - 200 mm"]
["DE821","Malteser","SnapOn",null,"Opt3","3. Körper verfilztes Fell","Schere VH016C - 190 mm","Schere VH017C - 200 mm","Schere VH016C - 190 mm","Schere VH017C - 200 mm","Schere VH016C - 190 mm","Schere VH017C - 200 mm"]
["DE822","Malteser","SnapOn",null,"Opt6","6. Läufe","Schere VH016C - 190 mm","Schere VH017C - 200 mm","Schere VH016C - 190 mm","Schere VH017C - 200 mm","Schere VH016C - 190 mm","Schere VH017C - 200 mm"]
["DE823","Malteser","SnapOn",null,"Opt4","4. Kopf","Schere VH016C - 190 mm","Schere VH017C - 200 mm","Schere VH016C - 190 mm","Schere VH017C - 200 mm","Schere VH016C - 190 mm","Schere VH017C - 200 mm"]
["DE824","Malteser","SnapOn",null,"Opt5","5. Ohren","Schere VH016C - 190 mm","Schere VH017C - 200 mm","Schere VH016C - 190 mm","Schere VH017C - 200 mm","Schere VH016C - 190 mm","Schere VH017C - 200 mm"]
["DE825","Mischrassen","SnapOn",null,"Opt8","8. Afterbereich","GT333 - 2,0 mm",null,"GT333 - 2,0 mm",null,"GT333 - 2,0 mm"]
["DE826","Mischrassen","SnapOn",null,{"$f":"\"Opt\"&LEFT(F787,1)","v":"Opt7"},"7. Pfoten","GT320 - 0,8 mm",null,"GT320 - 0,8 mm",null,"GT320 - 0,8 mm"]
["DE827","Mischrassen","SnapOn",null,"Opt1","1. Körper normale Fellstruktur","GT345 - 3,2 mm",null,"GT357 - 6,3 mm",null,"GT364 - 9,5 mm"]
["DE828","Mischrassen","SnapOn",null,"Opt2","2. Körper sauberes Fell","GT345 - 3,2 mm",null,"GT357 - 6,3 mm",null,"GT364 - 9,5 mm"]
["DE829","Mischrassen","SnapOn",null,"Opt3","3. Körper verfilztes Fell","GT345 - 3,2 mm",null,"GT345 - 3,2 mm",null,"GT345 - 3,2 mm"]
["DE830","Mischrassen","SnapOn",null,"Opt6","6. Läufe","GT357 - 6,3 mm",null,"GT357 - 6,3 mm",null,"GT357 - 6,3 mm"]
["DE831","Mischrassen","SnapOn",null,"Opt4","4. Kopf","GT345 - 3,2 mm","Schere VH016C - 190 mm","GT357 - 6,3 mm","Schere VH016C - 190 mm","GT364 - 9,5 mm","Schere VH016C - 190 mm"]
["DE832","Mischrassen","SnapOn",null,"Opt5","5. Ohren","GT345 - 3,2 mm","Schere VH016C - 190 mm","GT357 - 6,3 mm","Schere VH016C - 190 mm","GT364 - 9,5 mm","Schere VH016C - 190 mm"]
["DE833","Mittelspitz","SnapOn",null,"Opt8","8. Afterbereich","GT333 - 2,0 mm",null,"GT333 - 2,0 mm",null,"GT333 - 2,0 mm"]
["DE834","Mittelspitz","SnapOn",null,"Opt7","7. Pfoten","GT320 - 0,8 mm",null,"GT320 - 0,8 mm",null,"GT320 - 0,8 mm"]
["DE835","Mittelspitz","SnapOn",null,"Opt1","1. Körper normale Fellstruktur","GT345 - 3,2 mm","ausbürsten","GT357 - 6,3 mm",null,"GT357 - 6,3 mm"]
["DE836","Mittelspitz","SnapOn",null,"Opt2","2. Körper sauberes Fell","GT345 - 3,2 mm","ausbürsten","GT357 - 6,3 mm",null,"GT357 - 6,3 mm"]
["DE837","Mittelspitz","SnapOn",null,"Opt3","3. Körper verfilztes Fell","GT345 - 3,2 mm",null,"GT345 - 3,2 mm",null,"GT345 - 3,2 mm"]
["DE838","Mittelspitz","SnapOn",null,"Opt6","6. Läufe","Schere VH016C - 190 mm","Schere VH017C - 200 mm","Schere VH016C - 190 mm","Schere VH017C - 200 mm","Schere VH016C - 190 mm","Schere VH017C - 200 mm"]
["DE839","Mittelspitz","SnapOn",null,"Opt4","4. Kopf","Schere VH016C - 190 mm","Schere VH017C - 200 mm","Schere VH016C - 190 mm","Schere VH017C - 200 mm","Schere VH016C - 190 mm","Schere VH017C - 200 mm"]
["DE840","Mittelspitz","SnapOn",null,"Opt5","5. Ohren","Schere VH016C - 190 mm","Schere VH017C - 200 mm","Schere VH016C - 190 mm","Schere VH017C - 200 mm","Schere VH016C - 190 mm","Schere VH017C - 200 mm"]
["DE841","Neufundländer","SnapOn",null,"Opt8","8. Afterbereich","GT333 - 2,0 mm",null,"GT333 - 2,0 mm",null,"GT333 - 2,0 mm"]
["DE842","Neufundländer","SnapOn",null,"Opt7","7. Pfoten","GT320 - 0,8 mm",null,"GT320 - 0,8 mm",null,"GT320 - 0,8 mm"]
["DE843","Neufundländer","SnapOn",null,"Opt1","1. Körper normale Fellstruktur","GT345 - 3,2 mm","ausbürsten","GT357 - 6,3 mm",null,"GT357 - 6,3 mm"]
["DE844","Neufundländer","SnapOn",null,"Opt2","2. Körper sauberes Fell","GT345 - 3,2 mm","ausbürsten","GT357 - 6,3 mm",null,"GT357 - 6,3 mm"]
["DE845","Neufundländer","SnapOn",null,"Opt3","3. Körper verfilztes Fell","GT345 - 3,2 mm",null,"GT345 - 3,2 mm",null,"GT345 - 3,2 mm"]
["DE846","Neufundländer","SnapOn",null,"Opt6","6. Läufe","Schere VH016C - 190 mm","Schere VH017C - 200 mm","Schere VH016C - 190 mm","Schere VH017C - 200 mm","Schere VH016C - 190 mm","Schere VH017C - 200 mm"]
["DE847","Neufundländer","SnapOn",null,"Opt4","4. Kopf","Schere VH016C - 190 mm","Schere VH017C - 200 mm","Schere VH016C - 190 mm","Schere VH017C - 200 mm","Schere VH016C - 190 mm","Schere VH017C - 200 mm"]
["DE848","Neufundländer","SnapOn",null,"Opt5","5. Ohren","Schere VH016C - 190 mm","Schere VH017C - 200 mm","Schere VH016C - 190 mm","Schere VH017C - 200 mm","Schere VH016C - 190 mm","Schere VH017C - 200 mm"]
["DE849","Old English Sheepdog","SnapOn",null,"Opt8","8. Afterbereich","GT333 - 2,0 mm",null,"GT333 - 2,0 mm",null,"GT333 - 2,0 mm"]
["DE850","Old English Sheepdog","SnapOn",null,"Opt7","7. Pfoten","GT320 - 0,8 mm",null,"GT320 - 0,8 mm",null,"GT320 - 0,8 mm"]
["DE851","Old English Sheepdog","SnapOn",null,"Opt1","1. Körper normale Fellstruktur","GT364 - 9,5 mm",null,"GT364 - 9,5 mm",null,"GT364 - 9,5 mm"]
["DE852","Old English Sheepdog","SnapOn",null,"Opt2","2. Körper sauberes Fell","GT364 - 9,5 mm",null,"GT364 - 9,5 mm",null,"GT364 - 9,5 mm"]
["DE853","Old English Sheepdog","SnapOn",null,"Opt3","3. Körper verfilztes Fell","GT345 - 3,2 mm",null,"GT345 - 3,2 mm",null,"GT345 - 3,2 mm"]
["DE854","Old English Sheepdog","SnapOn",null,"Opt6","6. Läufe","Schere VH016C - 190 mm","Schere VH017C - 200 mm","Schere VH016C - 190 mm","Schere VH017C - 200 mm","Schere VH016C - 190 mm","Schere VH017C - 200 mm"]
["DE855","Old English Sheepdog","SnapOn",null,"Opt4","4. Kopf","Schere VH016C - 190 mm","Schere VH017C - 200 mm","Schere VH016C - 190 mm","Schere VH017C - 200 mm","Schere VH016C - 190 mm","Schere VH017C - 200 mm"]
["DE856","Old English Sheepdog","SnapOn",null,"Opt5","5. Ohren","Schere VH016C - 190 mm","Schere VH017C - 200 mm","Schere VH016C - 190 mm","Schere VH017C - 200 mm","Schere VH016C - 190 mm","Schere VH017C - 200 mm"]
["DE857","Pekinese","SnapOn",null,"Opt8","8. Afterbereich","GT333 - 2,0 mm",null,"GT333 - 2,0 mm",null,"GT333 - 2,0 mm"]
["DE858","Pekinese","SnapOn",null,"Opt7","7. Pfoten","GT320 - 0,8 mm",null,"GT320 - 0,8 mm",null,"GT320 - 0,8 mm"]
["DE859","Pekinese","SnapOn",null,"Opt1","1. Körper normale Fellstruktur","GT364 - 9,5 mm",null,"GT364 - 9,5 mm",null,"GT364 - 9,5 mm"]
["DE860","Pekinese","SnapOn",null,"Opt2","2. Körper sauberes Fell","GT364 - 9,5 mm",null,"GT364 - 9,5 mm",null,"GT364 - 9,5 mm"]
["DE861","Pekinese","SnapOn",null,"Opt3","3. Körper verfilztes Fell","GT345 - 3,2 mm",null,"GT345 - 3,2 mm",null,"GT345 - 3,2 mm"]
["DE862","Pekinese","SnapOn",null,"Opt6","6. Läufe","Schere VH016C - 190 mm","Schere VH017C - 200 mm","Schere VH016C - 190 mm","Schere VH017C - 200 mm","Schere VH016C - 190 mm","Schere VH017C - 200 mm"]
["DE863","Pekinese","SnapOn",null,"Opt4","4. Kopf","Schere VH016C - 190 mm","Schere VH017C - 200 mm","Schere VH016C - 190 mm","Schere VH017C - 200 mm","Schere VH016C - 190 mm","Schere VH017C - 200 mm"]
["DE864","Pekinese","SnapOn",null,"Opt5","5. Ohren","Schere VH016C - 190 mm","Schere VH017C - 200 mm","Schere VH016C - 190 mm","Schere VH017C - 200 mm","Schere VH016C - 190 mm","Schere VH017C - 200 mm"]
["DE865","Portugiesischer Wasserhund","SnapOn",null,"Opt8","8. Afterbereich","GT333 - 2,0 mm",null,"GT333 - 2,0 mm",null,"GT333 - 2,0 mm"]
["DE866","Portugiesischer Wasserhund","SnapOn",null,"Opt7","7. Pfoten","GT320 - 0,8 mm",null,"GT320 - 0,8 mm",null,"GT320 - 0,8 mm"]
["DE867","Portugiesischer Wasserhund","SnapOn",null,"Opt1","1. Körper normale Fellstruktur","GT364 - 9,5 mm",null,"GT364 - 9,5 mm",null,"GT364 - 9,5 mm"]
["DE868","Portugiesischer Wasserhund","SnapOn",null,"Opt2","2. Körper sauberes Fell","GT364 - 9,5 mm",null,"GT364 - 9,5 mm",null,"GT364 - 9,5 mm"]
["DE869","Portugiesischer Wasserhund","SnapOn",null,"Opt3","3. Körper verfilztes Fell","GT345 - 3,2 mm",null,"GT345 - 3,2 mm",null,"GT345 - 3,2 mm"]
["DE870","Portugiesischer Wasserhund","SnapOn",null,"Opt6","6. Läufe","Schere VH016C - 190 mm","Schere VH017C - 200 mm","Schere VH016C - 190 mm","Schere VH017C - 200 mm","Schere VH016C - 190 mm","Schere VH017C - 200 mm"]
["DE871","Portugiesischer Wasserhund","SnapOn",null,"Opt4","4. Kopf","Schere VH016C - 190 mm","Schere VH017C - 200 mm","Schere VH016C - 190 mm","Schere VH017C - 200 mm","Schere VH016C - 190 mm","Schere VH017C - 200 mm"]
["DE872","Portugiesischer Wasserhund","SnapOn",null,"Opt5","5. Ohren","Schere VH016C - 190 mm","Schere VH017C - 200 mm","Schere VH016C - 190 mm","Schere VH017C - 200 mm","Schere VH016C - 190 mm","Schere VH017C - 200 mm"]
["DE873","Pudel","SnapOn",null,"Opt8","8. Afterbereich","GT333 - 2,0 mm",null,"GT333 - 2,0 mm",null,"GT333 - 2,0 mm"]
["DE874","Pudel","SnapOn",null,"Opt7","7. Pfoten","GT320 - 0,8 mm",null,"GT320 - 0,8 mm",null,"GT320 - 0,8 mm"]
["DE875","Pudel","SnapOn",null,"Opt1","1. Körper normale Fellstruktur","GT357 - 6,3 mm",null,"GT366 - 9,5 mm",null,"Schere VH016C - 190 mm","Schere VH017C - 200 mm"]
["DE876","Pudel","SnapOn",null,"Opt2","2. Körper sauberes Fell","GT357 - 6,3 mm",null,"GT366 - 9,5 mm",null,"Schere VH016C - 190 mm","Schere VH017C - 200 mm"]
["DE877","Pudel","SnapOn",null,"Opt3","3. Körper verfilztes Fell","GT345 - 3,2 mm",null,"GT345 - 3,2 mm",null,"GT345 - 3,2 mm"]
["DE878","Pudel","SnapOn",null,"Opt6","6. Läufe","Schere VH016C - 190 mm","Schere VH017C - 200 mm","Schere VH016C - 190 mm","Schere VH017C - 200 mm","Schere VH016C - 190 mm","Schere VH017C - 200 mm"]
["DE879","Pudel","SnapOn",null,"Opt4","4. Kopf","Schere VH016C - 190 mm","Schere VH017C - 200 mm","Schere VH016C - 190 mm","Schere VH017C - 200 mm","Schere VH016C - 190 mm","Schere VH017C - 200 mm"]
["DE880","Pudel","SnapOn",null,"Opt5","5. Ohren","Schere VH016C - 190 mm","Schere VH017C - 200 mm","Schere VH016C - 190 mm","Schere VH017C - 200 mm","Schere VH016C - 190 mm","Schere VH017C - 200 mm"]
["DE881","Samojede","SnapOn",null,"Opt8","8. Afterbereich","GT333 - 2,0 mm",null,"GT333 - 2,0 mm",null,"GT333 - 2,0 mm"]
["DE882","Samojede","SnapOn",null,"Opt7","7. Pfoten","GT320 - 0,8 mm",null,"GT320 - 0,8 mm",null,"GT320 - 0,8 mm"]
["DE883","Samojede","SnapOn",null,"Opt1","1. Körper normale Fellstruktur","GT345 - 3,2 mm","ausbürsten","GT357 - 6,3 mm",null,"GT357 - 6,3 mm"]
["DE884","Samojede","SnapOn",null,"Opt2","2. Körper sauberes Fell","GT345 - 3,2 mm","ausbürsten","GT357 - 6,3 mm",null,"GT357 - 6,3 mm"]
["DE885","Samojede","SnapOn",null,"Opt3","3. Körper verfilztes Fell","GT345 - 3,2 mm",null,"GT345 - 3,2 mm",null,"GT345 - 3,2 mm"]
["DE886","Samojede","SnapOn",null,"Opt6","6. Läufe","Schere VH016C - 190 mm","Schere VH017C - 200 mm","Schere VH016C - 190 mm","Schere VH017C - 200 mm","Schere VH016C - 190 mm","Schere VH017C - 200 mm"]
["DE887","Samojede","SnapOn",null,"Opt4","4. Kopf","Schere VH016C - 190 mm","Schere VH017C - 200 mm","Schere VH016C - 190 mm","Schere VH017C - 200 mm","Schere VH016C - 190 mm","Schere VH017C - 200 mm"]
["DE888","Samojede","SnapOn",null,"Opt5","5. Ohren","Schere VH016C - 190 mm","Schere VH017C - 200 mm","Schere VH016C - 190 mm","Schere VH017C - 200 mm","Schere VH016C - 190 mm","Schere VH017C - 200 mm"]
["DE889","Schnauzer","SnapOn",null,"Opt8","8. Afterbereich","GT333 - 2,0 mm",null,"GT333 - 2,0 mm",null,"GT333 - 2,0 mm"]
["DE890","Schnauzer","SnapOn",null,{"$f":"\"Opt\"&LEFT(F851,1)","v":"Opt7"},"7. Pfoten","GT320 - 0,8 mm",null,"GT320 - 0,8 mm",null,"GT320 - 0,8 mm"]
["DE891","Schnauzer","SnapOn",null,"Opt1","1. Körper normale Fellstruktur","Trimmmesser",null,"Trimmmesser",null,"Trimmmesser"]
["DE892","Schnauzer","SnapOn",null,"Opt2","2. Körper sauberes Fell","GT345 - 3,2 mm",null,"GT357 - 6,3 mm",null,"GT357 - 6,3 mm"]
["DE893","Schnauzer","SnapOn",null,"Opt3","3. Körper verfilztes Fell","GT345 - 3,2 mm",null,"GT357 - 6,3 mm",null,"GT357 - 6,3 mm"]
["DE894","Schnauzer","SnapOn",null,"Opt6","6. Läufe","Schere VH016C - 190 mm","Schere VH017C - 200 mm","Schere VH016C - 190 mm","Schere VH017C - 200 mm","Schere VH016C - 190 mm","Schere VH017C - 200 mm"]
["DE895","Schnauzer","SnapOn",null,"Opt4","4. Kopf","GT333 - 2,0 mm","Schere VH016C - 190 mm","GT333 - 2,0 mm","Schere VH016C - 190 mm","GT333 - 2,0 mm","Schere VH016C - 190 mm"]
["DE896","Schnauzer","SnapOn",null,"Opt5","5. Ohren","GT333 - 2,0 mm",null,"GT333 - 2,0 mm",null,"GT333 - 2,0 mm"]
["DE897","Scottisch Terrier","SnapOn",null,"Opt8","8. Afterbereich","GT333 - 2,0 mm",null,"GT333 - 2,0 mm",null,"GT333 - 2,0 mm"]
["DE898","Scottisch Terrier","SnapOn",null,"Opt7","7. Pfoten","GT320 - 0,8 mm",null,"GT320 - 0,8 mm",null,"GT320 - 0,8 mm"]
["DE899","Scottisch Terrier","SnapOn",null,"Opt1","1. Körper normale Fellstruktur","Trimmmesser",null,"Trimmmesser",null,"Trimmmesser"]
["DE900","Scottisch Terrier","SnapOn",null,"Opt2","2. Körper sauberes Fell","GT345 - 3,2 mm",null,"GT357 - 6,3 mm",null,"GT366 - 9,5 mm"]
["DE901","Scottisch Terrier","SnapOn",null,"Opt3","3. Körper verfilztes Fell","GT345 - 3,2 mm",null,"GT345 - 3,2 mm",null,"GT345 - 3,2 mm"]
["DE902","Scottisch Terrier","SnapOn",null,"Opt6","6. Läufe","Schere VH016C - 190 mm","Schere VH017C - 200 mm","Schere VH016C - 190 mm","Schere VH017C - 200 mm","Schere VH016C - 190 mm","Schere VH017C - 200 mm"]
["DE903","Scottisch Terrier","SnapOn",null,"Opt4","4. Kopf","GT345 - 3,2 mm",null,"GT345 - 3,2 mm",null,"GT345 - 3,2 mm"]
["DE904","Scottisch Terrier","SnapOn",null,"Opt5","5. Ohren","GT333 - 2,0 mm",null,"GT333 - 2,0 mm",null,"GT333 - 2,0 mm"]
["DE905","Sealyham Terrier","SnapOn",null,"Opt8","8. Afterbereich","GT333 - 2,0 mm",null,"GT333 - 2,0 mm",null,"GT333 - 2,0 mm"]
["DE906","Sealyham Terrier","SnapOn",null,"Opt7","7. Pfoten","GT320 - 0,8 mm",null,"GT320 - 0,8 mm",null,"GT320 - 0,8 mm"]
["DE907","Sealyham Terrier","SnapOn",null,"Opt1","1. Körper normale Fellstruktur","Trimmmesser",null,"Trimmmesser",null,"Trimmmesser"]
["DE908","Sealyham Terrier","SnapOn",null,"Opt2","2. Körper sauberes Fell","GT345 - 3,2 mm",null,"GT357 - 6,3 mm",null,"GT366 - 9,5 mm"]
["DE909","Sealyham Terrier","SnapOn",null,"Opt3","3. Körper verfilztes Fell","GT345 - 3,2 mm",null,"GT345 - 3,2 mm",null,"GT345 - 3,2 mm"]
["DE910","Sealyham Terrier","SnapOn",null,"Opt6","6. Läufe","Schere VH016C - 190 mm","Schere VH017C - 200 mm","Schere VH016C - 190 mm","Schere VH017C - 200 mm","Schere VH016C - 190 mm","Schere VH017C - 200 mm"]
["DE911","Sealyham Terrier","SnapOn",null,"Opt4","4. Kopf","GT345 - 3,2 mm",null,"GT345 - 3,2 mm",null,"GT345 - 3,2 mm"]
["DE912","Sealyham Terrier","SnapOn",null,"Opt5","5. Ohren","GT333 - 2,0 mm",null,"GT333 - 2,0 mm",null,"GT333 - 2,0 mm"]
["DE913","Shih Tzu","SnapOn",null,"Opt8","8. Afterbereich","GT333 - 2,0 mm",null,"GT333 - 2,0 mm",null,"GT333 - 2,0 mm"]
["DE914","Shih Tzu","SnapOn",null,"Opt7","7. Pfoten","GT320 - 0,8 mm",null,"GT320 - 0,8 mm",null,"GT320 - 0,8 mm"]
["DE915","Shih Tzu","SnapOn",null,"Opt1","1. Körper normale Fellstruktur","GT364 - 9,5 mm",null,"GT364 - 9,5 mm",null,"GT364 - 9,5 mm"]
["DE916","Shih Tzu","SnapOn",null,"Opt2","2. Körper sauberes Fell","GT364 - 9,5 mm",null,"GT364 - 9,5 mm",null,"GT364 - 9,5 mm"]
["DE917","Shih Tzu","SnapOn",null,"Opt3","3. Körper verfilztes Fell","GT345 - 3,2 mm",null,"GT345 - 3,2 mm",null,"GT345 - 3,2 mm"]
["DE918","Shih Tzu","SnapOn",null,"Opt6","6. Läufe","Schere VH016C - 190 mm","Schere VH017C - 200 mm","Schere VH016C - 190 mm","Schere VH017C - 200 mm","Schere VH016C - 190 mm","Schere VH017C - 200 mm"]
["DE919","Shih Tzu","SnapOn",null,"Opt4","4. Kopf","GT333 - 2,0 mm",null,"GT333 - 2,0 mm",null,"GT333 - 2,0 mm"]
["DE920","Shih Tzu","SnapOn",null,"Opt5","5. Ohren","GT333 - 2,0 mm",null,"GT333 - 2,0 mm",null,"GT333 - 2,0 mm"]
["DE921","Italienischer Volpino","SnapOn",null,"Opt8","8. Afterbereich","GT333 - 2,0 mm",null,"GT333 - 2,0 mm",null,"GT333 - 2,0 mm"]
["DE922","Italienischer Volpino","SnapOn",null,"Opt7","7. Pfoten","GT320 - 0,8 mm",null,"GT320 - 0,8 mm",null,"GT320 - 0,8 mm"]
["DE923","Italienischer Volpino","SnapOn",null,"Opt1","1. Körper normale Fellstruktur","GT345 - 3,2 mm","ausbürsten","GT357 - 6,3 mm",null,"GT357 - 6,3 mm"]
["DE924","Italienischer Volpino","SnapOn",null,"Opt2","2. Körper sauberes Fell","GT345 - 3,2 mm","ausbürsten","GT357 - 6,3 mm",null,"GT357 - 6,3 mm"]
["DE925","Italienischer Volpino","SnapOn",null,"Opt3","3. Körper verfilztes Fell","GT345 - 3,2 mm",null,"GT345 - 3,2 mm",null,"GT345 - 3,2 mm"]
["DE926","Italienischer Volpino","SnapOn",null,"Opt6","6. Läufe","Schere VH016C - 190 mm","Schere VH017C - 200 mm","Schere VH016C - 190 mm","Schere VH017C - 200 mm","Schere VH016C - 190 mm","Schere VH017C - 200 mm"]
["DE927","Italienischer Volpino","SnapOn",null,"Opt4","4. Kopf","Schere VH016C - 190 mm","Schere VH017C - 200 mm","Schere VH016C - 190 mm","Schere VH017C - 200 mm","Schere VH016C - 190 mm","Schere VH017C - 200 mm"]
["DE928","Italienischer Volpino","SnapOn",null,"Opt5","5. Ohren","Schere VH016C - 190 mm","Schere VH017C - 200 mm","Schere VH016C - 190 mm","Schere VH017C - 200 mm","Schere VH016C - 190 mm","Schere VH017C - 200 mm"]
["DE929","Wesh Terrier","SnapOn",null,"Opt8","8. Afterbereich","GT333 - 2,0 mm",null,"GT333 - 2,0 mm",null,"GT333 - 2,0 mm"]
["DE930","Wesh Terrier","SnapOn",null,"Opt7","7. Pfoten","GT320 - 0,8 mm",null,"GT320 - 0,8 mm",null,"GT320 - 0,8 mm"]
["DE931","Wesh Terrier","SnapOn",null,"Opt1","1. Körper normale Fellstruktur","Trimmmesser",null,"Trimmmesser",null,"Trimmmesser"]
["DE932","Wesh Terrier","SnapOn",null,"Opt2","2. Körper sauberes Fell","GT345 - 3,2 mm",null,"GT357 - 6,3 mm",null,"GT366 - 9,5 mm"]
["DE933","Wesh Terrier","SnapOn",null,"Opt3","3. Körper verfilztes Fell","GT345 - 3,2 mm",null,"GT345 - 3,2 mm",null,"GT345 - 3,2 mm"]
["DE934","Wesh Terrier","SnapOn",null,"Opt6","6. Läufe","Schere VH016C - 190 mm","Schere VH017C - 200 mm","Schere VH016C - 190 mm","Schere VH017C - 200 mm","Schere VH016C - 190 mm","Schere VH017C - 200 mm"]
["DE935","Wesh Terrier","SnapOn",null,"Opt4","4. Kopf","GT345 - 3,2 mm",null,"GT345 - 3,2 mm",null,"GT345 - 3,2 mm"]
["DE936","Wesh Terrier","SnapOn",null,"Opt5","5. Ohren","GT333 - 2,0 mm",null,"GT333 - 2,0 mm",null,"GT333 - 2,0 mm"]
["DE937","West Highland White Terrier","SnapOn",null,"Opt8","8. Afterbereich","GT333 - 2,0 mm",null,"GT333 - 2,0 mm",null,"GT333 - 2,0 mm"]
["DE938","West Highland White Terrier","SnapOn",null,"Opt7","7. Pfoten","GT320 - 0,8 mm",null,"GT320 - 0,8 mm",null,"GT320 - 0,8 mm"]
["DE939","West Highland White Terrier","SnapOn",null,"Opt1","1. Körper normale Fellstruktur","Trimmmesser",null,"Trimmmesser",null,"Trimmmesser"]
["DE940","West Highland White Terrier","SnapOn",null,"Opt2","2. Körper sauberes Fell","GT345 - 3,2 mm",null,"GT357 - 6,3 mm",null,"GT366 - 9,5 mm"]
["DE941","West Highland White Terrier","SnapOn",null,"Opt3","3. Körper verfilztes Fell","GT345 - 3,2 mm",null,"GT345 - 3,2 mm",null,"GT345 - 3,2 mm"]
["DE942","West Highland White Terrier","SnapOn",null,"Opt6","6. Läufe","Schere VH016C - 190 mm","Schere VH017C - 200 mm","Schere VH016C - 190 mm","Schere VH017C - 200 mm","Schere VH016C - 190 mm","Schere VH017C - 200 mm"]
["DE943","West Highland White Terrier","SnapOn",null,"Opt4","4. Kopf","GT345 - 3,2 mm",null,"GT345 - 3,2 mm",null,"GT345 - 3,2 mm"]
["DE944","West Highland White Terrier","SnapOn",null,"Opt5","5. Ohren","GT333 - 2,0 mm",null,"GT333 - 2,0 mm",null,"GT333 - 2,0 mm"]
["DE945","Wolfsspitz","SnapOn",null,"Opt8","8. Afterbereich","GT333 - 2,0 mm",null,"GT333 - 2,0 mm",null,"GT333 - 2,0 mm"]
["DE946","Wolfsspitz","SnapOn",null,"Opt7","7. Pfoten","GT320 - 0,8 mm",null,"GT320 - 0,8 mm",null,"GT320 - 0,8 mm"]
["DE947","Wolfsspitz","SnapOn",null,"Opt1","1. Körper normale Fellstruktur","GT345 - 3,2 mm","ausbürsten","GT357 - 6,3 mm",null,"GT357 - 6,3 mm"]
["DE948","Wolfsspitz","SnapOn",null,"Opt2","2. Körper sauberes Fell","GT345 - 3,2 mm","ausbürsten","GT357 - 6,3 mm",null,"GT357 - 6,3 mm"]
["DE949","Wolfsspitz","SnapOn",null,"Opt3","3. Körper verfilztes Fell","GT345 - 3,2 mm",null,"GT345 - 3,2 mm",null,"GT345 - 3,2 mm"]
["DE950","Wolfsspitz","SnapOn",null,"Opt6","6. Läufe","Schere VH016C - 190 mm","Schere VH017C - 200 mm","Schere VH016C - 190 mm","Schere VH017C - 200 mm","Schere VH016C - 190 mm","Schere VH017C - 200 mm"]
["DE951","Wolfsspitz","SnapOn",null,"Opt4","4. Kopf","Schere VH016C - 190 mm","Schere VH017C - 200 mm","Schere VH016C - 190 mm","Schere VH017C - 200 mm","Schere VH016C - 190 mm","Schere VH017C - 200 mm"]
["DE952","Wolfsspitz","SnapOn",null,"Opt5","5. Ohren","Schere VH016C - 190 mm","Schere VH017C - 200 mm","Schere VH016C - 190 mm","Schere VH017C - 200 mm","Schere VH016C - 190 mm","Schere VH017C - 200 mm"]
["DE953","Yorkshire Terrier","SnapOn",null,"Opt8","8. Afterbereich","GT333 - 2,0 mm",null,"GT333 - 2,0 mm",null,"GT333 - 2,0 mm"]
["DE954","Yorkshire Terrier","SnapOn",null,{"$f":"\"Opt\"&LEFT(F915,1)","v":"Opt7"},"7. Pfoten","GT320 - 0,8 mm",null,"GT320 - 0,8 mm",null,"GT320 - 0,8 mm"]
["DE955","Yorkshire Terrier","SnapOn",null,"Opt1","1. Körper normale Fellstruktur","GT345 - 3,2 mm",null,"GT357 - 6,3 mm",null,"GT366 - 9,5 mm"]
["DE956","Yorkshire Terrier","SnapOn",null,"Opt2","2. Körper sauberes Fell","GT345 - 3,2 mm",null,"GT357 - 6,3 mm",null,"GT366 - 9,5 mm"]
["DE957","Yorkshire Terrier","SnapOn",null,"Opt3","3. Körper verfilztes Fell","GT345 - 3,2 mm",null,"GT345 - 3,2 mm",null,"GT366 - 9,5 mm"]
["DE958","Yorkshire Terrier","SnapOn",null,"Opt6","6. Läufe","Schere VH016C - 190 mm","Schere VH017C - 200 mm","Schere VH016C - 190 mm","Schere VH017C - 200 mm","Schere VH016C - 190 mm","Schere VH017C - 200 mm"]
["DE959","Yorkshire Terrier","SnapOn",null,"Opt4","4. Kopf","GT345 - 3,2 mm",null,"GT345 - 3,2 mm",null,"GT345 - 3,2 mm"]
["DE960","Yorkshire Terrier","SnapOn",null,"Opt5","5. Ohren","GT333 - 2,0 mm",null,"GT333 - 2,0 mm",null,"GT333 - 2,0 mm"]
["DE961","Zwergspitz","SnapOn",null,"Opt8","8. Afterbereich","GT333 - 2,0 mm",null,"GT333 - 2,0 mm",null,"GT333 - 2,0 mm"]
["DE962","Zwergspitz","SnapOn",null,"Opt7","7. Pfoten","GT320 - 0,8 mm",null,"GT320 - 0,8 mm",null,"GT320 - 0,8 mm"]
["DE963","Zwergspitz","SnapOn",null,"Opt1","1. Körper normale Fellstruktur","GT345 - 3,2 mm","ausbürsten","GT357 - 6,3 mm",null,"GT357 - 6,3 mm"]
["DE964","Zwergspitz","SnapOn",null,"Opt2","2. Körper sauberes Fell","GT345 - 3,2 mm","ausbürsten","GT357 - 6,3 mm",null,"GT357 - 6,3 mm"]
["DE965","Zwergspitz","SnapOn",null,"Opt3","3. Körper verfilztes Fell","GT345 - 3,2 mm",null,"GT345 - 3,2 mm",null,"GT345 - 3,2 mm"]
["DE966","Zwergspitz","SnapOn",null,"Opt6","6. Läufe","Schere VH016C - 190 mm","Schere VH017C - 200 mm","Schere VH016C - 190 mm","Schere VH017C - 200 mm","Schere VH016C - 190 mm","Schere VH017C - 200 mm"]
["DE967","Zwergspitz","SnapOn",null,"Opt4","4. Kopf","Schere VH016C - 190 mm","Schere VH017C - 200 mm","Schere VH016C - 190 mm","Schere VH017C - 200 mm","Schere VH016C - 190 mm","Schere VH017C - 200 mm"]
["DE968","Zwergspitz","SnapOn",null,"Opt5","5. Ohren","Schere VH016C - 190 mm","Schere VH017C - 200 mm","Schere VH016C - 190 mm","Schere VH017C - 200 mm","Schere VH016C - 190 mm","Schere VH017C - 200 mm"]

{"sheet":"Scherkopfberater","index":1,"n_rows":0,"n_cols":0,"rows_kept":0,"cut":false,"hidden":false,"merged":[]}